Date,Department/Service,Beneficiary,Amount,Summary of purpose,Category,Transaction number
01.05.2016,CHILDREN'S SERVICES,4 FUTURES LIMITED,"2,993.23",SSF NON SCHOOL SPECIFIC FM,COMPUTER MAINTENANCE,5902189663
01.05.2016,CHILDREN'S SERVICES,4 FUTURES LIMITED,"8,451.35",SSF NSA FM/ICT SACRED HEART,COMPUTER MAINTENANCE,5902189643
01.05.2016,CHILDREN'S SERVICES,4 FUTURES LIMITED,932.01,SSF SPA FM/ICT,COMPUTER MAINTENANCE,5902189650
01.05.2016,CHILDREN'S SERVICES,4 FUTURES LIMITED,"8,755.50",SSF STAC PFI/ICT,COMPUTER MAINTENANCE,5902189660
01.05.2016,DULWICH COMMUNITY COUNCIL,DULWICH FESTIVAL ,"5,000.00",DULWICH FESTIVAL ,GRANTS,CHEQUE PAYMENT
01.05.2016,SOCIAL SERVICES,EQUINOX CARE,"2,180.40",PETTY CASH/PERSONAL ALLOWANCE,OTHER PAYMENTS FOR CLIENTS,5902188826
01.05.2016,SOCIAL SERVICES,EQUINOX CARE,"2,180.40",PETTY CASH/PERSONAL ALLOWANCE,OTHER PAYMENTS FOR CLIENTS,5902188831
01.05.2016,SOCIAL SERVICES,HEXAGON HOUSING ASSOCIATION LTD,"1,074.16",PETTY CASH/PERSONAL ALLOWANCE,OTHER PAYMENTS FOR CLIENTS,5902188844
02.05.2016,CHILDREN'S SERVICES,SATNAM PARHAR ASSOCIATES LTD,"1,014.40",ADOPTION PLACEMENTS & INTER AGENCY,EXTERNAL AGENCIES AND BODIES,5902189457
02.05.2016,ENVIRONMENT DIRECTORATE,PHS GROUP PLC,991.18,MANAGEMENT TEAM,WASTE DISPOSAL CONTRACT,5902189953
02.05.2016,ENVIRONMENT DIRECTORATE,COMPLETE TREE CARE LTD,503.64,NON HOUSING GROUNDS,AGENCY STAFF,5902189946
02.05.2016,MODERNISATION HGF,JOHN STATTERS ASSOCIATES,"1,900.00",OCCUPATIONAL ASSESSMENT,CONSULTANTS SERVICES,5902189941
02.05.2016,PLANNING AND TRANSPORT,CONWAY AECOM LTD,"11,060.28",TRANSPORT POLICY AND PROGRAMS,PROFESSIONAL FEES,5902189977
03.05.2016,CAMBERWELL COMMUNITY COUNCIL,SOUTH LONDON GALLERY,"5,000.00","ART ASSASSINS, WEEKLY YOUTH FORUM FOR 14-21 YEAR OLDS",GRANTS,CHEQUE PAYMENT
03.05.2016,CAMBERWELL COMMUNITY COUNCIL,WALWORTH GOLDEN OLDIES COMMUNITY CARE PROJECT,"3,500.00",GOLDEN OLDIES INTER GENERATION PROJECT,GRANTS,CHEQUE PAYMENT
03.05.2016,CAMBERWELL COMMUNITY COUNCIL,SE5 FORUM FOR CAMBERWELL,"4,000.00",SE5 FORUM FOR CAMBERWELL COMMUNITY OUTREACH PROJECT,GRANTS,CHEQUE PAYMENT
03.05.2016,CAMBERWELL COMMUNITY COUNCIL,SOUTHWARK EXPLORERS CLUB,900,SOUTHWARK EXPLORERS CLUB,GRANTS,CHEQUE PAYMENT
03.05.2016,CAMBERWELL COMMUNITY COUNCIL,ST FAITH'S COMMUNITY & YOUTH ASSOCIATION,"2,325.00",ST FAITH'S SUMMER PLAY SCHEME,GRANTS,CHEQUE PAYMENT
03.05.2016,DULWICH COMMUNITY COUNCIL,DULWICH PICTURE GALLERY ,"2,500.00",COMMUNITY TOURS AND TEAS ,GRANTS,CHEQUE PAYMENT
03.05.2016,DULWICH COMMUNITY COUNCIL,ST FAITH'S COMMUNITY PLAY SCHEME,"2,325.00",ST FAITH'S SUMMER PLAY SCHEME ,GRANTS,CHEQUE PAYMENT
03.05.2016,VARIOUS,LAND REGISTRY,374,LAND REGISTRY CHARGES,PROFESSIONAL FEES,DIRECT DEBIT PAYMENT
04.05.2016,-,SCOTTISH EQUITABLE PLC,"38,543.48",-,PAYROLL CREDITORS - EXTERNAL AVCS (LOCAL GOVT),2102486412
04.05.2016,-,FAYERS PLUMBING & BUILDING SUPPLIES,276.25,-,-,5902190022
04.05.2016,-,FAYERS PLUMBING & BUILDING SUPPLIES,404.3,-,-,5902190022
04.05.2016,-,CROSSFOLD ELECTRICAL WHOLESALERS,333,-,-,5902190149
04.05.2016,-,EDWARDES BROS (DULWICH) LTD,380,-,-,5902190150
04.05.2016,-,EDWARDES BROS (DULWICH) LTD,309.6,-,-,5902190152
04.05.2016,-,EDWARDES BROS (DULWICH) LTD,400,-,-,5902190152
04.05.2016,-,EDWARDES BROS (DULWICH) LTD,"1,712.60",-,-,5902190152
04.05.2016,-,LAKEDALE POWER TOOLS,800,-,-,5902190196
04.05.2016,-,LAKEDALE POWER TOOLS,800,-,-,5902190201
04.05.2016,-,LAKEDALE POWER TOOLS,300,-,-,5902190204
04.05.2016,-,LAKEDALE POWER TOOLS,850,-,-,5902190204
04.05.2016,-,BLM T/A BERRYMANS LACEY MAWER LLP,"1,610.80",VAT INPUTS - ADJUSTMENTS,VAT CONTROL ACCOUNT,2102486789
04.05.2016,ASSET MANAGEMENT,VEOLIA ES SOUTHWARK LTD,"6,744.00",ENG CONTRACTS (NORTH),HEATING - DISTRICT PLANT REPAIR & REPLACEMENT,5902190047
04.05.2016,ASSET MANAGEMENT,SHARPE PRITCHARD LLP,280,REPAIRS OPERATIONS,PROFESSIONAL FEES,5902190197
04.05.2016,BERMONDSEY & ROTHERHITHE COMMUNITY COUNCIL,SETCHELL ESTATE T&RA,"2,920.00",-,GRANTS,CHEQUE PAYMENT
04.05.2016,BERMONDSEY & ROTHERHITHE COMMUNITY COUNCIL,ROTHERHITHE FESTIVAL GROUP ,"2,500.00",ROTHERHITHE FESTIVAL 2016 ,GRANTS,CHEQUE PAYMENT
04.05.2016,BERMONDSEY & ROTHERHITHE COMMUNITY COUNCIL,RAINBOW ARTS AND CRAFTS GROUP ,"1,600.00",SAVING SENIOR ART GROUP ,GRANTS,CHEQUE PAYMENT
04.05.2016,CAMBERWELL COMMUNITY COUNCIL,HIGHSHORE SCHOOL,"1,222.63",HIGHSHORE ENTERPRISE HERE AND NOW!,GRANTS,CHEQUE PAYMENT
04.05.2016,CAMBERWELL COMMUNITY COUNCIL,OBAC - (ORGANISATION OF BLIND AFRICANS & CARIBBEANS),"1,560.33",PROMOTING WELLBEING AND INDEPENDENCE FOR THE DISABLED,GRANTS,CHEQUE PAYMENT
04.05.2016,CENTRAL FUNCTIONS,KENT COUNTY COUNCIL - LASER,"26,382.36",HEATING ACCOUNT,ELECTRICITY,5902190081
04.05.2016,CENTRAL FUNCTIONS,KENT COUNTY COUNCIL - LASER,"50,186.00",HEATING ACCOUNT,ELECTRICITY,5902190081
04.05.2016,CENTRAL FUNCTIONS,KENT COUNTY COUNCIL - LASER,"10,162.54",HEATING ACCOUNT,GAS,5902190087
04.05.2016,CENTRAL FUNCTIONS,KENT COUNTY COUNCIL - LASER,"656,304.28",HEATING ACCOUNT,GAS,5902190087
04.05.2016,CENTRAL FUNCTIONS,MERLIN DMS LTD,275.54,HOME OWNERSHIP,OFFICE EXPENSES,5902190013
04.05.2016,CHIEF EXECUTIVE,CARTER JONAS LLP,675,CAPITAL PS (REGEN),CONSTRUCTION FEES,5902190052
04.05.2016,CHIEF EXECUTIVE,CARTER JONAS LLP,"2,175.00",CAPITAL PS (REGEN),CONSTRUCTION FEES,5902190057
04.05.2016,CHIEF EXECUTIVE,PROJECT CENTRE LTD,"2,000.00",CAPITAL PS (REGEN),CONSTRUCTION FEES,5902190059
04.05.2016,CHIEF EXECUTIVE,CONWAY AECOM LTD,"5,298.26",CAPITAL PS (REGEN),CONSTRUCTION SUB CONTRACT - NON CERTIFICATED,2102486777
04.05.2016,CHIEF EXECUTIVE,CONWAY AECOM LTD,"14,814.74",CAPITAL PS (REGEN),CONSTRUCTION SUB CONTRACT - NON CERTIFICATED,2102486778
04.05.2016,CHIEF EXECUTIVE,CONWAY AECOM LTD,"22,581.16",CAPITAL PS (REGEN),CONSTRUCTION SUB CONTRACT - NON CERTIFICATED,2102486779
04.05.2016,CHIEF EXECUTIVE,CONWAY AECOM LTD,"22,261.37",CAPITAL PS (REGEN),CONSTRUCTION SUB CONTRACT - NON CERTIFICATED,2102486784
04.05.2016,CHIEF EXECUTIVE'S OFFICE,ELLIOTT J - DESIGN,315,BEST START IN LIFE,MARKETING & PUBLICITY SERVICES,5902190097
04.05.2016,CHILDREN AND ADULT,MORGAN SINDALL PLC,698.22,CAPITAL PS (EDUCATION),CONSTRUCTION SUB CONTRACT - NON CERTIFICATED,2102486774
04.05.2016,CHILDREN'S SERVICES,CUMBRIA COUNTY COUNCIL,"19,800.00",ADOPTION PLACEMENTS & INTER AGENCY,EXTERNAL AGENCIES AND BODIES,5902190157
04.05.2016,CHILDREN'S SERVICES,REDACTED PERSONAL DATA,314.6,ADOPTION PLACEMENTS & INTER AGENCY,OTHER PAYMENTS FOR CLIENTS,5902190134
04.05.2016,CHILDREN'S SERVICES,THE XCEL 2000 PARTNERSHIP LTD,"3,248.57",AGENCY FOSTERING,EXTERNAL AGENCIES AND BODIES,2102486550
04.05.2016,CHILDREN'S SERVICES,THE MEDUSA PROJECT,"3,535.71",AGENCY FOSTERING,RESIDENTIAL CARE,2102486542
04.05.2016,CHILDREN'S SERVICES,THE MEDUSA PROJECT,"3,321.34",AGENCY FOSTERING,RESIDENTIAL CARE,2102486544
04.05.2016,CHILDREN'S SERVICES,THE MEDUSA PROJECT,"3,107.06",AGENCY FOSTERING,RESIDENTIAL CARE,2102486546
04.05.2016,CHILDREN'S SERVICES,THE MEDUSA PROJECT,"3,214.20",AGENCY FOSTERING,RESIDENTIAL CARE,2102486548
04.05.2016,CHILDREN'S SERVICES,SOCIAL CARE ENTERPRISES LTD,"6,000.00",CARE PRACTICE GROUP SET B,PROFESSIONAL FEES,5902190224
04.05.2016,CHILDREN'S SERVICES,REDACTED PERSONAL DATA,520,CARE PRACTICE GROUP SET C,OTHER PAYMENTS FOR CLIENTS,2102486692
04.05.2016,CHILDREN'S SERVICES,CONTACT PROFESSIONALS,265.94,CONTACT,OTHER PAYMENTS FOR CLIENTS,5902190191
04.05.2016,CHILDREN'S SERVICES,CONTACT PROFESSIONALS,354.77,CONTACT,OTHER PAYMENTS FOR CLIENTS,5902190198
04.05.2016,CHILDREN'S SERVICES,CONTACT PROFESSIONALS,651.29,CONTACT,OTHER PAYMENTS FOR CLIENTS,5902190200
04.05.2016,CHILDREN'S SERVICES,CONTACT PROFESSIONALS,701.58,CONTACT,OTHER PAYMENTS FOR CLIENTS,5902190202
04.05.2016,CHILDREN'S SERVICES,CONTACT PROFESSIONALS,348.85,CONTACT,OTHER PAYMENTS FOR CLIENTS,5902190206
04.05.2016,CHILDREN'S SERVICES,CONTACT PROFESSIONALS,375.47,CONTACT,OTHER PAYMENTS FOR CLIENTS,5902190210
04.05.2016,CHILDREN'S SERVICES,CONTACT PROFESSIONALS,363.5,CONTACT,OTHER PAYMENTS FOR CLIENTS,5902190212
04.05.2016,CHILDREN'S SERVICES,CONTACT PROFESSIONALS,599.63,CONTACT,OTHER PAYMENTS FOR CLIENTS,5902190228
04.05.2016,CHILDREN'S SERVICES,CONTACT PROFESSIONALS,297.33,CONTACT,OTHER PAYMENTS FOR CLIENTS,5902190230
04.05.2016,CHILDREN'S SERVICES,CONTACT PROFESSIONALS,577.16,CONTACT,OTHER PAYMENTS FOR CLIENTS,5902190231
04.05.2016,CHILDREN'S SERVICES,CONTACT PROFESSIONALS,310.19,CONTACT,OTHER PAYMENTS FOR CLIENTS,5902190232
04.05.2016,CHILDREN'S SERVICES,CONTACT PROFESSIONALS,268.89,CONTACT,OTHER PAYMENTS FOR CLIENTS,5902190233
04.05.2016,CHILDREN'S SERVICES,CONTACT PROFESSIONALS,306,CONTACT,OTHER PAYMENTS FOR CLIENTS,5902190234
04.05.2016,CHILDREN'S SERVICES,CONTACT PROFESSIONALS,418.5,CONTACT,OTHER PAYMENTS FOR CLIENTS,5902190236
04.05.2016,CHILDREN'S SERVICES,CONTACT PROFESSIONALS,595,CONTACT,OTHER PAYMENTS FOR CLIENTS,5902190237
04.05.2016,CHILDREN'S SERVICES,ISLINGTON COUNCIL,"1,599.75",CONTACT,OTHER PAYMENTS FOR CLIENTS,5902190014
04.05.2016,CHILDREN'S SERVICES,REDACTED PERSONAL DATA,300,DISABILITY & HIV,ADDITIONAL PAYMENTS TO AGENCIES/CARERS,2102486735
04.05.2016,CHILDREN'S SERVICES,REDACTED PERSONAL DATA,300,DISABILITY & HIV,ADDITIONAL PAYMENTS TO AGENCIES/CARERS,2102486739
04.05.2016,CHILDREN'S SERVICES,REDACTED PERSONAL DATA,"-1,271.60",DISABILITY & HIV,PAYMENTS TO CARERS,2102486728
04.05.2016,CHILDREN'S SERVICES,REDACTED PERSONAL DATA,665.22,DISABILITY & HIV,PAYMENTS TO CARERS,2102486736
04.05.2016,CHILDREN'S SERVICES,REDACTED PERSONAL DATA,300,DISABILITY & HIV,PAYMENTS TO CARERS,2102486737
04.05.2016,CHILDREN'S SERVICES,REDACTED PERSONAL DATA,"1,000.00",DISABILITY & HIV,PAYMENTS TO CARERS,2102486742
04.05.2016,CHILDREN'S SERVICES,REDACTED PERSONAL DATA,644,DISABILITY & HIV,PAYMENTS TO CARERS,2102486743
04.05.2016,CHILDREN'S SERVICES,REDACTED PERSONAL DATA,300,DISABILITY & HIV,PAYMENTS TO CARERS,2102486744
04.05.2016,CHILDREN'S SERVICES,REDACTED PERSONAL DATA,690.92,DISABILITY & HIV,PAYMENTS TO CARERS,2102486746
04.05.2016,CHILDREN'S SERVICES,GRAHAM ROWLAND,"7,750.00",EBA SALARIES/RUNNING COSTS,MARKETING & PUBLICITY SERVICES,5902190208
04.05.2016,CHILDREN'S SERVICES,HEALTHCARE & TRANSPORT SERVICE,"49,497.75",HOME 2 SCHOOL TRANSPORT,CAB FARES,5902190140
04.05.2016,CHILDREN'S SERVICES,TRINITY LABAN CONSERVATOIRE OF MUSIC AND DANCE,798,LEA MUSIC SERVICE(310) - 5018566,CONSULTANTS SERVICES,5902190078
04.05.2016,CHILDREN'S SERVICES,SHAUN PACKHAM (FENCING),900,PLAY SERVICE MANAGEMENT & ADMIN,BUILDING R&M,5902189718
04.05.2016,CHILDREN'S SERVICES,REDACTED PERSONAL DATA,264.16,RESIDENCE ORDERS,PAYMENTS TO CARERS,2102486450
04.05.2016,CHILDREN'S SERVICES,REDACTED PERSONAL DATA,264.04,RESIDENCE ORDERS,PAYMENTS TO CARERS,2102486530
04.05.2016,CHILDREN'S SERVICES,REDACTED PERSONAL DATA,264.16,RESIDENCE ORDERS,PAYMENTS TO CARERS,2102486631
04.05.2016,CHILDREN'S SERVICES,PLUS ONE LTD,"1,585.29",RESIDENTIAL,OTHER PAYMENTS FOR CLIENTS,2102486538
04.05.2016,CHILDREN'S SERVICES,PLUS ONE LTD,"15,852.86",RESIDENTIAL,OTHER PAYMENTS FOR CLIENTS,2102486540
04.05.2016,CHILDREN'S SERVICES,REDACTED PERSONAL DATA,"1,080.00",S24 CLA,OTHER PAYMENTS FOR CLIENTS,2102486686
04.05.2016,CHILDREN'S SERVICES,REDACTED PERSONAL DATA,-579.21,SPECIAL GUARDIANSHIP,PAYMENTS TO CARERS,2102476363
04.05.2016,CHILDREN'S SERVICES,REDACTED PERSONAL DATA,400,SPECIAL GUARDIANSHIP,PAYMENTS TO CARERS,2102486431
04.05.2016,CHILDREN'S SERVICES,REDACTED PERSONAL DATA,263.71,SPECIAL GUARDIANSHIP,PAYMENTS TO CARERS,2102486456
04.05.2016,CHILDREN'S SERVICES,REDACTED PERSONAL DATA,445.42,SPECIAL GUARDIANSHIP,PAYMENTS TO CARERS,2102486503
04.05.2016,CHILDREN'S SERVICES,REDACTED PERSONAL DATA,350,SPECIAL GUARDIANSHIP,PAYMENTS TO CARERS,2102486597
04.05.2016,CHILDREN'S SERVICES,REDACTED PERSONAL DATA,269.08,SPECIAL GUARDIANSHIP,PAYMENTS TO CARERS,2102486606
04.05.2016,CHILDREN'S SERVICES,REDACTED PERSONAL DATA,264.16,SPECIAL GUARDIANSHIP,PAYMENTS TO CARERS,2102486629
04.05.2016,CHILDREN'S SERVICES,REDACTED PERSONAL DATA,494.42,SPECIAL GUARDIANSHIP,PAYMENTS TO CARERS,2102486635
04.05.2016,CHILDREN'S SERVICES,REDACTED PERSONAL DATA,317.67,SPECIAL GUARDIANSHIP,PAYMENTS TO CARERS,2102486639
04.05.2016,CHILDREN'S SERVICES,ANCHOR FOSTERCARE,972.44,STAYING PUT,EXTERNAL AGENCIES AND BODIES,2102486732
04.05.2016,CHILDREN'S SERVICES,REDACTED PERSONAL DATA,"4,071.43",STAYING PUT,PAYMENTS TO CARERS,2102486729
04.05.2016,CHILDREN'S SERVICES,REDACTED PERSONAL DATA,"1,357.15",STAYING PUT,PAYMENTS TO CARERS,2102486745
04.05.2016,CHILDREN'S SERVICES,CHARTWELLS,525,SUMMERHOUSE - EX416 - 5015232,CATERING MATERIALS & SUPPLIES,5902190104
04.05.2016,CHILDREN'S SERVICES,PSYCHO DYNAMICS LIMITED,"1,470.00",SUMMERHOUSE - EX416 - 5015232,CONSULTANTS SERVICES,5902190098
04.05.2016,CHILDREN'S SERVICES,GLS EDUCATIONAL SUPPLIES LTD,319.79,SUMMERHOUSE - EX416 - 5015232,EQUIPMENT PURCHASE & REPAIR,5902190100
04.05.2016,COMMUNITIES,FAIR COMMUNITY HSG SERVICES LTD,"9,959.35",FAIR CHS TMO,M&M ALLOWANCE CO-OPS,5902190103
04.05.2016,COMMUNITIES,REDACTED PERSONAL DATA,280,NRPF CHILDREN,SECTION 17 PAYMENTS TO AGENCIES/CARERS,5902190135
04.05.2016,COMMUNITIES,REDACTED PERSONAL DATA,350,NRPF CHILDREN,SECTION 17 PAYMENTS TO AGENCIES/CARERS,5902190136
04.05.2016,COMMUNITIES,REDACTED PERSONAL DATA,290,NRPF CHILDREN,SECTION 17 PAYMENTS TO AGENCIES/CARERS,5902190137
04.05.2016,CUSTOMER SERVICES,CALLCREDIT,"6,750.00",HOUSING NEEDS,MARKETING & PUBLICITY SERVICES,5902190124
04.05.2016,CUSTOMER SERVICES,EDF ENERGY PLC,491.43,TA HOSTELS,ELECTRICITY,5902190016
04.05.2016,CUSTOMER SERVICES,BRITISH GAS TRADING LTD,300.7,TA HOSTELS,ELECTRICITY,5902190194
04.05.2016,CUSTOMER SERVICES,THAMES WATER UTILITIES LTD,977.33,TA HOSTELS,WATER,5902190117
04.05.2016,CUSTOMER SERVICES,KENT COUNTY COUNCIL - LASER,"1,896.99",TA HOSTELS,ELECTRICITY,5902190186
04.05.2016,DULWICH COMMUNITY COUNCIL,KINGSWOOD ESTATE TENNANTS ASSOCIATION,"3,000.00",KINGSWOOD NEIGHBOURHOOD FESTIVAL ,GRANTS,CHEQUE PAYMENT
04.05.2016,ENVIRONMENT AND LEISURE,SAKER CONTROLS LTD,"29,050.80",CAPITAL PS (LEISURE),"PLANT, MACHINERY & EQUIPMENT ACQUISITION",5902190162
04.05.2016,ENVIRONMENT DIRECTORATE,MILLWALL FOOTBALL & ATHLETIC PLC,"1,500.00",BUSINESS CORE,HIRE OF ROOMS/HALLS,5902190209
04.05.2016,ENVIRONMENT DIRECTORATE,PITNEY BOWES SOFTWARE EUROPE LTD,"69,186.88",HIGHWAY LIGHTING OVERHEADS,COMPUTER MAINTENANCE,5902190213
04.05.2016,ENVIRONMENT DIRECTORATE,LONDON FORGE ENGINEERING LTD,850,MULTI STOREY CAR PARK,BUILDING R&M,2102486785
04.05.2016,ENVIRONMENT DIRECTORATE,BRITISH GAS BUSINESS,576.52,SANDGATE STREET,ELECTRICITY,5902190113
04.05.2016,ENVIRONMENT DIRECTORATE,CONWAY AECOM LTD,"2,216.23",TRANSPORT ENGINEERING,OTHER CONTRACTORS,5902190160
04.05.2016,F & C S EXCLUDING CORPORATE BUDGETS,GRANT THORNTON UK LLP,"30,690.00",EXTERNAL AUDIT GRANT FEES,PROFESSIONAL FEES,5902190111
04.05.2016,F & C S EXCLUDING CORPORATE BUDGETS,L W B TRAINING LTD,"10,237.50",SESS,OTHER SUBSISTENCE & CONFERENCE EXPENSES,5902189410
04.05.2016,HOUSING GENERAL FUND,REDACTED PERSONAL DATA,"29,925.00",CAPITAL PS (HOUSING GF),CAPITAL GRANTS,5902190178
04.05.2016,HOUSING HRA,KEEPMOAT REGENERATION (APOLLO) LTD,"164,919.44",CAPITAL PS (HRA),CONSTRUCTION MAIN CONTRACT - CERTIFICATED,2102486769
04.05.2016,HOUSING HRA,KEEPMOAT REGENERATION (APOLLO) LTD,"100,000.00",CAPITAL PS (HRA),CONSTRUCTION MAIN CONTRACT - CERTIFICATED,2102486770
04.05.2016,HOUSING HRA,KEEPMOAT REGENERATION (APOLLO) LTD,"172,723.50",CAPITAL PS (HRA),CONSTRUCTION MAIN CONTRACT - CERTIFICATED,2102486771
04.05.2016,HOUSING HRA,KEEPMOAT REGENERATION (APOLLO) LTD,"83,568.44",CAPITAL PS (HRA),CONSTRUCTION MAIN CONTRACT - CERTIFICATED,2102486772
04.05.2016,HOUSING HRA,KEEPMOAT REGENERATION (APOLLO) LTD,"6,347.38",CAPITAL PS (HRA),CONSTRUCTION MAIN CONTRACT - CERTIFICATED,2102486773
04.05.2016,HOUSING HRA,MITIE PROPERTY SERVICES (UK) LTD,"162,949.42",CAPITAL PS (HRA),CONSTRUCTION MAIN CONTRACT - CERTIFICATED,2102486775
04.05.2016,HOUSING HRA,GEOFFREY OSBORNE LIMITED,"80,959.00",CAPITAL PS (HRA),CONSTRUCTION MAIN CONTRACT - CERTIFICATED,2102486786
04.05.2016,HOUSING HRA,JOHN BURKE ASSOCIATES,384,CAPITAL PS (HRA),LAND & BUILDINGS ACQUISITION FEES,5902190094
04.05.2016,HOUSING HRA,MOTT MACDONALD LTD,730,CAPITAL PS (HRA),LAND & BUILDINGS ACQUISITION FEES,5902190101
04.05.2016,HOUSING HRA,GEOFFREY OSBORNE LIMITED,"359,081.00",CAPITAL PS (REGEN),CONSTRUCTION MAIN CONTRACT - CERTIFICATED,2102486787
04.05.2016,LEISURE DIRECTORATE,EDF ENERGY PLC,287.43,CEMETERIES,ELECTRICITY,5902190218
04.05.2016,LEISURE DIRECTORATE,BRITISH GAS BUSINESS,840.55,CEMETERIES,GAS,5902190026
04.05.2016,LEISURE DIRECTORATE,VEOLIA ES (UK)LTD,825.8,CEMETERIES,OTHER CONTRACTORS,5902190055
04.05.2016,LEISURE DIRECTORATE,STANBURY & SWK BLDG SVCS LTD,545,CEMETERIES,OTHER R&M,5902190033
04.05.2016,LEISURE DIRECTORATE,STANBURY & SWK BLDG SVCS LTD,545,CEMETERIES,OTHER R&M,5902190036
04.05.2016,LEISURE DIRECTORATE,CLIVE BARFORD LIMITED,399,CEMETERIES,VEHICLE LEASING CHARGES,5902190086
04.05.2016,LEISURE DIRECTORATE,CITY OF LONDON,445,CREMATORIUM,HIRE OF ROOMS/HALLS,5902190125
04.05.2016,LEISURE DIRECTORATE,JOHN ROBINSON ELECTRICAL,448.14,CREMATORIUM,OTHER R&M,5902190105
04.05.2016,LEISURE DIRECTORATE,JOHN ROBINSON ELECTRICAL,431.8,CREMATORIUM,OTHER R&M,5902190106
04.05.2016,LEISURE DIRECTORATE,HONOR OAK GROUP PRACTICE,770.5,CREMATORIUM,PROFESSIONAL FEES,5902190108
04.05.2016,LEISURE DIRECTORATE,HONOR OAK GROUP PRACTICE,"1,115.50",CREMATORIUM,PROFESSIONAL FEES,5902190109
04.05.2016,LEISURE DIRECTORATE,KENT COUNTY COUNCIL - LASER,824.8,CREMATORIUM,GAS,5902190027
04.05.2016,LEISURE DIRECTORATE,KENT COUNTY COUNCIL - LASER,394.94,CREMATORIUM,GAS,5902190029
04.05.2016,LEISURE DIRECTORATE,EDF ENERGY PLC,431.41,NUNHEAD CEMETERY,ELECTRICITY,5902190035
04.05.2016,MODERNISATION,CYRIL SWEETT LTD,"1,200.00",COMMERCIAL PROPERTIES,PROFESSIONAL FEES,5902190099
04.05.2016,MODERNISATION HGF,TFL TELESALES,850,160 TOOLEY ST.,PUBLIC TRANSPORT,5902190223
04.05.2016,MODERNISATION HGF,A N CONTRACT SERVICES LTD,"5,074.68",REPAIR AND MAINTENANCE SERVICES,BUILDING R&M,2102486788
04.05.2016,PECKHAM AND NUNHEAD COMMUNITY COUNCIL,LINDLEY ESTATE TRA ,"1,000.00",BUILDING COMMUNITY SPIRIT IN LINDLEY ,GRANTS,CHEQUE PAYMENT
04.05.2016,PECKHAM AND NUNHEAD COMMUNITY COUNCIL,MCSAS-HEARTS OF LOVE ,"1,000.00",YOUTH MODERN FINE-ARTS ON CANVAS,GRANTS,CHEQUE PAYMENT
04.05.2016,PLANNING AND TRANSPORT,REDACTED PERSONAL DATA,720,BUILDING CONTROL,DISCRETIONARY FIXED FEES & INCOME,5902190173
04.05.2016,PLANNING AND TRANSPORT,IDOX SOFWARE LIMITED,"1,250.00",VALIDATION & FAST TRACK,TRAINING,5902190063
04.05.2016,PUBLIC HEALTH,AAM PHARMA LTD T/A A R CHEMIST,"1,546.00",ADULT TREATMENT,OTHER CONTRACTORS,5902190189
04.05.2016,PUBLIC HEALTH,BOOTS UK LTD,726,ADULT TREATMENT,OTHER CONTRACTORS,5902190199
04.05.2016,PUBLIC HEALTH,MEDWAY NHS FOUNDATION TRUST,295.9,SEXUAL HEALTH - STI,EXTERNAL AGENCIES AND BODIES,5902190180
04.05.2016,PUBLIC HEALTH,NORTH MIDDLESEX UNIVERSITY HOSPITAL,314.72,SEXUAL HEALTH - STI,EXTERNAL AGENCIES AND BODIES,5902190187
04.05.2016,REGENERATION,ACCESS LIFTS LTD,"1,275.00",CPHA  MANAGED PROPERTIES,BUILDING R&M,5902190082
04.05.2016,REGENERATION,E.ON,"1,750.48",LBS SOJOURNER TRUTH COMMUNITY CENTRE,ELECTRICITY,5902190085
04.05.2016,REGENERATION,WYG ENGINEERING LTD,"3,470.00",PECKHAM/CAMBERWELL SITES-FEES/MPLAN,PROFESSIONAL FEES,5902190091
04.05.2016,REGENERATION,HOARE LEA CONSULTING ENGINEERS,"5,000.00",PECKHAM/CAMBERWELL SITES-FEES/MPLAN,PROFESSIONAL FEES,5902190093
04.05.2016,SOCIAL SERVICES,THAMES HOMECARE SERVICE LTD,351,OP - HOMECARE,HOMECARE - SPOT,2102486554
04.05.2016,SOCIAL SERVICES,THAMES HOMECARE SERVICE LTD,702,OP - HOMECARE,HOMECARE - SPOT,2102486558
04.05.2016,SOCIAL SERVICES,THAMES HOMECARE SERVICE LTD,"3,381.30",OP - HOMECARE,HOMECARE - SPOT,2102486560
04.05.2016,SOCIAL SERVICES,THAMES HOMECARE SERVICE LTD,"3,147.30",OP - HOMECARE,HOMECARE - SPOT,2102486562
04.05.2016,SOCIAL SERVICES,THAMES HOMECARE SERVICE LTD,"2,521.35",OP - HOMECARE,HOMECARE - SPOT,2102486564
04.05.2016,SOCIAL SERVICES,SWK DISABLEMENT ASSN,464,OP - HOMECARE,HOMECARE - SPOT,2102486750
04.05.2016,SOCIAL SERVICES,SWK DISABLEMENT ASSN,622.34,OP - HOMECARE,HOMECARE - SPOT,2102486753
04.05.2016,SOCIAL SERVICES,SWK DISABLEMENT ASSN,500.82,OP - HOMECARE,HOMECARE - SPOT,2102486754
04.05.2016,SOCIAL SERVICES,SWK DISABLEMENT ASSN,"1,649.75",OP CARE PACKAGES,HOMECARE - SPOT,2102486749
04.05.2016,SOCIAL SERVICES,SWK DISABLEMENT ASSN,"2,570.39",OP CARE PACKAGES,HOMECARE - SPOT,2102486752
04.05.2016,SOCIAL SERVICES,REDACTED PERSONAL DATA,600,PETTY CASH/PERSONAL ALLOWANCE,OTHER PAYMENTS FOR CLIENTS,5902190130
04.05.2016,SOCIAL SERVICES,CHINESE ASSOCIATION OF TOWER HAMLET,714,PWPD HOME CARE IND,HOMECARE - SPOT,2102486552
04.05.2016,SOCIAL SERVICES,SWK DISABLEMENT ASSN,887.04,REABLEMENT SERVICE,HOMECARE - SPOT,2102486751
04.05.2016,SOCIAL SERVICES,CANAAN RESTAURANT LTD,365,SOUTHWARK BLACK MENTAL HEALTH PROJECT,CATERING MATERIALS & SUPPLIES,5902190190
04.05.2016,SOCIAL SERVICES,M C TECHNICIANS LTD,360,SOUTHWARK RESOURCE CENTRE,PUBLIC TRANSPORT,5902190102
04.05.2016,SOUTHWARK BUILDING SERVICES,WHITTEN TIMBER LTD,276.48,BERMONDSEY DAY TO DAY - CARPENTER,MATERIALS,5902190163
04.05.2016,SOUTHWARK BUILDING SERVICES,FAYERS PLUMBING & BUILDING SUPPLIES,564.6,BERMONDSEY DAY TO DAY - ELECTRICIAN,MATERIALS,5902190146
04.05.2016,SOUTHWARK BUILDING SERVICES,LAKEDALE POWER TOOLS,365.68,BOR & BKSIDE DAY TO DAY - CARPENTER,"OP.LEASE/HIRE CHARGES: PLANT, EQUIPT & FURNITURE",5902190049
04.05.2016,SOUTHWARK BUILDING SERVICES,FAYERS PLUMBING & BUILDING SUPPLIES,298.46,ELECTRICAL TEAM - ELECTRICIAN,MATERIALS,5902190021
04.05.2016,SOUTHWARK BUILDING SERVICES,LAKEDALE POWER TOOLS,345,ELECTRICAL TEAM - ELECTRICIAN,MATERIALS,5902190216
04.05.2016,SOUTHWARK BUILDING SERVICES,LAKEDALE POWER TOOLS,434,R & M OVERHEADS,"OP.LEASE/HIRE CHARGES: PLANT, EQUIPT & FURNITURE",5902190046
04.05.2016,SOUTHWARK BUILDING SERVICES,PEARSON GLAZING LIMITED,397.16,ROTHERHITHE DAY TO DAY - GLAZIER,MATERIALS,5902190183
04.05.2016,SOUTHWARK BUILDING SERVICES,LAKEDALE POWER TOOLS,"3,263.00",STORES/LOGISTICS,"OP.LEASE/HIRE CHARGES: PLANT, EQUIPT & FURNITURE",5902190217
04.05.2016,SOUTHWARK BUILDING SERVICES,LAKEDALE POWER TOOLS,"3,520.00",STORES/LOGISTICS,"OP.LEASE/HIRE CHARGES: PLANT, EQUIPT & FURNITURE",5902190219
04.05.2016,SOUTHWARK SCHOOL FOR FUTURE,SPA SCHOOL,607,CAPITAL PS (REGEN),CONSTRUCTION,5902190110
04.05.2016,SOUTHWARK SCHOOL FOR FUTURE,SPA SCHOOL,"3,581.50",CAPITAL PS (REGEN),CONSTRUCTION,5902190112
04.05.2016,SOUTHWARK SCHOOL FOR FUTURE,SPA SCHOOL,"3,461.29",CAPITAL PS (REGEN),CONSTRUCTION,5902190114
04.05.2016,SOUTHWARK SCHOOL FOR FUTURE,SPA SCHOOL,"6,015.00",CAPITAL PS (REGEN),CONSTRUCTION,5902190115
04.05.2016,SOUTHWARK SCHOOL FOR FUTURE,SPA SCHOOL,"7,385.00",CAPITAL PS (REGEN),CONSTRUCTION,5902190118
04.05.2016,SOUTHWARK SCHOOL FOR FUTURE,SPA SCHOOL,"10,000.00",CAPITAL PS (REGEN),CONSTRUCTION,5902190119
04.05.2016,STRATEGIC FINANCING BUDGETS,BROWNE JACOBSON SOLICITORS,"2,139.50",PROPERTY RELATED INSURANCE,PROFESSIONAL FEES,5902190185
05.05.2016,-,EDWARDES BROS (DULWICH) LTD,"1,100.00",-,-,5902190308
05.05.2016,-,TOUCAN TOOL CO LTD,437.5,-,-,5902190345
05.05.2016,-,TOUCAN TOOL CO LTD,275,-,-,5902190352
05.05.2016,-,TOUCAN TOOL CO LTD,332.5,-,-,5902190352
05.05.2016,-,TOUCAN TOOL CO LTD,396,-,-,5902190352
05.05.2016,-,C A BALDWIN & CO LTD,284.8,-,-,5902190371
05.05.2016,-,C A BALDWIN & CO LTD,"2,891.70",-,-,5902190371
05.05.2016,-,CORBYS & CO,270,-,-,5902190473
05.05.2016,-,DR SARA HUNTON,300,BENEFITS,LEGAL FEES & COURT COSTS,2102486826
05.05.2016,-,SPOKEMEAD MAINTENANCE LTD,"73,521.02",PAYMENTS CONTROL ACCOUNT - SPOKEMEAD,MANUAL CREDITORS,5902190266
05.05.2016,-,SPOKEMEAD MAINTENANCE LTD,"125,000.00",PAYMENTS CONTROL ACCOUNT - SPOKEMEAD,MANUAL CREDITORS,5902190266
05.05.2016,-,SCCI ALPHATRACK LTD,"56,793.33",SCCI ALPHATRACK,MANUAL CREDITORS,5902190343
05.05.2016,-,CLYDE & CO,"5,909.52",VAT INPUTS - ADJUSTMENTS,VAT CONTROL ACCOUNT,2102486799
05.05.2016,-,CLYDE & CO,781.41,VAT INPUTS - ADJUSTMENTS,VAT CONTROL ACCOUNT,2102486800
05.05.2016,-,DWF LLP,395.6,VAT INPUTS - ADJUSTMENTS,VAT CONTROL ACCOUNT,2102486804
05.05.2016,-,DWF LLP,388.72,VAT INPUTS - ADJUSTMENTS,VAT CONTROL ACCOUNT,2102486805
05.05.2016,-,DWF LLP,264,VAT INPUTS - ADJUSTMENTS,VAT CONTROL ACCOUNT,2102486807
05.05.2016,-,BROWNE JACOBSON SOLICITORS,324.6,VAT INPUTS - ADJUSTMENTS,VAT CONTROL ACCOUNT,2102486801
05.05.2016,ASSET MANAGEMENT,EURO CONTRACTS (LONDON) LTD,609,ADAPTATIONS,BUILDING R&M,5902190431
05.05.2016,ASSET MANAGEMENT,ROYAL INSTITUTION OF CHARTERED SURVEYORS,399,DESIGN & DELIVERY (NORTH),ALLOWANCES,5902190296
05.05.2016,ASSET MANAGEMENT,ICONIC ARCHITECTURE LTD,"1,900.00",DEVELOPMENT DELIVERY,PROFESSIONAL FEES,5902190474
05.05.2016,ASSET MANAGEMENT,ICONIC ARCHITECTURE LTD,"1,900.00",DEVELOPMENT DELIVERY,PROFESSIONAL FEES,5902190475
05.05.2016,"BOROUGH, BANKSIDE & WALWORTH COMMUNITY COUNCIL",MINT STREET MUSIC FESTIVAL TEAM / PLANE TREE ARTS ,"1,019.91",GREAT SUFFOLK STREET MARDI GRAS ,GRANTS,CHEQUE PAYMENT
05.05.2016,"BOROUGH, BANKSIDE & WALWORTH COMMUNITY COUNCIL",LATIN AMERICAN DISABLED PEOPLE'S PROJECT ,"3,000.00",LADPP COMMUNITY INTEGRATION PROJECT ,GRANTS,CHEQUE PAYMENT
05.05.2016,"BOROUGH, BANKSIDE & WALWORTH COMMUNITY COUNCIL",MINT STREET MUSIC FESTIVAL TEAM ,"2,939.00",MINT STREET MUSIC FESTIVAL 2016 ,GRANTS,CHEQUE PAYMENT
05.05.2016,BUSINESS SUPPORT SERVICES CO-ORDINATION,AIRWAVE SOLUTIONS LIMITED,426.36,RESILIENCE AND EMERGENCY PLANNING,COMMUNICATIONS & COMPUTING CONTRACT CHARGES,5902190304
05.05.2016,CAMBERWELL COMMUNITY COUNCIL,THEATRE PECKHAM,"3,690.00",COMMUNITY CHOIR AND PARENTS GROUP,GRANTS,CHEQUE PAYMENT
05.05.2016,CENTRAL FUNCTIONS,STANDAGE & CO LTD,"27,576.00",ELMINGTON,BUILDING R&M,2102486776
05.05.2016,CENTRAL FUNCTIONS,LAURA WEST,400,HOME OWNERSHIP,LEGAL FEES & COURT COSTS,2102486857
05.05.2016,CHIEF EXECUTIVE,SYD BISHOP & SONS(DEMOLITION) LTD,"23,565.62",CAPITAL PS (LEISURE),CONSTRUCTION MAIN CONTRACT - CERTIFICATED,2102487160
05.05.2016,CHIEF EXECUTIVE,SAVILLS (L&P) LTD,"5,019.50",CAPITAL PS (REGEN),CONSTRUCTION FEES - EXTERNAL,5902189909
05.05.2016,CHIEF EXECUTIVE'S OFFICE,COMMUNITIES INTO TRAINING & EMPLOYMENT,"23,797.00",CHIEF EXEC'S OFFICE,GRANTS,5902190421
05.05.2016,CHILDREN'S SERVICES,SOUTH LONDON  MAUDSLEY NHS FOUNDATION TRUST,"15,000.00",BUSINESS DEVELOPMENT,EXTERNAL AGENCIES AND BODIES,5902190241
05.05.2016,CHILDREN'S SERVICES,CAPITA BUSINESS SERVICES LTD,"2,872.00",CAMBERWELL & DULWICH SURE START,TRAINING,5902190420
05.05.2016,CHILDREN'S SERVICES,GREATER MANCHESTER WEST MENTAL HEALTH NHS FOUNDATION TRUST,520,CARE PRACTICE GROUP SET B,OTHER PAYMENTS FOR CLIENTS,5902190240
05.05.2016,CHILDREN'S SERVICES,LONDON ASYLUM SEEKERS CONSORTIUM,"4,500.00",CONSORTIUM,SUBSCRIPTIONS,5902188595
05.05.2016,CHILDREN'S SERVICES,MARTINS UPHOLSTERY SUPPLIES LTD,309.65,DIRECT DELIVERY,MATERIALS,5902190497
05.05.2016,CHILDREN'S SERVICES,REDACTED PERSONAL DATA,300,FURTHER EDUCATION SUPPORT,CLIENT TRANSPORT,2102486903
05.05.2016,CHILDREN'S SERVICES,INTERSERVE HEALTHCARE,448.94,HOME 2 SCHOOL TRANSPORT,CAB FARES,5902190492
05.05.2016,CHILDREN'S SERVICES,BRETT WILSON LLP,"3,600.00",LEGAL,LEGAL FEES & COURT COSTS,2102486812
05.05.2016,CHILDREN'S SERVICES,REDACTED PERSONAL DATA,390.38,LEGAL,LEGAL FEES & COURT COSTS,2102486825
05.05.2016,CHILDREN'S SERVICES,REDACTED PERSONAL DATA,272,LEGAL,LEGAL FEES & COURT COSTS,2102486832
05.05.2016,CHILDREN'S SERVICES,ADRIAN DAVIS,"1,567.50",LEGAL,LEGAL FEES & COURT COSTS,2102486809
05.05.2016,CHILDREN'S SERVICES,COLIN RAYNER,"1,080.00",LEGAL,LEGAL FEES & COURT COSTS,2102486817
05.05.2016,CHILDREN'S SERVICES,DAMIAN WOODWARD-CARLTON,500,LEGAL,LEGAL FEES & COURT COSTS,2102486819
05.05.2016,CHILDREN'S SERVICES,DAMIAN WOODWARD-CARLTON,300,LEGAL,LEGAL FEES & COURT COSTS,2102486820
05.05.2016,CHILDREN'S SERVICES,JESSICA LEE,350,LEGAL,LEGAL FEES & COURT COSTS,2102486828
05.05.2016,CHILDREN'S SERVICES,JESSICA LEE,300,LEGAL,LEGAL FEES & COURT COSTS,2102486829
05.05.2016,CHILDREN'S SERVICES,JESSICA LEE,300,LEGAL,LEGAL FEES & COURT COSTS,2102486830
05.05.2016,CHILDREN'S SERVICES,JESSICA LEE,350,LEGAL,LEGAL FEES & COURT COSTS,2102486831
05.05.2016,CHILDREN'S SERVICES,REHNA AZIM,350,LEGAL,LEGAL FEES & COURT COSTS,2102486838
05.05.2016,CHILDREN'S SERVICES,RICHARD LITTLE,"1,000.00",LEGAL,LEGAL FEES & COURT COSTS,2102486839
05.05.2016,CHILDREN'S SERVICES,RICHARD LITTLE,300,LEGAL,LEGAL FEES & COURT COSTS,2102486840
05.05.2016,CHILDREN'S SERVICES,RICHARD LITTLE,350,LEGAL,LEGAL FEES & COURT COSTS,2102486841
05.05.2016,CHILDREN'S SERVICES,RICHARD LITTLE,300,LEGAL,LEGAL FEES & COURT COSTS,2102486842
05.05.2016,CHILDREN'S SERVICES,RICHARD LITTLE,300,LEGAL,LEGAL FEES & COURT COSTS,2102486843
05.05.2016,CHILDREN'S SERVICES,RICHARD LITTLE,500,LEGAL,LEGAL FEES & COURT COSTS,2102486844
05.05.2016,CHILDREN'S SERVICES,SHARAN BHACHU,350,LEGAL,LEGAL FEES & COURT COSTS,2102486846
05.05.2016,CHILDREN'S SERVICES,JAMES ALLEN GIRLS SCHOOL,525,POST ADOPTION ADVISE & SUPPORT,EXTERNAL AGENCIES AND BODIES,5902190243
05.05.2016,CHILDREN'S SERVICES,PRESTIGE ADOLESCENT CARE & EDUCATION LTD,"13,800.08",RESIDENTIAL,OTHER PAYMENTS FOR CLIENTS,5902190062
05.05.2016,CHILDREN'S SERVICES,ZENITH CARS LTD,780,S & FAM SUPP - PRAC GRP A SET 14-16,HIRED VEHICLES,5902190239
05.05.2016,CHILDREN'S SERVICES,REDACTED PERSONAL DATA,"2,020.00",SEMI INDEPENDENT,OTHER PAYMENTS FOR CLIENTS,2102486906
05.05.2016,CHILDREN'S SERVICES,INTERSERVE HEALTHCARE,743.34,SPECIALIST CARE,SECTION 17 PAYMENTS TO AGENCIES/CARERS,2102486937
05.05.2016,CHILDREN'S SERVICES,NESTOR PRIMECARE SERVICES LTD,"1,125.80",SPECIALIST CARE,SECTION 17 PAYMENTS TO AGENCIES/CARERS,2102487029
05.05.2016,CHILDREN'S SERVICES,NESTOR PRIMECARE SERVICES LTD,693.75,SPECIALIST CARE,SECTION 17 PAYMENTS TO AGENCIES/CARERS,2102487030
05.05.2016,CHILDREN'S SERVICES,MEDACS HOMECARE,541.13,SPECIALIST CARE,SECTION 17 PAYMENTS TO AGENCIES/CARERS,2102487035
05.05.2016,CHILDREN'S SERVICES,MEDACS HOMECARE,490.62,SPECIALIST CARE,SECTION 17 PAYMENTS TO AGENCIES/CARERS,2102487039
05.05.2016,CHILDREN'S SERVICES,MEDACS HOMECARE,"1,168.83",SPECIALIST CARE,SECTION 17 PAYMENTS TO AGENCIES/CARERS,2102487040
05.05.2016,CHILDREN'S SERVICES,MEDACS HOMECARE,389.61,SPECIALIST CARE,SECTION 17 PAYMENTS TO AGENCIES/CARERS,2102487041
05.05.2016,CHILDREN'S SERVICES,MEDACS HOMECARE,288.6,SPECIALIST CARE,SECTION 17 PAYMENTS TO AGENCIES/CARERS,2102487044
05.05.2016,CHILDREN'S SERVICES,MEDACS HOMECARE,418.47,SPECIALIST CARE,SECTION 17 PAYMENTS TO AGENCIES/CARERS,2102487045
05.05.2016,CHILDREN'S SERVICES,MEDACS HOMECARE,"3,766.23",SPECIALIST CARE,SECTION 17 PAYMENTS TO AGENCIES/CARERS,2102487046
05.05.2016,CHILDREN'S SERVICES,MEDACS HOMECARE,324.68,SPECIALIST CARE,SECTION 17 PAYMENTS TO AGENCIES/CARERS,2102487047
05.05.2016,CHILDREN'S SERVICES,MEDACS HOMECARE,389.61,SPECIALIST CARE,SECTION 17 PAYMENTS TO AGENCIES/CARERS,2102487048
05.05.2016,CHILDREN'S SERVICES,MEDACS HOMECARE,367.97,SPECIALIST CARE,SECTION 17 PAYMENTS TO AGENCIES/CARERS,2102487050
05.05.2016,CHILDREN'S SERVICES,MEDACS HOMECARE,346.32,SPECIALIST CARE,SECTION 17 PAYMENTS TO AGENCIES/CARERS,2102487051
05.05.2016,CHILDREN'S SERVICES,MEDACS HOMECARE,404.04,SPECIALIST CARE,SECTION 17 PAYMENTS TO AGENCIES/CARERS,2102487054
05.05.2016,CHILDREN'S SERVICES,REDACTED PERSONAL DATA,377.2,SPECIALIST CARE,SECTION 17 PAYMENTS TO CLIENTS,2102487138
05.05.2016,COMMUNITIES,REDACTED PERSONAL DATA,256,NRPF CHILDREN,SECTION 17 PAYMENTS TO AGENCIES/CARERS,5902190394
05.05.2016,CUSTOMER SERVICES HGF,CORONERS' COURTS SUPPORT SERVICE,462.32,CORONER'S,OTHER CONTRACTORS,5902190305
05.05.2016,CUSTOMER SERVICES HGF,CORONERS' COURTS SUPPORT SERVICE,462.32,CORONER'S,OTHER CONTRACTORS,5902190307
05.05.2016,CUSTOMER SERVICES HGF,FRAMA (UK) LTD,700,CORONER'S,POSTAGES,5902190279
05.05.2016,CUSTOMER SERVICES HGF,PHS GROUP PLC,447.59,HOMELESS PROJECTS,OFFICE EXPENSES,5902190331
05.05.2016,CUSTOMER SERVICES HGF,REDACTED PERSONAL DATA,624.54,HOMELESS PROJECTS,LEGAL FEES & COURT COSTS,2102486808
05.05.2016,CUSTOMER SERVICES HGF,HANSEN PALOMARES SOLICITORS,"6,000.00",HOMELESS PROJECTS,LEGAL FEES & COURT COSTS,2102486827
05.05.2016,CUSTOMER SERVICES HGF,DONALD BROATCH,412.5,HOMELESS PROJECTS,LEGAL FEES & COURT COSTS,2102486823
05.05.2016,DULWICH COMMUNITY COUNCIL,YOUTH LEARNING NETWORK ,"3,312.00",ROUTES TO SUCCESS PROGRAMME ,GRANTS,CHEQUE PAYMENT
05.05.2016,DULWICH COMMUNITY COUNCIL,"ST STEPHEN'S CHURCH ""OUT AND ABOUT"" CLUB ","3,000.00","ST STEPHEN'S CHURCH ""OUT AND ABOUT"" CLUB ",GRANTS,CHEQUE PAYMENT
05.05.2016,ENVIRONMENT AND LEISURE,CJS PLANTS,598.33,CAPITAL PS (LEISURE),CONSTRUCTION MAIN CONTRACT - NON CERTIFICATED,5902190354
05.05.2016,ENVIRONMENT AND LEISURE,PALMSTEAD NURSERIES LTD,450.68,CAPITAL PS (LEISURE),CONSTRUCTION MAIN CONTRACT - NON CERTIFICATED,5902190476
05.05.2016,ENVIRONMENT DIRECTORATE,CLOSE BROTHERS VEHICLE HIRE LTD,256.2,COMMERCIAL VEH CTRL A/C,HIRED VEHICLES,5902190267
05.05.2016,ENVIRONMENT DIRECTORATE,CLOSE BROTHERS VEHICLE HIRE LTD,256.2,COMMERCIAL VEH CTRL A/C,HIRED VEHICLES,5902190268
05.05.2016,ENVIRONMENT DIRECTORATE,CLOSE BROTHERS VEHICLE HIRE LTD,273,COMMERCIAL VEH CTRL A/C,HIRED VEHICLES,5902190269
05.05.2016,ENVIRONMENT DIRECTORATE,CLOSE BROTHERS VEHICLE HIRE LTD,273,COMMERCIAL VEH CTRL A/C,HIRED VEHICLES,5902190271
05.05.2016,ENVIRONMENT DIRECTORATE,CLOSE BROTHERS VEHICLE HIRE LTD,472.08,COMMERCIAL VEH CTRL A/C,HIRED VEHICLES,5902190273
05.05.2016,ENVIRONMENT DIRECTORATE,CLOSE BROTHERS VEHICLE HIRE LTD,367.34,COMMERCIAL VEH CTRL A/C,HIRED VEHICLES,5902190277
05.05.2016,ENVIRONMENT DIRECTORATE,DAWSON RENTALS SWEEPERS,"2,226.00",COMMERCIAL VEH CTRL A/C,HIRED VEHICLES,5902190278
05.05.2016,ENVIRONMENT DIRECTORATE,DAWSON RENTALS SWEEPERS,"2,226.00",COMMERCIAL VEH CTRL A/C,HIRED VEHICLES,5902190280
05.05.2016,ENVIRONMENT DIRECTORATE,DAWSON RENTALS SWEEPERS,"2,226.00",COMMERCIAL VEH CTRL A/C,HIRED VEHICLES,5902190282
05.05.2016,ENVIRONMENT DIRECTORATE,DAWSON RENTALS SWEEPERS,"2,226.00",COMMERCIAL VEH CTRL A/C,HIRED VEHICLES,5902190285
05.05.2016,ENVIRONMENT DIRECTORATE,PACE ACCIDENT REPAIRS CENTRE LTD,360,COMMERCIAL VEH CTRL A/C,HIRED VEHICLES,5902190302
05.05.2016,ENVIRONMENT DIRECTORATE,PACE ACCIDENT REPAIRS CENTRE LTD,360,COMMERCIAL VEH CTRL A/C,HIRED VEHICLES,5902190309
05.05.2016,ENVIRONMENT DIRECTORATE,PACE ACCIDENT REPAIRS CENTRE LTD,360,COMMERCIAL VEH CTRL A/C,HIRED VEHICLES,5902190310
05.05.2016,ENVIRONMENT DIRECTORATE,PACE ACCIDENT REPAIRS CENTRE LTD,360,COMMERCIAL VEH CTRL A/C,HIRED VEHICLES,5902190313
05.05.2016,ENVIRONMENT DIRECTORATE,DAWSON RENTALS SWEEPERS,"2,216.08",COMMERCIAL VEH CTRL A/C,HIRED VEHICLES,5902190337
05.05.2016,ENVIRONMENT DIRECTORATE,DAWSON RENTALS SWEEPERS,"2,216.08",COMMERCIAL VEH CTRL A/C,HIRED VEHICLES,5902190338
05.05.2016,ENVIRONMENT DIRECTORATE,GULLIVERS TRUCK HIRE LTD,915,COMMERCIAL VEH CTRL A/C,HIRED VEHICLES,5902190349
05.05.2016,ENVIRONMENT DIRECTORATE,TIPPERHIRE LTD,"10,125.00",COMMERCIAL VEH CTRL A/C,HIRED VEHICLES,5902190374
05.05.2016,ENVIRONMENT DIRECTORATE,R J MOTORS LIMITED,426.5,COMMERCIAL VEH CTRL A/C,VEHICLE REPAIRS & MAINTENANCE,5902190317
05.05.2016,ENVIRONMENT DIRECTORATE,R J MOTORS LIMITED,383.72,COMMERCIAL VEH CTRL A/C,VEHICLE REPAIRS & MAINTENANCE,5902190322
05.05.2016,ENVIRONMENT DIRECTORATE,R J MOTORS LIMITED,576.5,COMMERCIAL VEH CTRL A/C,VEHICLE REPAIRS & MAINTENANCE,5902190327
05.05.2016,ENVIRONMENT DIRECTORATE,LONDON HIRE LIMITED,"1,188.30",FLEET INSURANCE WORKS,TRANSPORT INSURANCE COSTS,5902190347
05.05.2016,ENVIRONMENT DIRECTORATE,PACE ACCIDENT REPAIRS CENTRE LTD,"1,310.33",FLEET INSURANCE WORKS,TRANSPORT INSURANCE COSTS,5902190452
05.05.2016,ENVIRONMENT DIRECTORATE,PACE ACCIDENT REPAIRS CENTRE LTD,"1,189.26",FLEET INSURANCE WORKS,TRANSPORT INSURANCE COSTS,5902190454
05.05.2016,ENVIRONMENT DIRECTORATE,PACE ACCIDENT REPAIRS CENTRE LTD,"1,900.84",FLEET INSURANCE WORKS,TRANSPORT INSURANCE COSTS,5902190457
05.05.2016,ENVIRONMENT DIRECTORATE,PACE ACCIDENT REPAIRS CENTRE LTD,782.6,FLEET INSURANCE WORKS,TRANSPORT INSURANCE COSTS,5902190458
05.05.2016,ENVIRONMENT DIRECTORATE,PACE ACCIDENT REPAIRS CENTRE LTD,"3,399.68",FLEET INSURANCE WORKS,TRANSPORT INSURANCE COSTS,5902190459
05.05.2016,ENVIRONMENT DIRECTORATE,PACE ACCIDENT REPAIRS CENTRE LTD,"2,316.98",FLEET INSURANCE WORKS,TRANSPORT INSURANCE COSTS,5902190463
05.05.2016,ENVIRONMENT DIRECTORATE,SHIAN HOUSING ASSOCIATION LTD,"1,250.00",SAFE ACCOMMODATION PROJECT,PROFESSIONAL FEES,5902190442
05.05.2016,ENVIRONMENT DIRECTORATE,SHIAN HOUSING ASSOCIATION LTD,"2,000.00",SAFE ACCOMMODATION PROJECT,PROFESSIONAL FEES,5902190445
05.05.2016,ENVIRONMENT DIRECTORATE,SHIAN HOUSING ASSOCIATION LTD,"1,250.00",SAFE ACCOMMODATION PROJECT,PROFESSIONAL FEES,5902190448
05.05.2016,ENVIRONMENT DIRECTORATE,SHIAN HOUSING ASSOCIATION LTD,"1,500.00",SAFE ACCOMMODATION PROJECT,PROFESSIONAL FEES,5902190451
05.05.2016,ENVIRONMENT DIRECTORATE,SHIAN HOUSING ASSOCIATION LTD,"3,750.00",SAFE ACCOMMODATION PROJECT,PROFESSIONAL FEES,5902190453
05.05.2016,ENVIRONMENT DIRECTORATE,CASEY'S REMOVALS,290,SAFE ACCOMMODATION PROJECT,REMOVAL EXPENSES,5902190499
05.05.2016,ENVIRONMENT DIRECTORATE,CONWAY AECOM LTD,"8,220.79",TRANSPORT ENGINEERING,CONSULTANTS SERVICES,2102487147
05.05.2016,F & C S EXCLUDING CORPORATE BUDGETS,HMCTS,"1,200.00",CORPORATE SERVICES,LEGAL FEES & COURT COSTS,5902190488
05.05.2016,F & C S EXCLUDING CORPORATE BUDGETS,EDF ENERGY PLC,-966.37,PAYMENTS CONTROL,OFFICE EXPENSES,2102487157
05.05.2016,HOUSING HRA,MOTT MACDONALD LTD,"1,483.28",CAPITAL PS (HRA),CONSTRUCTION FEES - EMPLOYERS AGENT,5902190424
05.05.2016,HOUSING HRA,MOTT MACDONALD LTD,750.1,CAPITAL PS (HRA),CONSTRUCTION FEES - EMPLOYERS AGENT,5902190426
05.05.2016,HOUSING HRA,MOTT MACDONALD LTD,"1,483.28",CAPITAL PS (HRA),CONSTRUCTION FEES - EMPLOYERS AGENT,5902190427
05.05.2016,HOUSING HRA,MOTT MACDONALD LTD,750.1,CAPITAL PS (HRA),CONSTRUCTION FEES - EMPLOYERS AGENT,5902190432
05.05.2016,HOUSING HRA,MOTT MACDONALD LTD,897.25,CAPITAL PS (HRA),CONSTRUCTION FEES - EMPLOYERS AGENT,5902190433
05.05.2016,HOUSING HRA,PROFILE CONSTRUCTION CONSULTANTS LTD,594.2,CAPITAL PS (HRA),CONSTRUCTION FEES - EXTERNAL,5902190461
05.05.2016,HOUSING HRA,PROFILE CONSTRUCTION CONSULTANTS LTD,"1,270.70",CAPITAL PS (HRA),CONSTRUCTION FEES - EXTERNAL,5902190466
05.05.2016,HOUSING HRA,M C TECHNICIANS LTD,"7,305.00",CAPITAL PS (HRA),CONSTRUCTION MAIN CONTRACT - NON CERTIFICATED,2102487148
05.05.2016,HOUSING HRA,M C TECHNICIANS LTD,"9,845.00",CAPITAL PS (HRA),CONSTRUCTION MAIN CONTRACT - NON CERTIFICATED,2102487149
05.05.2016,HOUSING HRA,L H BRIDGE LTD,"6,260.00",CAPITAL PS (HRA),CONSTRUCTION MAIN CONTRACT - NON CERTIFICATED,2102487150
05.05.2016,HOUSING HRA,L H BRIDGE LTD,"8,265.00",CAPITAL PS (HRA),CONSTRUCTION MAIN CONTRACT - NON CERTIFICATED,2102487151
05.05.2016,HOUSING HRA,M C TECHNICIANS LTD,"5,215.00",CAPITAL PS (HRA),CONSTRUCTION MAIN CONTRACT - NON CERTIFICATED,2102487152
05.05.2016,HOUSING HRA,3MS GOLD SERVICES LTD,"5,534.30",CAPITAL PS (HRA),CONSTRUCTION MAIN CONTRACT - NON CERTIFICATED,2102487153
05.05.2016,HOUSING HRA,L H BRIDGE LTD,"1,040.00",CAPITAL PS (HRA),CONSTRUCTION MAIN CONTRACT - NON CERTIFICATED,2102487154
05.05.2016,HOUSING HRA,P K PROPERTIES,"7,405.00",CAPITAL PS (HRA),CONSTRUCTION MAIN CONTRACT - NON CERTIFICATED,2102487155
05.05.2016,HOUSING HRA,M E HORSTEAD,"3,450.00",CAPITAL PS (HRA),CONSTRUCTION MAIN CONTRACT - NON CERTIFICATED,2102487156
05.05.2016,HOUSING HRA,PROFILE CONSTRUCTION CONSULTANTS LTD,521.5,CAPITAL PS (REGEN),CONSTRUCTION FEES - EXTERNAL,5902190439
05.05.2016,LEISURE DIRECTORATE,QUADRON SERVICES LIMITED,445.2,CEMETERIES,GROUNDS MAINTENANCE,5902190360
05.05.2016,LEISURE DIRECTORATE,F G MARSHALL LTD,335,CREMATORIUM,MATERIALS,5902190298
05.05.2016,LEISURE DIRECTORATE,JOHN ROBINSON ELECTRICAL,959.8,CREMATORIUM,OTHER R&M,5902190306
05.05.2016,LEISURE DIRECTORATE,FUSION LIFESTYLE,"2,347.63",FACILITIES MAINTENANCE,BUILDING R&M,5902190428
05.05.2016,LEISURE DIRECTORATE,FUSION LIFESTYLE,"4,695.00",FACILITIES MAINTENANCE,BUILDING R&M,5902190428
05.05.2016,LEISURE DIRECTORATE,FUSION LIFESTYLE,"29,376.83",FACILITIES MAINTENANCE,BUILDING R&M,5902190428
05.05.2016,LEISURE DIRECTORATE,FUSION LIFESTYLE,"2,054.91",FACILITIES MAINTENANCE,BUILDING R&M,5902190434
05.05.2016,LEISURE DIRECTORATE,FUSION LIFESTYLE,"20,000.00",FACILITIES MANAGEMENT,OTHER CONTRACTORS,5902190443
05.05.2016,LEISURE DIRECTORATE,FUSION LIFESTYLE,"26,360.46",FACILITIES MANAGEMENT,OTHER CONTRACTORS,5902190444
05.05.2016,LEISURE DIRECTORATE,FUSION LIFESTYLE,"78,688.00",FACILITIES MANAGEMENT,OTHER CONTRACTORS,5902190444
05.05.2016,LEISURE DIRECTORATE,FUSION LIFESTYLE,"26,477.82",FACILITIES MANAGEMENT,OTHER CONTRACTORS,5902190447
05.05.2016,LEISURE DIRECTORATE,FUSION LIFESTYLE,"78,688.00",FACILITIES MANAGEMENT,OTHER CONTRACTORS,5902190447
05.05.2016,LEISURE DIRECTORATE,FUSION LIFESTYLE,"26,577.58",FACILITIES MANAGEMENT,OTHER CONTRACTORS,5902190449
05.05.2016,LEISURE DIRECTORATE,FUSION LIFESTYLE,"78,688.00",FACILITIES MANAGEMENT,OTHER CONTRACTORS,5902190449
05.05.2016,LEISURE DIRECTORATE,CM & HANNELLY BUILDING SERVICES,740,FOOTBALL FACILITY SOUTHWARK SPORTS GRD,BUILDING R&M,2102487140
05.05.2016,LEISURE DIRECTORATE,CM & HANNELLY BUILDING SERVICES,790,FOOTBALL FACILITY SOUTHWARK SPORTS GRD,BUILDING R&M,2102487141
05.05.2016,LEISURE DIRECTORATE,CM & HANNELLY BUILDING SERVICES,255,FOOTBALL FACILITY SOUTHWARK SPORTS GRD,BUILDING R&M,2102487165
05.05.2016,LEISURE DIRECTORATE,FUSION LIFESTYLE,"3,037.67",GMH MANAGEMENT COSTS,OTHER CONTRACTORS,5902190438
05.05.2016,LEISURE DIRECTORATE,EDF ENERGY PLC,268.93,NUNHEAD CEMETERY,ELECTRICITY,5902190312
05.05.2016,LEISURE DIRECTORATE,EDF ENERGY PLC,747.98,PARKS SERVICES DEVELOPMENT,ELECTRICITY,5902190446
05.05.2016,LEISURE DIRECTORATE,EDF ENERGY PLC,750.51,PARKS SERVICES DEVELOPMENT,ELECTRICITY,5902190456
05.05.2016,MODERNISATION HGF,THE WHO CARES TRUST,500,AYSE CHILDREN'S,TRAINING,5902190364
05.05.2016,MODERNISATION HGF,COMENSURA LTD,"2,922.50",MONTHLY ADMIN FEE,AGENCY STAFF,5902190423
05.05.2016,MODERNISATION HGF,COMENSURA LTD,"387,558.45",WEEKLY PAYMENTS,AGENCY STAFF,5902190423
05.05.2016,PECKHAM AND NUNHEAD COMMUNITY COUNCIL,SOUTHWARK CHILDREN'S BRASS BAND ,"2,000.00",OPEN BRASS ,GRANTS,CHEQUE PAYMENT
05.05.2016,PLANNING AND TRANSPORT,SASHA BLACKMORE,900,BUM & SUPPORT COSTS,LEGAL FEES & COURT COSTS,2102486845
05.05.2016,PUBLIC HEALTH,KRISTAL ENTERPRISES LTD,278,ADULT TREATMENT,OTHER CONTRACTORS,5902190255
05.05.2016,PUBLIC HEALTH,QRYSTAL LTD,"1,134.00",ADULT TREATMENT,OTHER CONTRACTORS,5902190270
05.05.2016,PUBLIC HEALTH,MEDIMPO LTD,"1,432.00",ADULT TREATMENT,OTHER CONTRACTORS,5902190274
05.05.2016,REGENERATION,FIELD FISHER WATERHOUSE,"20,072.10",MISC INDUSTRIAL PROPERTIES,PROFESSIONAL FEES,5902190484
05.05.2016,RESIDENT SERVICES,VICTORIA OSLER,750,BERMONDSEY,LEGAL FEES & COURT COSTS,2102486855
05.05.2016,RESIDENT SERVICES,SOUTHWARK LAW CENTRE,"5,500.00",CAMBERWELL,LEGAL FEES & COURT COSTS,2102486850
05.05.2016,RESIDENT SERVICES,SHAW KELLY,800,CAMBERWELL,LEGAL FEES & COURT COSTS,2102486848
05.05.2016,RESIDENT SERVICES,BELSHAW & CURTIN SOLICITORS,"11,000.00",NUNHEAD,LEGAL FEES & COURT COSTS,2102486811
05.05.2016,RESIDENT SERVICES,WILLIAMS PARTNERS,309.9,NUNHEAD,LEGAL FEES & COURT COSTS,2102486856
05.05.2016,RESIDENT SERVICES,ANTHONY GOLD SOLICITORS,"12,000.00",PECKHAM,LEGAL FEES & COURT COSTS,2102486810
05.05.2016,RESIDENT SERVICES,MALCOLM G SANKEY,540,PECKHAM,LEGAL FEES & COURT COSTS,2102486834
05.05.2016,RESIDENT SERVICES,MALCOLM G SANKEY,360,WALWORTH,LEGAL FEES & COURT COSTS,2102486835
05.05.2016,RESIDENT SERVICES,STEPHEN EVANS,350,WALWORTH,LEGAL FEES & COURT COSTS,2102486853
05.05.2016,SOCIAL SERVICES,THOMAS AMRAOUI,"1,250.00",ELDERLY SOUTH,LEGAL FEES & COURT COSTS,2102486854
05.05.2016,SOCIAL SERVICES,REDACTED PERSONAL DATA,"4,000.00",LODGINGS SCHEME,OTHER PAYMENTS FOR CLIENTS,2102486938
05.05.2016,SOCIAL SERVICES,THAMES HOMECARE SERVICE LTD,321.75,OP - HOMECARE,HOMECARE - SPOT,2102486945
05.05.2016,SOCIAL SERVICES,THAMES HOMECARE SERVICE LTD,362.7,OP - HOMECARE,HOMECARE - SPOT,2102486948
05.05.2016,SOCIAL SERVICES,THAMES HOMECARE SERVICE LTD,415.35,OP - HOMECARE,HOMECARE - SPOT,2102486950
05.05.2016,SOCIAL SERVICES,THAMES HOMECARE SERVICE LTD,333.45,OP - HOMECARE,HOMECARE - SPOT,2102486953
05.05.2016,SOCIAL SERVICES,THAMES HOMECARE SERVICE LTD,842.4,OP - HOMECARE,HOMECARE - SPOT,2102486954
05.05.2016,SOCIAL SERVICES,THAMES HOMECARE SERVICE LTD,737.1,OP - HOMECARE,HOMECARE - SPOT,2102486957
05.05.2016,SOCIAL SERVICES,THAMES HOMECARE SERVICE LTD,374.4,OP - HOMECARE,HOMECARE - SPOT,2102486959
05.05.2016,SOCIAL SERVICES,THAMES HOMECARE SERVICE LTD,438.75,OP - HOMECARE,HOMECARE - SPOT,2102486963
05.05.2016,SOCIAL SERVICES,THAMES HOMECARE SERVICE LTD,304.2,OP - HOMECARE,HOMECARE - SPOT,2102486971
05.05.2016,SOCIAL SERVICES,THAMES HOMECARE SERVICE LTD,269.1,OP - HOMECARE,HOMECARE - SPOT,2102486973
05.05.2016,SOCIAL SERVICES,THAMES HOMECARE SERVICE LTD,"1,380.60",OP - HOMECARE,HOMECARE - SPOT,2102486974
05.05.2016,SOCIAL SERVICES,THAMES HOMECARE SERVICE LTD,520.65,OP - HOMECARE,HOMECARE - SPOT,2102486975
05.05.2016,SOCIAL SERVICES,THAMES HOMECARE SERVICE LTD,450.45,OP - HOMECARE,HOMECARE - SPOT,2102486978
05.05.2016,SOCIAL SERVICES,THAMES HOMECARE SERVICE LTD,432.9,OP - HOMECARE,HOMECARE - SPOT,2102486980
05.05.2016,SOCIAL SERVICES,THAMES HOMECARE SERVICE LTD,456.3,OP - HOMECARE,HOMECARE - SPOT,2102486981
05.05.2016,SOCIAL SERVICES,THAMES HOMECARE SERVICE LTD,900.9,OP - HOMECARE,HOMECARE - SPOT,2102486987
05.05.2016,SOCIAL SERVICES,THAMES HOMECARE SERVICE LTD,900.9,OP - HOMECARE,HOMECARE - SPOT,2102486988
05.05.2016,SOCIAL SERVICES,THAMES HOMECARE SERVICE LTD,263.25,OP - HOMECARE,HOMECARE - SPOT,2102487002
05.05.2016,SOCIAL SERVICES,THAMES HOMECARE SERVICE LTD,368.55,OP - HOMECARE,HOMECARE - SPOT,2102487007
05.05.2016,SOCIAL SERVICES,THAMES HOMECARE SERVICE LTD,900.9,OP - HOMECARE,HOMECARE - SPOT,2102487008
05.05.2016,SOCIAL SERVICES,THAMES HOMECARE SERVICE LTD,415.35,OP - HOMECARE,HOMECARE - SPOT,2102487009
05.05.2016,SOCIAL SERVICES,THAMES HOMECARE SERVICE LTD,286.65,OP - HOMECARE,HOMECARE - SPOT,2102487010
05.05.2016,SOCIAL SERVICES,THAMES HOMECARE SERVICE LTD,"1,076.40",OP - HOMECARE,HOMECARE - SPOT,2102487018
05.05.2016,SOCIAL SERVICES,THAMES HOMECARE SERVICE LTD,368.55,OP - HOMECARE,HOMECARE - SPOT,2102487019
05.05.2016,SOCIAL SERVICES,THAMES HOMECARE SERVICE LTD,421.2,OP - HOMECARE,HOMECARE - SPOT,2102487021
05.05.2016,SOCIAL SERVICES,THAMES HOMECARE SERVICE LTD,468,OP - HOMECARE,HOMECARE - SPOT,2102487025
05.05.2016,SOCIAL SERVICES,SWK DISABLEMENT ASSN,"1,235.52",OP - HOMECARE,HOMECARE - SPOT,2102487056
05.05.2016,SOCIAL SERVICES,SWK DISABLEMENT ASSN,"1,092.96",OP - HOMECARE,HOMECARE - SPOT,2102487057
05.05.2016,SOCIAL SERVICES,THAMES HOMECARE SERVICE LTD,336.38,OP CARE PACKAGES,HOMECARE - SPOT,2102486942
05.05.2016,SOCIAL SERVICES,THAMES HOMECARE SERVICE LTD,304.2,OP CARE PACKAGES,HOMECARE - SPOT,2102486949
05.05.2016,SOCIAL SERVICES,THAMES HOMECARE SERVICE LTD,351,OP CARE PACKAGES,HOMECARE - SPOT,2102486951
05.05.2016,SOCIAL SERVICES,THAMES HOMECARE SERVICE LTD,982.8,OP CARE PACKAGES,HOMECARE - SPOT,2102486952
05.05.2016,SOCIAL SERVICES,THAMES HOMECARE SERVICE LTD,783.9,OP CARE PACKAGES,HOMECARE - SPOT,2102486958
05.05.2016,SOCIAL SERVICES,THAMES HOMECARE SERVICE LTD,374.4,OP CARE PACKAGES,HOMECARE - SPOT,2102486960
05.05.2016,SOCIAL SERVICES,THAMES HOMECARE SERVICE LTD,391.95,OP CARE PACKAGES,HOMECARE - SPOT,2102486962
05.05.2016,SOCIAL SERVICES,THAMES HOMECARE SERVICE LTD,"1,099.80",OP CARE PACKAGES,HOMECARE - SPOT,2102486964
05.05.2016,SOCIAL SERVICES,THAMES HOMECARE SERVICE LTD,"1,064.70",OP CARE PACKAGES,HOMECARE - SPOT,2102486968
05.05.2016,SOCIAL SERVICES,THAMES HOMECARE SERVICE LTD,304.2,OP CARE PACKAGES,HOMECARE - SPOT,2102486970
05.05.2016,SOCIAL SERVICES,THAMES HOMECARE SERVICE LTD,286.65,OP CARE PACKAGES,HOMECARE - SPOT,2102486986
05.05.2016,SOCIAL SERVICES,THAMES HOMECARE SERVICE LTD,327.6,OP CARE PACKAGES,HOMECARE - SPOT,2102487001
05.05.2016,SOCIAL SERVICES,THAMES HOMECARE SERVICE LTD,468,OP CARE PACKAGES,HOMECARE - SPOT,2102487014
05.05.2016,SOCIAL SERVICES,THAMES HOMECARE SERVICE LTD,304.2,OP CARE PACKAGES,HOMECARE - SPOT,2102487016
05.05.2016,SOCIAL SERVICES,THAMES HOMECARE SERVICE LTD,900.9,OP CARE PACKAGES,HOMECARE - SPOT,2102487020
05.05.2016,SOCIAL SERVICES,THAMES HOMECARE SERVICE LTD,737.1,OP CARE PACKAGES,HOMECARE - SPOT,2102487022
05.05.2016,SOCIAL SERVICES,THAMES HOMECARE SERVICE LTD,"1,333.80",OP CARE PACKAGES,HOMECARE - SPOT,2102487024
05.05.2016,SOCIAL SERVICES,BS PROJECT SERVICES LTD,"-2,831.46",OP CARE PACKAGES,PERSONALISATION PAYMENTS,2102389117
05.05.2016,SOCIAL SERVICES,BS PROJECT SERVICES LTD,-292.5,OP CARE PACKAGES,PERSONALISATION PAYMENTS,2102389120
05.05.2016,SOCIAL SERVICES,BS PROJECT SERVICES LTD,-374.4,OP CARE PACKAGES,PERSONALISATION PAYMENTS,2102389123
05.05.2016,SOCIAL SERVICES,BS PROJECT SERVICES LTD,-493.32,OP CARE PACKAGES,PERSONALISATION PAYMENTS,2102389124
05.05.2016,SOCIAL SERVICES,BS PROJECT SERVICES LTD,-252,PERSONAL BUDGET - SOCIAL CARE,PERSONALISATION PAYMENTS,2102389126
05.05.2016,SOCIAL SERVICES,REDACTED PERSONAL DATA,"1,197.50",PERSONAL BUDGET - SOCIAL CARE,PERSONALISATION PAYMENTS,2102487135
05.05.2016,SOCIAL SERVICES,CRAEGMOOR LEVITT MILL PRIORY GROUP,500,PETTY CASH/PERSONAL ALLOWANCE,OTHER PAYMENTS FOR CLIENTS,5902190242
05.05.2016,SOCIAL SERVICES,RIGHT SUPPORT MANAGEMENT LTD,500,PETTY CASH/PERSONAL ALLOWANCE,OTHER PAYMENTS FOR CLIENTS,5902190244
05.05.2016,SOCIAL SERVICES,HC-ONE LTD (TOWER BRIDGE CARE HOME),398.4,PETTY CASH/PERSONAL ALLOWANCE,OTHER PAYMENTS FOR CLIENTS,5902190246
05.05.2016,SOCIAL SERVICES,ZETETICK HOUSING,585,PETTY CASH/PERSONAL ALLOWANCE,OTHER PAYMENTS FOR CLIENTS,5902190247
05.05.2016,SOCIAL SERVICES,REDACTED PERSONAL DATA,460,PETTY CASH/PERSONAL ALLOWANCE,OTHER PAYMENTS FOR CLIENTS,5902190252
05.05.2016,SOCIAL SERVICES,REDACTED PERSONAL DATA,264.8,PETTY CASH/PERSONAL ALLOWANCE,OTHER PAYMENTS FOR CLIENTS,5902190391
05.05.2016,SOCIAL SERVICES,PEOPLE PLUS,"2,917.60",PWLD DIRECT PAYMENTS,PERSONALISATION PAYMENTS,2102487136
05.05.2016,SOCIAL SERVICES,SAFFRONLAND HOMES,"1,165.64",PWLD HOME CARE IND,OTHER PAYMENTS FOR CLIENTS,2102487031
05.05.2016,SOCIAL SERVICES,THAMES HOMECARE SERVICE LTD,485.55,PWPD HOME CARE IND,HOMECARE - SPOT,2102486940
05.05.2016,SOCIAL SERVICES,THAMES HOMECARE SERVICE LTD,409.5,PWPD HOME CARE IND,HOMECARE - SPOT,2102486944
05.05.2016,SOCIAL SERVICES,THAMES HOMECARE SERVICE LTD,924.3,PWPD HOME CARE IND,HOMECARE - SPOT,2102487000
05.05.2016,SOCIAL SERVICES,THAMES HOMECARE SERVICE LTD,292.5,PWPD HOME CARE IND,HOMECARE - SPOT,2102487003
05.05.2016,SOCIAL SERVICES,THAMES HOMECARE SERVICE LTD,"1,146.60",PWPD HOME CARE IND,HOMECARE - SPOT,2102487004
05.05.2016,SOCIAL SERVICES,THAMES HOMECARE SERVICE LTD,315.9,PWPD HOME CARE IND,HOMECARE - SPOT,2102487012
05.05.2016,SOCIAL SERVICES,THAMES HOMECARE SERVICE LTD,497.25,PWPD HOME CARE IND,HOMECARE - SPOT,2102487017
05.05.2016,SOCIAL SERVICES,BS PROJECT SERVICES LTD,"2,073.21",REABLEMENT SERVICE,ADDITIONAL PAYMENTS TO AGENCIES/CARERS,5902146231
05.05.2016,SOCIAL SERVICES,THAMES HOMECARE SERVICE LTD,315.9,REABLEMENT SERVICE,HOMECARE - SPOT,2102486979
05.05.2016,SOCIAL SERVICES,THAMES HOMECARE SERVICE LTD,263.25,REABLEMENT SERVICE,HOMECARE - SPOT,2102486990
05.05.2016,SOCIAL SERVICES,EDF ENERGY 1 LTD,"1,015.40",SOUTHWARK PARK ROAD DAY CENTRE,ELECTRICITY,5902190265
05.05.2016,SOCIAL SERVICES,TUNSTALL HEALTHCARE (UK) LTD,412.5,SOUTHWARK RESOURCE CENTRE,EQUIPMENT PURCHASE & REPAIR,5902190489
05.05.2016,SOCIAL SERVICES,PEAC (UK) LTD,335.83,SUBSTANCE ASSESSMENT TEAM,"OP.LEASE/HIRE CHARGES: PLANT, EQUIPT & FURNITURE",5902190468
05.05.2016,SOCIAL SERVICES,MEDACS HOMECARE,519.48,TRANSITION 14YRS TO 18YRS,SECTION 17 PAYMENTS TO AGENCIES/CARERS,2102487033
05.05.2016,SOCIAL SERVICES,MEDACS HOMECARE,750.36,TRANSITION 14YRS TO 18YRS,SECTION 17 PAYMENTS TO AGENCIES/CARERS,2102487034
05.05.2016,SOCIAL SERVICES,MEDACS HOMECARE,"2,077.92",TRANSITION 14YRS TO 18YRS,SECTION 17 PAYMENTS TO AGENCIES/CARERS,2102487036
05.05.2016,SOCIAL SERVICES,MEDACS HOMECARE,865.8,TRANSITION 14YRS TO 18YRS,SECTION 17 PAYMENTS TO AGENCIES/CARERS,2102487037
05.05.2016,SOCIAL SERVICES,MEDACS HOMECARE,634.92,TRANSITION 14YRS TO 18YRS,SECTION 17 PAYMENTS TO AGENCIES/CARERS,2102487038
05.05.2016,SOCIAL SERVICES,MEDACS HOMECARE,331.89,TRANSITION 14YRS TO 18YRS,SECTION 17 PAYMENTS TO AGENCIES/CARERS,2102487053
05.05.2016,SOCIAL SERVICES,REDACTED PERSONAL DATA,270,TRANSITION 14YRS TO 18YRS,SECTION 17 PAYMENTS TO AGENCIES/CARERS,2102487026
05.05.2016,SOCIAL SERVICES,REDACTED PERSONAL DATA,"2,008.70",TRANSITION 14YRS TO 18YRS,SECTION 17 PAYMENTS TO AGENCIES/CARERS,2102487027
05.05.2016,SOUTHWARK BUILDING SERVICES,E & E BUILDING SERVICES LTD,"55,104.59",BUSINESS SUPPORT,OTHER CONTRACTORS,2102487161
05.05.2016,SOUTHWARK BUILDING SERVICES,EURO WINDOWS LTD,820,COMMERCIAL,OTHER CONTRACTORS,5902190397
05.05.2016,SOUTHWARK BUILDING SERVICES,KINGDOM SECURITY LTD,433.44,DEPOT COSTS,SECURITY SERVICES,5902190398
05.05.2016,SOUTHWARK BUILDING SERVICES,KINGDOM SECURITY LTD,352.8,DEPOT COSTS,SECURITY SERVICES,5902190399
05.05.2016,SOUTHWARK BUILDING SERVICES,CASTLETON TECHNOLOGY PLC,"1,882.50",ICT & COMMUNICATIONS,SOFTWARE,5902190396
05.05.2016,SOUTHWARK BUILDING SERVICES,CASTLETON TECHNOLOGY PLC,"9,302.00",ICT & COMMUNICATIONS,SOFTWARE,5902190396
05.05.2016,SOUTHWARK BUILDING SERVICES,CASTLETON TECHNOLOGY PLC,"26,016.19",ICT & COMMUNICATIONS,SOFTWARE,5902190396
05.05.2016,SOUTHWARK BUILDING SERVICES,N & C BUILDING MATERIALS,288.46,ROTHERHITHE DAY TO DAY - WET TRADER,MATERIALS,5902190380
05.05.2016,SOUTHWARK BUILDING SERVICES,ACCLAIM HANDLING PLC,346.66,STORES/LOGISTICS,"OP.LEASE/HIRE CHARGES: PLANT, EQUIPT & FURNITURE",5902190471
05.05.2016,SOUTHWARK BUILDING SERVICES,VPS (UK) LTD,295.96,VOIDS OVERHEADS,SECURITY SERVICES,5902190357
05.05.2016,SOUTHWARK BUILDING SERVICES,VPS (UK) LTD,360.04,VOIDS OVERHEADS,SECURITY SERVICES,5902190367
06.05.2016,-,EYRE & ELLISTON LTD,472.5,-,-,5902190477
06.05.2016,-,EYRE & ELLISTON LTD,780,-,-,5902190477
06.05.2016,-,AIDAN BRIGGS,937.5,BENEFITS,LEGAL FEES & COURT COSTS,2102487260
06.05.2016,-,LOCKESLEYS LTD,"32,815.06",LOCKESLEYS,MANUAL CREDITORS,5902190657
06.05.2016,ASSET MANAGEMENT,KOHLER MIRA LTD,283.25,ADAPTATIONS,BUILDING R&M,5902190512
06.05.2016,ASSET MANAGEMENT,STANDAGE & CO LTD,"3,302.20",DISREPAIR,BUILDING R&M,5902190525
06.05.2016,BERMONDSEY & ROTHERHITHE COMMUNITY COUNCIL,STAMP (SHAD THAMES AREA MANAGEMENT PARTNERSHIP) ,"1,965.00",SHAD THAMES TRAIL: POINTS OF VIEW ,GRANTS,CHEQUE PAYMENT
06.05.2016,BERMONDSEY & ROTHERHITHE COMMUNITY COUNCIL,CONSTRUCTION INDUSTRY TRUST FOR YOUTH ,"4,000.00",SOUTHWARK BUDDING BUILDERS ,GRANTS,CHEQUE PAYMENT
06.05.2016,BUSINESS SUPPORT SERVICES CO-ORDINATION,CONTAINER COMPONENTS EUROPE LTD,500,EUROPEAN ZEN PROGRAM,"OP.LEASE/HIRE CHARGES: PLANT, EQUIPT & FURNITURE",5902190567
06.05.2016,BUSINESS SUPPORT SERVICES CO-ORDINATION,CONTAINER COMPONENTS EUROPE LTD,"5,320.00",EUROPEAN ZEN PROGRAM,"OP.LEASE/HIRE CHARGES: PLANT, EQUIPT & FURNITURE",5902190567
06.05.2016,BUSINESS SUPPORT SERVICES CO-ORDINATION,CONTAINER COMPONENTS EUROPE LTD,500,EUROPEAN ZEN PROGRAM,"OP.LEASE/HIRE CHARGES: PLANT, EQUIPT & FURNITURE",5902190577
06.05.2016,BUSINESS SUPPORT SERVICES CO-ORDINATION,CONTAINER COMPONENTS EUROPE LTD,"7,980.00",EUROPEAN ZEN PROGRAM,"OP.LEASE/HIRE CHARGES: PLANT, EQUIPT & FURNITURE",5902190577
06.05.2016,BUSINESS SUPPORT SERVICES CO-ORDINATION,CONTAINER COMPONENTS EUROPE LTD,500,EUROPEAN ZEN PROGRAM,"OP.LEASE/HIRE CHARGES: PLANT, EQUIPT & FURNITURE",5902190583
06.05.2016,BUSINESS SUPPORT SERVICES CO-ORDINATION,CONTAINER COMPONENTS EUROPE LTD,"7,980.00",EUROPEAN ZEN PROGRAM,"OP.LEASE/HIRE CHARGES: PLANT, EQUIPT & FURNITURE",5902190583
06.05.2016,CENTRAL FUNCTIONS,EDF ENERGY PLC,974.57,HEATING ACCOUNT,ELECTRICITY,5902190753
06.05.2016,CENTRAL FUNCTIONS,FAISEL SADIQ,"2,000.00",HOME OWNERSHIP,LEGAL FEES & COURT COSTS,2102487264
06.05.2016,CENTRAL FUNCTIONS,MICHAEL WALSH,"3,000.00",HOME OWNERSHIP,LEGAL FEES & COURT COSTS,2102487270
06.05.2016,CENTRAL FUNCTIONS,PHILIP RAINEY,600,HOME OWNERSHIP,LEGAL FEES & COURT COSTS,2102487271
06.05.2016,CHIEF EXECUTIVE'S OFFICE,SIOBHAN DAVIES DANCE COMPANY,300,YOUTH FUND EMPLOYMENT,GRANTS,2102487167
06.05.2016,CHIEF EXECUTIVE'S OFFICE,ADVISING LONDON,"8,554.00",YOUTH FUND EMPLOYMENT,GRANTS,2102487168
06.05.2016,CHILDREN'S SERVICES,ACTION FOR CHILDREN,750,ADOPTION PLACEMENTS & INTER AGENCY,EXTERNAL AGENCIES AND BODIES,5902190716
06.05.2016,CHILDREN'S SERVICES,FOLLOWING WHISPERS FAMILY SERVICE LTD,"6,801.30",AGENCY FOSTERING,EXTERNAL AGENCIES AND BODIES,2102487228
06.05.2016,CHILDREN'S SERVICES,FOSTERING LONDON LTD,"4,332.52",AGENCY FOSTERING,EXTERNAL AGENCIES AND BODIES,5902190754
06.05.2016,CHILDREN'S SERVICES,THAMES WATER UTILITIES LTD,"2,273.23",AYLESBURY EARLY YEARS CENTRE,WATER,5902190740
06.05.2016,CHILDREN'S SERVICES,CAREWORKS UK LTD,"5,000.00",BUSINESS APPLICATIONS,SOFTWARE,5902190718
06.05.2016,CHILDREN'S SERVICES,CAREWORKS UK LTD,"7,430.00",BUSINESS APPLICATIONS,SOFTWARE,5902190718
06.05.2016,CHILDREN'S SERVICES,ALISTAIR SMITH,"4,500.00",BUSINESS MANAGEMENT,CAB FARES,5902190715
06.05.2016,CHILDREN'S SERVICES,EDF ENERGY,"1,028.27",CAMBERWELL GROVE EARLY YEARS CENTRE,ELECTRICITY,5902190733
06.05.2016,CHILDREN'S SERVICES,FREDERICK ROWLEY,280,CENTRAL VENDURE PARK (CVP),BUILDING R&M,5902190529
06.05.2016,CHILDREN'S SERVICES,EDF ENERGY PLC,381.83,CENTRAL VENDURE PARK (CVP),ELECTRICITY,5902190734
06.05.2016,CHILDREN'S SERVICES,THAMES WATER UTILITIES LTD,"1,186.50",DAMILOLA TAYLOR CENTRE,WATER,5902190575
06.05.2016,CHILDREN'S SERVICES,FLEET TUTORS,"5,206.00",EDUCATION OTHERWISE,EXTERNAL AGENCIES AND BODIES,5902190533
06.05.2016,CHILDREN'S SERVICES,COMMUNITY HEALTH PARTNERSHIPS,"36,994.00",FINANCE,RENTS,5902190756
06.05.2016,CHILDREN'S SERVICES,ACCESS MOBILITY TRANSPORT LTD,"16,810.00",HOME 2 SCHOOL TRANSPORT,CAB FARES,5902190558
06.05.2016,CHILDREN'S SERVICES,JULIANA LOTTMANN,828,NURSURERY EDUCATION GRANT-3 Y.O.,GRANTS,2102473357
06.05.2016,CHILDREN'S SERVICES,MARKS & SPENCER ,259.49,POST ADOPTION ADVISE & SUPPORT,EXTERNAL AGENCIES AND BODIES,5902190729
06.05.2016,CHILDREN'S SERVICES,MORGAN SINDALL PLC,"50,960.09",PROPERTY MANAGEMENT - 5015257,CONSULTANTS SERVICES,5902190686
06.05.2016,CHILDREN'S SERVICES,WHARTON ARBORICULTURE LTD,380,PROPERTY MANAGEMENT - 5015257,PROFESSIONAL FEES,5902190590
06.05.2016,CHILDREN'S SERVICES,WHARTON ARBORICULTURE LTD,380,PROPERTY MANAGEMENT - 5015257,PROFESSIONAL FEES,5902190590
06.05.2016,CHILDREN'S SERVICES,WHARTON ARBORICULTURE LTD,380,PROPERTY MANAGEMENT - 5015257,PROFESSIONAL FEES,5902190590
06.05.2016,CHILDREN'S SERVICES,WHARTON ARBORICULTURE LTD,258.14,PROPERTY MANAGEMENT - 5015257,PROFESSIONAL FEES,5902190594
06.05.2016,CHILDREN'S SERVICES,WHARTON ARBORICULTURE LTD,316.46,PROPERTY MANAGEMENT - 5015257,PROFESSIONAL FEES,5902190594
06.05.2016,CHILDREN'S SERVICES,ARCHBISHOP TENISON'S SCHOOL,"1,500.00",PUPIL PREMIUM CURRENT YEAR,SCHOOLS CAPITATION,2102487242
06.05.2016,CHILDREN'S SERVICES,MY LIFE SEMI-INDEPENDENT PROJECT LTD,"1,554.09",S24 CLA,RESIDENTIAL CARE,2102487248
06.05.2016,CHILDREN'S SERVICES,MY LIFE SEMI-INDEPENDENT PROJECT LTD,"1,207.24",S24 CLA,RESIDENTIAL CARE,2102487249
06.05.2016,CHILDREN'S SERVICES,MY LIFE SEMI-INDEPENDENT PROJECT LTD,280,S24 CLA,RESIDENTIAL CARE,2102487250
06.05.2016,CHILDREN'S SERVICES,REDACTED PERSONAL DATA,"1,200.57",SEMI INDEPENDENT,OTHER PAYMENTS FOR CLIENTS,2102487173
06.05.2016,CHILDREN'S SERVICES,CONTACT PROFESSIONALS,380,SPECIALIST CARE,SECTION 17 PAYMENTS TO AGENCIES/CARERS,2102487226
06.05.2016,CHILDREN'S SERVICES,HOLMDENE HOUSING LTD,"4,738.57",UNACCOMPANIED ASYLUM CHILDREN 16-17,RESIDENTIAL CARE,5902190755
06.05.2016,COMMUNITIES,FINEFAIR LTD,"1,461.34",NO RECOURSE TO PUBLIC FUNDS,SECTION 17 PAYMENTS TO AGENCIES/CARERS,5902190638
06.05.2016,COMMUNITIES,FINEFAIR LTD,"2,967.01",NO RECOURSE TO PUBLIC FUNDS,SECTION 17 PAYMENTS TO AGENCIES/CARERS,5902190643
06.05.2016,COMMUNITIES,FINEFAIR LTD,"1,461.34",NO RECOURSE TO PUBLIC FUNDS,SECTION 17 PAYMENTS TO AGENCIES/CARERS,5902190646
06.05.2016,COMMUNITIES,FINEFAIR LTD,"1,356.56",NO RECOURSE TO PUBLIC FUNDS,SECTION 17 PAYMENTS TO AGENCIES/CARERS,5902190649
06.05.2016,COMMUNITIES,FINEFAIR LTD,"3,297.78",NO RECOURSE TO PUBLIC FUNDS,SECTION 17 PAYMENTS TO AGENCIES/CARERS,5902190650
06.05.2016,COMMUNITIES,FINEFAIR LTD,"1,687.33",NO RECOURSE TO PUBLIC FUNDS,SECTION 17 PAYMENTS TO AGENCIES/CARERS,5902190651
06.05.2016,COMMUNITIES,FINEFAIR LTD,"1,797.69",NO RECOURSE TO PUBLIC FUNDS,SECTION 17 PAYMENTS TO AGENCIES/CARERS,5902190652
06.05.2016,COMMUNITIES,FINEFAIR LTD,"1,908.05",NO RECOURSE TO PUBLIC FUNDS,SECTION 17 PAYMENTS TO AGENCIES/CARERS,5902190654
06.05.2016,COMMUNITIES,FINEFAIR LTD,"3,892.67",NO RECOURSE TO PUBLIC FUNDS,SECTION 17 PAYMENTS TO AGENCIES/CARERS,5902190655
06.05.2016,COMMUNITIES,FINEFAIR LTD,"2,967.01",NO RECOURSE TO PUBLIC FUNDS,SECTION 17 PAYMENTS TO AGENCIES/CARERS,5902190656
06.05.2016,COMMUNITIES,FINEFAIR LTD,"1,367.06",NO RECOURSE TO PUBLIC FUNDS,SECTION 17 PAYMENTS TO AGENCIES/CARERS,5902190688
06.05.2016,COMMUNITIES,FINEFAIR LTD,"3,297.78",NO RECOURSE TO PUBLIC FUNDS,SECTION 17 PAYMENTS TO AGENCIES/CARERS,5902190689
06.05.2016,COMMUNITIES,BUCHAN T&RA,"1,783.00",TENANTS FUND,GRANTS,5902189691
06.05.2016,COMMUNITIES,SCEAUX GARDENS T&R ASSOCIATION,"1,913.00",TENANTS FUND,GRANTS,5902189692
06.05.2016,CUSTOMER SERVICES,LONDON FIRE & EMERGENCY PLAN,298,TA HOSTELS,FIRE ALARMS & EMERGENCY LIGHTING,5902190728
06.05.2016,CUSTOMER SERVICES HGF,SOUTHWARK LAW CENTRE,"6,652.68",HOMELESS PROJECTS,LEGAL FEES & COURT COSTS,2102487278
06.05.2016,CUSTOMER SERVICES HGF,MALCOLM G SANKEY,"1,200.00",HOMELESS PROJECTS,LEGAL FEES & COURT COSTS,2102487266
06.05.2016,CUSTOMER SERVICES HGF,SK HOUSING LTD,"7,042.50",NIGHTLY TA (NSC),EXTERNAL AGENCIES AND BODIES,5902190738
06.05.2016,CUSTOMER SERVICES HGF,TLK PROPERTY & INVESTMENT LTD,"6,775.00",NIGHTLY TA (NSC),EXTERNAL AGENCIES AND BODIES,5902190741
06.05.2016,CUSTOMER SERVICES HGF,RS REAL ESTATE LTD,"17,982.00",NIGHTLY TA (NSC),EXTERNAL AGENCIES AND BODIES,5902190743
06.05.2016,CUSTOMER SERVICES HGF,ACE FAST LETTINGS LTD,"5,055.00",NIGHTLY TA (NSC),EXTERNAL AGENCIES AND BODIES,5902190746
06.05.2016,CUSTOMER SERVICES HGF,BENEDICTA OMOREGBEE,"2,392.86",PRIVATE SECTOR LEASING,EXTERNAL AGENCIES AND BODIES,2102487169
06.05.2016,DULWICH COMMUNITY COUNCIL,DULWICH HAMLET JUNIOR SCHOOL PTA ,"3,550.00",DULWICH COMMUNITY ART ,GRANTS,CHEQUE PAYMENT
06.05.2016,DULWICH COMMUNITY COUNCIL,LIVELY MINDS CLUB,"1,612.48",REACHING OUT ,GRANTS,CHEQUE PAYMENT
06.05.2016,ELECTORAL SVCES,FINANCIAL DATA MANAGEMENT LTD,"1,293.00",ELECTORAL REGISTRATION,PRINTING,5902190621
06.05.2016,ELECTORAL SVCES,ANDERSON TRAVEL LTD,900,GLA ELECTIONS,PUBLIC TRANSPORT,5902190618
06.05.2016,ENVIRONMENT AND LEISURE,PICK EVERARD,"1,384.37",CAPITAL PS (LEISURE),CONSTRUCTION FEES - EXTERNAL,5902190751
06.05.2016,ENVIRONMENT AND LEISURE,LAWSON ESTATE T&RA,848,CAPITAL PS (LEISURE),CAPITAL GRANTS,5902190704
06.05.2016,ENVIRONMENT AND LEISURE,CONWAY AECOM LTD,"3,181.94",CAPITAL PS (LEISURE),CONSTRUCTION,5902190691
06.05.2016,ENVIRONMENT DIRECTORATE,LEX AUTOLEASE,256.03,CAR LEASING CTRL A/C,VEHICLE LEASING CHARGES,5902190564
06.05.2016,ENVIRONMENT DIRECTORATE,THE CCTV USER GROUP,359,CCTV,TRAINING,5902190682
06.05.2016,ENVIRONMENT DIRECTORATE,LCV HIRE SOLUTIONS LTD,260.4,COMMERCIAL VEH CTRL A/C,HIRED VEHICLES,5902190581
06.05.2016,ENVIRONMENT DIRECTORATE,LCV HIRE SOLUTIONS LTD,260.4,COMMERCIAL VEH CTRL A/C,HIRED VEHICLES,5902190584
06.05.2016,ENVIRONMENT DIRECTORATE,LCV HIRE SOLUTIONS LTD,260.4,COMMERCIAL VEH CTRL A/C,HIRED VEHICLES,5902190586
06.05.2016,ENVIRONMENT DIRECTORATE,ENTERPRISE FLEX E RENT,"1,923.60",COMMERCIAL VEH CTRL A/C,HIRED VEHICLES,5902190587
06.05.2016,ENVIRONMENT DIRECTORATE,NORTHGATE VEHICLE HIRE (SOUTH EAST),385.19,COMMERCIAL VEH CTRL A/C,PARKING CHARGES,5902190589
06.05.2016,ENVIRONMENT DIRECTORATE,NORTHGATE VEHICLE HIRE (SOUTH EAST),385.19,COMMERCIAL VEH CTRL A/C,PARKING CHARGES,5902190591
06.05.2016,ENVIRONMENT DIRECTORATE,NORTHGATE VEHICLE HIRE (SOUTH EAST),385.19,COMMERCIAL VEH CTRL A/C,PARKING CHARGES,5902190593
06.05.2016,ENVIRONMENT DIRECTORATE,NORTHGATE VEHICLE HIRE (SOUTH EAST),385.19,COMMERCIAL VEH CTRL A/C,PARKING CHARGES,5902190595
06.05.2016,ENVIRONMENT DIRECTORATE,T H WHITE LIMITED,402.95,COMMERCIAL VEH CTRL A/C,VEHICLE REPAIRS & MAINTENANCE,5902190597
06.05.2016,ENVIRONMENT DIRECTORATE,R J MOTORS LIMITED,863.61,COMMERCIAL VEH CTRL A/C,VEHICLE REPAIRS & MAINTENANCE,5902190602
06.05.2016,ENVIRONMENT DIRECTORATE,R J MOTORS LIMITED,260.31,COMMERCIAL VEH CTRL A/C,VEHICLE REPAIRS & MAINTENANCE,5902190604
06.05.2016,ENVIRONMENT DIRECTORATE,R J MOTORS LIMITED,502.69,COMMERCIAL VEH CTRL A/C,VEHICLE REPAIRS & MAINTENANCE,5902190617
06.05.2016,ENVIRONMENT DIRECTORATE,R J MOTORS LIMITED,435.38,COMMERCIAL VEH CTRL A/C,VEHICLE REPAIRS & MAINTENANCE,5902190620
06.05.2016,ENVIRONMENT DIRECTORATE,R J MOTORS LIMITED,"1,122.90",COMMERCIAL VEH CTRL A/C,VEHICLE REPAIRS & MAINTENANCE,5902190622
06.05.2016,ENVIRONMENT DIRECTORATE,R J MOTORS LIMITED,663.25,COMMERCIAL VEH CTRL A/C,VEHICLE REPAIRS & MAINTENANCE,5902190624
06.05.2016,ENVIRONMENT DIRECTORATE,R J MOTORS LIMITED,700.89,COMMERCIAL VEH CTRL A/C,VEHICLE REPAIRS & MAINTENANCE,5902190626
06.05.2016,ENVIRONMENT DIRECTORATE,LYTE INDUSTRIES (WALES) LTD,394.62,ENGINEERING CRAFTS,MATERIALS,5902190557
06.05.2016,ENVIRONMENT DIRECTORATE,GRAFTON MERCHANTING GB LTD,474.09,ENGINEERING CRAFTS,MATERIALS,5902190576
06.05.2016,ENVIRONMENT DIRECTORATE,CALLOW MASTER LOCKSMITHS,320.83,ENGINEERING CRAFTS,OTHER CONTRACTORS,5902190696
06.05.2016,ENVIRONMENT DIRECTORATE,CALLOW MASTER LOCKSMITHS,302.49,ENGINEERING CRAFTS,OTHER CONTRACTORS,5902190697
06.05.2016,ENVIRONMENT DIRECTORATE,CONWAY AECOM LTD,"1,887.36",FLOOD RISK MANAGEMENT,HIGHWAYS TERM CONTRACT,5902190629
06.05.2016,ENVIRONMENT DIRECTORATE,CAROLINE L DALY,750,LICENSING,LEGAL FEES & COURT COSTS,2102487262
06.05.2016,ENVIRONMENT DIRECTORATE,JAMES RANKIN,"3,000.00",LICENSING,LEGAL FEES & COURT COSTS,2102487265
06.05.2016,ENVIRONMENT DIRECTORATE,P D CONSTRUCTION LTD,385,PARKS TECH UNIT (PREMISES),OTHER R&M,5902190615
06.05.2016,ENVIRONMENT DIRECTORATE,RORY CLARKE,"2,430.00",RESIDENTIAL SERVICES,LEGAL FEES & COURT COSTS,2102487273
06.05.2016,ENVIRONMENT DIRECTORATE,CONWAY AECOM LTD,"3,373.67",STREET CARE OVERHEADS,OTHER CONTRACTORS,5902190513
06.05.2016,ENVIRONMENT DIRECTORATE,CONWAY AECOM LTD,427.75,STREET CARE OVERHEADS,OTHER CONTRACTORS,5902190517
06.05.2016,ENVIRONMENT DIRECTORATE,CONWAY AECOM LTD,"6,962.02",STREET CARE OVERHEADS,OTHER CONTRACTORS,5902190517
06.05.2016,ENVIRONMENT DIRECTORATE,SMI GROUP,369.75,STREETS  (NORTH WEST),"CLOTHING, UNIFORMS & LAUNDRY",5902190659
06.05.2016,ENVIRONMENT DIRECTORATE,RYAN KOHLI,"2,030.00",TRADING STANDARDS,LEGAL FEES & COURT COSTS,2102487274
06.05.2016,F & C S EXCLUDING CORPORATE BUDGETS,TELSOLUTIONS LTD,"2,035.82",ADMINISTRATIVE SUPPORT,TELEPHONES (MOBILES),5902190690
06.05.2016,F & C S EXCLUDING CORPORATE BUDGETS,CAPITA BUSINESS SERVICES LTD,"11,219.97",CAPITA,OTHER CONTRACTORS,5902190550
06.05.2016,F & C S EXCLUDING CORPORATE BUDGETS,ADAM PAYTER,740,FRAUD & INVESTIGATIONS,LEGAL FEES & COURT COSTS,2102487259
06.05.2016,F & C S EXCLUDING CORPORATE BUDGETS,MICHAEL GOODWIN,"3,890.00",FRAUD & INVESTIGATIONS,LEGAL FEES & COURT COSTS,2102487267
06.05.2016,F & C S EXCLUDING CORPORATE BUDGETS,MICHAEL GOODWIN,"31,640.00",FRAUD & INVESTIGATIONS,LEGAL FEES & COURT COSTS,2102487268
06.05.2016,F & C S EXCLUDING CORPORATE BUDGETS,MICHAEL GOODWIN,"15,355.00",FRAUD & INVESTIGATIONS,LEGAL FEES & COURT COSTS,2102487269
06.05.2016,F & C S EXCLUDING CORPORATE BUDGETS,ROBERT FITT,"1,125.00",FRAUD & INVESTIGATIONS,LEGAL FEES & COURT COSTS,2102487272
06.05.2016,F & C S EXCLUDING CORPORATE BUDGETS,SIMON NEWMAN,"2,362.50",FRAUD & INVESTIGATIONS,LEGAL FEES & COURT COSTS,2102487277
06.05.2016,F & C S EXCLUDING CORPORATE BUDGETS,INFORMATION COMMISSIONERS OFFICE,500,INFORMATION GOVERNANCE,SUBSCRIPTIONS,5902189425
06.05.2016,HOUSING HRA,HARRADINES REMOVALS,"1,320.00",CAPITAL PS (HRA),CAPITAL GRANTS,5902190540
06.05.2016,HOUSING HRA,HARRADINES REMOVALS,"1,200.00",CAPITAL PS (HRA),CAPITAL GRANTS,5902190541
06.05.2016,HOUSING HRA,HARRADINES REMOVALS,"2,500.00",CAPITAL PS (HRA),CAPITAL GRANTS,5902190546
06.05.2016,HOUSING HRA,HARRADINES REMOVALS,"2,500.00",CAPITAL PS (HRA),CAPITAL GRANTS,5902190551
06.05.2016,HOUSING HRA,FAIRVIEW NEW HOMES LTD,"36,627.00",CAPITAL PS (HRA),LAND & BUILDINGS ACQUISITION,5902190632
06.05.2016,HOUSING HRA,MOTT MACDONALD LTD,730,CAPITAL PS (HRA),LAND & BUILDINGS ACQUISITION FEES,5902190658
06.05.2016,LEISURE DIRECTORATE,EDWARDES (CAMBERWELL) LTD,277.27,BMX TRACK BURGESS PARK,EQUIPMENT PURCHASE & REPAIR,5902190544
06.05.2016,LEISURE DIRECTORATE,PAULINE SPENCER,475,BURGESS AREA TEAM,PROFESSIONAL FEES,5902190693
06.05.2016,LEISURE DIRECTORATE,STANBURY & SWK BLDG SVCS LTD,495,CEMETERIES,OTHER R&M,5902190571
06.05.2016,LEISURE DIRECTORATE,STANBURY & SWK BLDG SVCS LTD,545,CEMETERIES,OTHER R&M,5902190573
06.05.2016,LEISURE DIRECTORATE,STANBURY & SWK BLDG SVCS LTD,495,CEMETERIES,OTHER R&M,5902190579
06.05.2016,LEISURE DIRECTORATE,STANBURY & SWK BLDG SVCS LTD,495,CEMETERIES,OTHER R&M,5902190585
06.05.2016,LEISURE DIRECTORATE,STANBURY & SWK BLDG SVCS LTD,295,CREMATORIUM,OTHER R&M,5902190511
06.05.2016,LEISURE DIRECTORATE,P D CONSTRUCTION LTD,390,DULWICH AREA TEAM,OTHER R&M,5902190598
06.05.2016,LEISURE DIRECTORATE,TECHNICAL SURFACES,450,G M HARMWORTH A TEAM,GROUNDS MAINTENANCE,5902190530
06.05.2016,LEISURE DIRECTORATE,QUADRON SERVICES LIMITED,384,G M HARMWORTH A TEAM,GROUNDS MAINTENANCE,5902190599
06.05.2016,LEISURE DIRECTORATE,QUADRON SERVICES LIMITED,384,G M HARMWORTH A TEAM,GROUNDS MAINTENANCE,5902190601
06.05.2016,LEISURE DIRECTORATE,LDA DESIGN CONSULTING LTD,"27,216.00",LANDSCAPE DESIGN SERVICES,OTHER CONTRACTORS,5902190627
06.05.2016,LEISURE DIRECTORATE,P D CONSTRUCTION LTD,425,SOUTHWARK AREA TEAM,OTHER R&M,5902190600
06.05.2016,MODERNISATION HGF,BUILDING MONITORING SERVICES LTD,"1,336.03",160 TOOLEY ST.,BUILDING R&M,5902190720
06.05.2016,MODERNISATION HGF,ROYAL MAIL GROUP LTD,"1,398.73",160 TOOLEY ST.,POSTAGES,5902190747
06.05.2016,MODERNISATION HGF,BIO COLLECTORS LTD,896.25,160 TOOLEY ST.,REMOVAL EXPENSES,5902190694
06.05.2016,MODERNISATION HGF,BIO COLLECTORS LTD,437,160 TOOLEY ST.,REMOVAL EXPENSES,5902190695
06.05.2016,MODERNISATION HGF,ST JOHNS AMBULANCE SUPPLIES (SAC),"1,900.00",CORP. TRAINING BUDGETS,TRAINING,5902190542
06.05.2016,MODERNISATION HGF,CYGNET BUSINESS DEVELOPMENT LTD,950,ILM COSTS,TRAINING,5902190735
06.05.2016,MODERNISATION HGF,SYED & QUINN LTD,550,SAFEGUARDING,TRAINING,5902190653
06.05.2016,PECKHAM AND NUNHEAD COMMUNITY COUNCIL,PECKHAM & NUNHEAD FREE FILM FESTIVAL ,"7,000.00",FREE FILM FESTIVAL 2016 ,GRANTS,CHEQUE PAYMENT
06.05.2016,PLANNING AND TRANSPORT,DANIEL KOLINSKY,"1,500.00",PLANNING POLICY TEAM,LEGAL FEES & COURT COSTS,2102487263
06.05.2016,PUBLIC HEALTH,ROYAL SOCIETY FOR PUBLIC HEALTH,285,HEALTH IMPROVEMENT&HEALTH INEQUALITIES 2,TRAINING,5902190709
06.05.2016,REGENERATION,MACCREANOR LAVINGTON LTD,"11,000.00",MASTER PLAN-H/WAY & TRANS INTERCHANGE,PROFESSIONAL FEES,5902190582
06.05.2016,REGENERATION,MACCREANOR LAVINGTON LTD,"12,525.00",MASTER PLAN-H/WAY & TRANS INTERCHANGE,PROFESSIONAL FEES,5902190588
06.05.2016,REGENERATION,THACKRAY  WILLIAMS SOLICITORS,"3,711.25",PROPERTY - PHASE 2/3,LEGAL FEES & COURT COSTS,2102487279
06.05.2016,REGENERATION,GL HEARN LTD,500,SITES - PHASE 1,CONSULTANTS SERVICES,5902190514
06.05.2016,RESIDENT SERVICES,A & H PEST CONTROL LTD,390,WALWORTH,PEST CONTROL,5902190745
06.05.2016,SOCIAL SERVICES,ADKIN CONSULTANCY LTD,"4,125.00",HEAD OF MH PRACTICE,CONSULTANTS SERVICES,5902190548
06.05.2016,SOCIAL SERVICES,THAMES HOMECARE SERVICE LTD,450.45,OP - HOMECARE,HOMECARE - SPOT,2102487230
06.05.2016,SOCIAL SERVICES,ARJOHUNTLEIGH UK,975.1,ORIENT STREET,BUILDING R&M,5902190712
06.05.2016,SOCIAL SERVICES,DERWENT RESIDENTIAL CARE LTD,459,PETTY CASH/PERSONAL ALLOWANCE,OTHER PAYMENTS FOR CLIENTS,5902190521
06.05.2016,SOCIAL SERVICES,W UDEN & SONS LTD,"3,835.00",PETTY CASH/PERSONAL ALLOWANCE,OTHER PAYMENTS FOR CLIENTS,5902190526
06.05.2016,SOCIAL SERVICES,HOME FURNITURE SOLUTIONS (LONDON),259,PETTY CASH/PERSONAL ALLOWANCE,OTHER PAYMENTS FOR CLIENTS,5902190678
06.05.2016,SOCIAL SERVICES,REDACTED PERSONAL DATA,343.6,PETTY CASH/PERSONAL ALLOWANCE,OTHER PAYMENTS FOR CLIENTS,5902190663
06.05.2016,SOCIAL SERVICES,REDACTED PERSONAL DATA,343.6,PETTY CASH/PERSONAL ALLOWANCE,OTHER PAYMENTS FOR CLIENTS,5902190669
06.05.2016,SOCIAL SERVICES,REDACTED PERSONAL DATA,343.6,PETTY CASH/PERSONAL ALLOWANCE,OTHER PAYMENTS FOR CLIENTS,5902190675
06.05.2016,SOCIAL SERVICES,SURREY DOCKS FARM PROVIDENT SOCIETY,450,PWLD DAYCARE,DAYCARE,2102487244
06.05.2016,SOCIAL SERVICES,SURREY DOCKS FARM PROVIDENT SOCIETY,648,PWLD DAYCARE,DAYCARE,2102487246
06.05.2016,SOCIAL SERVICES,THAMES HOMECARE SERVICE LTD,293.96,PWPD HOME CARE IND,HOMECARE - SPOT,2102487233
06.05.2016,SOUTHWARK BUILDING SERVICES,BRIDGEWATER ROOFING CONTRACTORS LTD,"50,966.45",BUSINESS SUPPORT,OTHER CONTRACTORS,2102487166
06.05.2016,STRATEGIC FINANCING BUDGETS,SLATER & GORDON LLP,"21,744.65",LIABILITY RELATED INSURANCE,COMPENSATION,5902190528
06.05.2016,VARIOUS,LAND REGISTRY,278,LAND REGISTRY CHARGES,PROFESSIONAL FEES,DIRECT DEBIT PAYMENT
07.05.2016,HOUSING HRA,CALFORD SEADEN LLP,"1,908.88",CAPITAL PS (HRA),CONSTRUCTION FEES - EXTERNAL,5902189952
07.05.2016,LEISURE DIRECTORATE,CITY SUBURBAN TREE SURGEONS LIMITED,850,TREE PLANTING,OTHER CONTRACTORS,5902189844
07.05.2016,LEISURE DIRECTORATE,CITY SUBURBAN TREE SURGEONS LIMITED,"2,361.96",TREE PLANTING,OTHER CONTRACTORS,5902189850
07.05.2016,MODERNISATION HGF,BOTTOMLINE TECHNOLOGIES EUROPE LTD,438,APPLICATIONS,SOFTWARE,5902189604
07.05.2016,MODERNISATION HGF,BOTTOMLINE TECHNOLOGIES EUROPE LTD,"1,000.00",APPLICATIONS,SOFTWARE,5902189607
07.05.2016,STRATEGIC FINANCING BUDGETS,ACE EUROPEAN GROUP LIMITED,"14,734.46",SCHOOLS RELATED INSURANCE,PROPERTY INSURANCE COSTS,5902190633
08.05.2016,ENVIRONMENT AND LEISURE,LAND USE CONSULTANTS,"6,966.00",CAPITAL PS (LEISURE),CONSTRUCTION FEES - EXTERNAL,5902190539
08.05.2016,ENVIRONMENT AND LEISURE,LAND USE CONSULTANTS,"6,192.00",CAPITAL PS (LEISURE),CONSTRUCTION FEES - EXTERNAL,5902190623
08.05.2016,F & C S EXCLUDING CORPORATE BUDGETS,DSI BILLING SERVICES LTD,"3,607.96",ADMINISTRATIVE SUPPORT,POSTAGES,5902190554
08.05.2016,F & C S EXCLUDING CORPORATE BUDGETS,DSI BILLING SERVICES LTD,"4,457.77",ADMINISTRATIVE SUPPORT,POSTAGES,5902190592
09.05.2016,-,GRAFTON MERCHANTING GB LTD,310,-,-,5902190955
09.05.2016,-,ROC SYSTEMS CONSULTING LTD,"1,425.00",SAP PAYROLL,CONSULTANTS SERVICES,5902190896
09.05.2016,-,ROC SYSTEMS CONSULTING LTD,"11,508.00",SAP PAYROLL,CONSULTANTS SERVICES,5902190899
09.05.2016,ASSET MANAGEMENT,RIBA ENTERPRISES LTD,"3,275.00",DESIGN & DELIVERY (NORTH),SUBSCRIPTIONS,5902190926
09.05.2016,ASSET MANAGEMENT,CALFORD SEADEN LLP,"1,371.24",DISREPAIR,BUILDING R&M,5902190876
09.05.2016,ASSET MANAGEMENT,OCO LIMITED,"126,426.88",ENG CONTRACTS (NORTH),HEATING - INDIVIDUAL SYSTEM SERVICE,5902189914
09.05.2016,ASSET MANAGEMENT,PARSONS BRINCKERHOFF LTD,"37,381.00",ENG CONTRACTS (NORTH),PROFESSIONAL FEES,5902190826
09.05.2016,ASSET MANAGEMENT,SMITH & BYFORD LTD,"119,229.17",ENG CONTRACTS (SOUTH),HEATING - INDIVIDUAL SYSTEM SERVICE,5902189915
09.05.2016,CENTRAL FUNCTIONS,EDF ENERGY PLC,920.86,HEATING ACCOUNT,ELECTRICITY,5902190757
09.05.2016,CENTRAL FUNCTIONS,EDF ENERGY PLC,533.6,HEATING ACCOUNT,ELECTRICITY,5902190788
09.05.2016,CENTRAL FUNCTIONS,EDF ENERGY PLC,418.32,HEATING ACCOUNT,ELECTRICITY,5902190795
09.05.2016,CHIEF EXECUTIVE,CONWAY AECOM LTD,"5,864.43",CAPITAL PS (REGEN),CONSTRUCTION FEES,5902190967
09.05.2016,CHIEF EXECUTIVE,FAITHFULL & GOULD,"27,825.68",CAPITAL PS (REGEN),CONSTRUCTION FEES - EXTERNAL,5902190781
09.05.2016,CHIEF EXECUTIVE,FAITHFULL & GOULD,"2,500.00",CAPITAL PS (REGEN),CONSTRUCTION FEES - EXTERNAL,5902190785
09.05.2016,CHIEF EXECUTIVE'S OFFICE,J C CONSULTANT SERVICES LTD,"8,500.00",CHIEF EXEC'S OFFICE,GRANTS,5902190834
09.05.2016,CHIEF EXECUTIVE'S OFFICE,J C CONSULTANT SERVICES LTD,"8,000.00",CHIEF EXEC'S OFFICE,GRANTS,5902190837
09.05.2016,CHILDREN AND ADULT,STREET RUNNERS LTD,"1,270.50",CAPITAL PS (EDUCATION),CONSTRUCTION FEES,5902190802
09.05.2016,CHILDREN'S SERVICES,MONKEY PUZZLE DAY NURSERY BROMLEY,550,ADOPTION PLACEMENTS & INTER AGENCY,EXTERNAL AGENCIES AND BODIES,5902190796
09.05.2016,CHILDREN'S SERVICES,REDACTED PERSONAL DATA,500,ADOPTION PLACEMENTS & INTER AGENCY,PAYMENTS TO CARERS,5902190857
09.05.2016,CHILDREN'S SERVICES,REDACTED PERSONAL DATA,"1,992.46",ADOPTION PLACEMENTS & INTER AGENCY,PAYMENTS TO CARERS,5902190859
09.05.2016,CHILDREN'S SERVICES,SYNERGY FOSTERING LTD,"3,972.90",AGENCY FOSTERING,EXTERNAL AGENCIES AND BODIES,2102487382
09.05.2016,CHILDREN'S SERVICES,RYANCARE FOSTERING,"3,427.50",AGENCY FOSTERING,EXTERNAL AGENCIES AND BODIES,2102487383
09.05.2016,CHILDREN'S SERVICES,SWIIS FOSTER CARE LTD,697.97,AGENCY FOSTERING,EXTERNAL AGENCIES AND BODIES,2102487384
09.05.2016,CHILDREN'S SERVICES,SWIIS FOSTER CARE LTD,697.97,AGENCY FOSTERING,EXTERNAL AGENCIES AND BODIES,2102487385
09.05.2016,CHILDREN'S SERVICES,SOLACE WOMEN'S AID,512,AIS - IHT,SECTION 17 PAYMENTS TO AGENCIES/CARERS,2102487457
09.05.2016,CHILDREN'S SERVICES,SEYMOUR VALENTINE LIMITED,256.42,BRADENHAM CLOSE,REFRESHMENTS FOR MEETINGS,5902190871
09.05.2016,CHILDREN'S SERVICES,REDACTED PERSONAL DATA,"1,200.00",CARE PRACTICE GROUP SET C,OTHER PAYMENTS FOR CLIENTS,2102487400
09.05.2016,CHILDREN'S SERVICES,REDACTED PERSONAL DATA,300,DISABILITY & HIV,ADDITIONAL PAYMENTS TO AGENCIES/CARERS,2102487388
09.05.2016,CHILDREN'S SERVICES,REDACTED PERSONAL DATA,572.14,DISABILITY & HIV,ADDITIONAL PAYMENTS TO AGENCIES/CARERS,2102487389
09.05.2016,CHILDREN'S SERVICES,REDACTED PERSONAL DATA,450,DISABILITY & HIV,ADDITIONAL PAYMENTS TO AGENCIES/CARERS,2102487390
09.05.2016,CHILDREN'S SERVICES,REDACTED PERSONAL DATA,"1,134.54",DISABILITY & HIV,PAYMENTS TO CARERS,2102487387
09.05.2016,CHILDREN'S SERVICES,REDACTED PERSONAL DATA,544.58,DISABILITY & HIV,PAYMENTS TO CARERS,2102487392
09.05.2016,CHILDREN'S SERVICES,REDACTED PERSONAL DATA,"1,468.74",DISABILITY & HIV,PAYMENTS TO CARERS,2102487394
09.05.2016,CHILDREN'S SERVICES,REDACTED PERSONAL DATA,980.71,DISABILITY & HIV,PAYMENTS TO CARERS,2102487398
09.05.2016,CHILDREN'S SERVICES,REDACTED PERSONAL DATA,609.78,DISABILITY & HIV,PAYMENTS TO CARERS,2102487402
09.05.2016,CHILDREN'S SERVICES,REDACTED PERSONAL DATA,500,DISABILITY & HIV,PAYMENTS TO CARERS,5902190851
09.05.2016,CHILDREN'S SERVICES,EDF ENERGY 1 LTD,724.56,EDUC&PARTICIPATION & TRAINING TEAM,ELECTRICITY,5902190862
09.05.2016,CHILDREN'S SERVICES,PRESTIGE ADOLESCENT CARE & EDUCATION LTD,"14,785.80",RESIDENTIAL,RESIDENTIAL CARE,2102487381
09.05.2016,CHILDREN'S SERVICES,NEXT STEP CARE MANAGEMENT LTD,"1,262.14",S24 CLA,RESIDENTIAL CARE,2102487475
09.05.2016,CHILDREN'S SERVICES,NEXT STEP CARE MANAGEMENT LTD,"1,622.14",S24 CLA,RESIDENTIAL CARE,2102487479
09.05.2016,CHILDREN'S SERVICES,NEXT STEP CARE MANAGEMENT LTD,773.57,S24 CLA,RESIDENTIAL CARE,2102487481
09.05.2016,CHILDREN'S SERVICES,NEXT STEP CARE MANAGEMENT LTD,"1,647.43",S24 CLA,RESIDENTIAL CARE,2102487487
09.05.2016,CHILDREN'S SERVICES,NEXT STEP CARE MANAGEMENT LTD,"2,192.14",S24 CLA,RESIDENTIAL CARE,2102487489
09.05.2016,CHILDREN'S SERVICES,NEXT STEP CARE MANAGEMENT LTD,"1,647.43",S24 CLA,RESIDENTIAL CARE,2102487491
09.05.2016,CHILDREN'S SERVICES,NEXT STEP CARE MANAGEMENT LTD,"1,541.14",S24 CLA,RESIDENTIAL CARE,2102487497
09.05.2016,CHILDREN'S SERVICES,NEXT STEP CARE MANAGEMENT LTD,-435.71,SEMI INDEPENDENT,RESIDENTIAL CARE,2102478813
09.05.2016,CHILDREN'S SERVICES,NEXT STEP CARE MANAGEMENT LTD,427.99,SEMI INDEPENDENT,RESIDENTIAL CARE,2102487237
09.05.2016,CHILDREN'S SERVICES,THE CAMDEN SOCIETY,"15,750.00",SHORT BREAKS,EXTERNAL AGENCIES AND BODIES,5902190856
09.05.2016,CHILDREN'S SERVICES,SPRING LTD T/A BALHAM BEDS,337.5,SPECIAL PAYMENTS,EQUIPMENT PURCHASE & REPAIR,5902190501
09.05.2016,COMMUNITIES,GLOUCESTER GROVE ESTATE TMO,"4,119.99",GLOUCESTER GROVE ESTATE,M&M ALLOWANCE CO-OPS,5902190927
09.05.2016,COMMUNITIES,CITYGLEN LTD,870,NRPF PHYSICAL DISABILITIES,NATIONAL ASSISTANCE,2102487453
09.05.2016,COMMUNITIES,COMWOOD LONDON LTD,"1,143.80",NRPF PHYSICAL DISABILITIES,NATIONAL ASSISTANCE,2102487461
09.05.2016,COMMUNITIES,COMWOOD LONDON LTD,"1,069.00",NRPF PHYSICAL DISABILITIES,NATIONAL ASSISTANCE,2102487465
09.05.2016,COMMUNITIES,COMWOOD LONDON LTD,"1,143.80",NRPF PHYSICAL DISABILITIES,NATIONAL ASSISTANCE,2102487469
09.05.2016,CUSTOMER SERVICES HGF,SOUTH OF THE RIVER INVESTMENTS LTD,"1,500.00",NIGHTLY TA (NSC),EXTERNAL AGENCIES AND BODIES,5902190758
09.05.2016,CUSTOMER SERVICES HGF,SOUTH OF THE RIVER INVESTMENTS LTD,"75,439.50",NIGHTLY TA (NSC),EXTERNAL AGENCIES AND BODIES,5902190759
09.05.2016,CUSTOMER SERVICES HGF,EASYMOVE EA LIMITED,"3,330.00",NIGHTLY TA (NSC),EXTERNAL AGENCIES AND BODIES,5902190952
09.05.2016,CUSTOMER SERVICES HGF,S A PROPERTY MANAGEMENT LTD,"13,379.00",NIGHTLY TA (NSC),EXTERNAL AGENCIES AND BODIES,5902190979
09.05.2016,CUSTOMER SERVICES HGF,THE KNOWLEDGE ACADEMY LTD,"1,189.00",QUALITY & TRAINING,TRAINING,5902190835
09.05.2016,ELECTORAL SVCES,CORNERSTONE BARRISTERS,"7,500.00",BY-ELECTION,PROFESSIONAL FEES,5902190969
09.05.2016,ENVIRONMENT AND LEISURE,PICK EVERARD,"2,104.99",CAPITAL PS (LEISURE),CONSTRUCTION FEES - EXTERNAL,5902190911
09.05.2016,ENVIRONMENT AND LEISURE,RIDGE & PARTNERS LLP,"10,000.00",CAPITAL PS (LEISURE),CONSTRUCTION FEES - EXTERNAL,5902190768
09.05.2016,ENVIRONMENT AND LEISURE,CYCLEHOOP LTD,"1,980.00",CAPITAL PS (LEISURE),CONSTRUCTION MAIN CONTRACT - NON CERTIFICATED,5902190882
09.05.2016,ENVIRONMENT AND LEISURE,MORGANICO,"1,000.00",CAPITAL PS (LEISURE),CONSTRUCTION MAIN CONTRACT - NON CERTIFICATED,5902190963
09.05.2016,ENVIRONMENT DIRECTORATE,CALLOW MASTER LOCKSMITHS,"1,697.45",ENGINEERING CRAFTS,OTHER CONTRACTORS,5902190804
09.05.2016,ENVIRONMENT DIRECTORATE,CALLOW MASTER LOCKSMITHS,831.73,ENGINEERING CRAFTS,OTHER CONTRACTORS,5902190805
09.05.2016,ENVIRONMENT DIRECTORATE,PERFORMANCE CHEMICALS LTD,"1,719.18",ESTATE CLEANING-GENERAL,MATERIALS,5902190708
09.05.2016,ENVIRONMENT DIRECTORATE,GREENHAM TRADING LTD,"1,177.93",ESTATE CLEANING-GENERAL,MATERIALS,5902190950
09.05.2016,ENVIRONMENT DIRECTORATE,THE T.P. PARTNERSHIP,572,ESTATE CLEANING-GENERAL,OTHER CONTRACTORS,5902190971
09.05.2016,ENVIRONMENT DIRECTORATE,THE T.P. PARTNERSHIP,400,ESTATE CLEANING-GENERAL,OTHER CONTRACTORS,5902190972
09.05.2016,ENVIRONMENT DIRECTORATE,SPALDINGS (UK) LTD,254.82,GROUNDS MAINTENANCE - GENERAL,MATERIALS,5902190929
09.05.2016,ENVIRONMENT DIRECTORATE,ROANTREE INCENTIVE MARKETING LTD,"9,018.50",HOUSEHOLD COLLECTIONS,"OP.LEASE/HIRE CHARGES: PLANT, EQUIPT & FURNITURE",5902190777
09.05.2016,ENVIRONMENT DIRECTORATE,CROWN OIL UK,"1,238.90",SANDGATE STREET,VEHICLE FUEL,5902190919
09.05.2016,ENVIRONMENT DIRECTORATE,GODFREYS (SEVENOAKS) LTD,"12,800.00",STREET CLEANING-GENERAL,EQUIPMENT PURCHASE & REPAIR,5902190806
09.05.2016,ENVIRONMENT DIRECTORATE,THE INDUSTRIAL MAINTENANCE GROUP LTD,"4,344.48",STREET CLEANING-GENERAL,EQUIPMENT PURCHASE & REPAIR,5902190966
09.05.2016,ENVIRONMENT DIRECTORATE,GODFREYS (SEVENOAKS) LTD,"52,867.60",STREET CLEANING-GENERAL,EQUIPMENT PURCHASE & REPAIR,5902190980
09.05.2016,ENVIRONMENT DIRECTORATE,SHARPE PRITCHARD LLP,"5,440.00",TRANSPORT ENGINEERING,CONSULTANTS SERVICES,5902190962
09.05.2016,ENVIRONMENT DIRECTORATE,MOUCHEL LTD,"2,240.00",TRANSPORT ENGINEERING,OTHER CONTRACTORS,5902190968
09.05.2016,F & C S EXCLUDING CORPORATE BUDGETS,ROYAL MAIL GROUP LTD,"1,160.94",ADMINISTRATIVE SUPPORT,DELIVERY CHARGES,5902190877
09.05.2016,F & C S EXCLUDING CORPORATE BUDGETS,NORTHGATE PUBLIC SERVICES (UK) LTD,"9,166.67",ADMINISTRATIVE SUPPORT,PRINTING,5902190789
09.05.2016,F & C S EXCLUDING CORPORATE BUDGETS,CAPITA BUSINESS SERVICES LTD,"6,048.00",CAPITA,OTHER CONTRACTORS,5902190831
09.05.2016,F & C S EXCLUDING CORPORATE BUDGETS,THE ACADEMY @ PECKHAM,270,COMMUNITY COUNCILS,HIRE OF ROOMS/HALLS,5902190895
09.05.2016,F & C S EXCLUDING CORPORATE BUDGETS,BEVAN BRITTAN LLP,"2,700.00",CORPORATE SERVICES,PROFESSIONAL FEES,5902190845
09.05.2016,F & C S EXCLUDING CORPORATE BUDGETS,ENFORCEMENT BAILIFFS LTD,"1,300.00",COUNCIL TAX,COUNCIL TAX,5902190892
09.05.2016,HOUSING GENERAL FUND,KENT COUNTY COUNCIL - LASER,852.97,CAPITAL PS (REGEN),CONSTRUCTION MAIN CONTRACT - CERTIFICATED,5902190836
09.05.2016,HOUSING GENERAL FUND,KENT COUNTY COUNCIL - LASER,338.88,CAPITAL PS (REGEN),CONSTRUCTION MAIN CONTRACT - CERTIFICATED,5902190839
09.05.2016,HOUSING HRA,HARRADINES REMOVALS,"2,200.00",CAPITAL PS (HRA),CAPITAL GRANTS,5902190774
09.05.2016,HOUSING HRA,EUROPE REMOVAL & STORAGE LTD,685,CAPITAL PS (HRA),CAPITAL GRANTS,5902190786
09.05.2016,HOUSING HRA,CALFORD SEADEN LLP,"75,318.11",CAPITAL PS (HRA),CONSTRUCTION FEES - EXTERNAL,5902190772
09.05.2016,HOUSING HRA,CALFORD SEADEN LLP,"8,027.31",CAPITAL PS (HRA),CONSTRUCTION FEES - EXTERNAL,5902190775
09.05.2016,HOUSING HRA,CALFORD SEADEN LLP,"6,232.16",CAPITAL PS (HRA),CONSTRUCTION FEES - EXTERNAL,5902190780
09.05.2016,HOUSING HRA,CALFORD SEADEN LLP,"1,052.46",CAPITAL PS (HRA),CONSTRUCTION FEES - EXTERNAL,5902190787
09.05.2016,HOUSING HRA,CALFORD SEADEN LLP,"4,015.02",CAPITAL PS (HRA),CONSTRUCTION FEES - EXTERNAL,5902190791
09.05.2016,HOUSING HRA,CALFORD SEADEN LLP,"5,032.91",CAPITAL PS (HRA),CONSTRUCTION FEES - EXTERNAL,5902190799
09.05.2016,HOUSING HRA,CALFORD SEADEN LLP,"2,061.96",CAPITAL PS (HRA),CONSTRUCTION FEES - EXTERNAL,5902190812
09.05.2016,HOUSING HRA,CALFORD SEADEN LLP,"5,733.39",CAPITAL PS (HRA),CONSTRUCTION FEES - EXTERNAL,5902190814
09.05.2016,HOUSING HRA,CALFORD SEADEN LLP,"3,668.03",CAPITAL PS (HRA),CONSTRUCTION FEES - EXTERNAL,5902190816
09.05.2016,HOUSING HRA,CALFORD SEADEN LLP,"1,164.98",CAPITAL PS (HRA),CONSTRUCTION FEES - EXTERNAL,5902190872
09.05.2016,HOUSING HRA,CALFORD SEADEN LLP,"11,991.43",CAPITAL PS (HRA),CONSTRUCTION FEES - EXTERNAL,5902190881
09.05.2016,HOUSING HRA,CALFORD SEADEN LLP,"2,080.72",CAPITAL PS (HRA),CONSTRUCTION FEES - EXTERNAL,5902190906
09.05.2016,HOUSING HRA,CALFORD SEADEN LLP,"4,495.81",CAPITAL PS (HRA),CONSTRUCTION FEES - EXTERNAL,5902190922
09.05.2016,HOUSING HRA,CALFORD SEADEN LLP,"2,917.50",CAPITAL PS (HRA),CONSTRUCTION FEES - EXTERNAL,5902190949
09.05.2016,HOUSING HRA,CALFORD SEADEN LLP,"2,725.91",CAPITAL PS (HRA),CONSTRUCTION FEES - EXTERNAL,5902190953
09.05.2016,HOUSING HRA,CALFORD SEADEN LLP,"1,591.47",CAPITAL PS (HRA),CONSTRUCTION FEES - EXTERNAL,5902190956
09.05.2016,HOUSING HRA,CALFORD SEADEN LLP,"9,485.44",CAPITAL PS (HRA),CONSTRUCTION FEES - EXTERNAL,5902190960
09.05.2016,HOUSING HRA,ALAN CONISBEE & ASSOCIATES LTD,"1,175.00",CAPITAL PS (HRA),CONSTRUCTION FEES - EXTERNAL,5902190974
09.05.2016,LEISURE DIRECTORATE,ARTS DEVELOPMENT UK,"1,000.00",ARTS SERVICES,TRAINING,5902190864
09.05.2016,LEISURE DIRECTORATE,LEISURE-NET SOLUTIONS LTD,500,COMMUNITY SPORTS DEVELOPMENT,EXTERNAL AGENCIES AND BODIES,5902190965
09.05.2016,LEISURE DIRECTORATE,THE SALMON YOUTH CENTRE,"1,020.00",COMMUNITY SPORTS SMALL GRANTS,HIRE OF ROOMS/HALLS,5902190964
09.05.2016,LEISURE DIRECTORATE,EDF ENERGY PLC,868.16,DULWICH AREA TEAM,ELECTRICITY,5902190766
09.05.2016,LEISURE DIRECTORATE,CM & HANNELLY BUILDING SERVICES,"1,170.00",FOOTBALL FACILITY SOUTHWARK SPORTS GRD,BUILDING R&M,2102485693
09.05.2016,LEISURE DIRECTORATE,CM & HANNELLY BUILDING SERVICES,780,FOOTBALL FACILITY SOUTHWARK SPORTS GRD,BUILDING R&M,2102485695
09.05.2016,LEISURE DIRECTORATE,CM & HANNELLY BUILDING SERVICES,"4,200.00",FOOTBALL FACILITY SOUTHWARK SPORTS GRD,BUILDING R&M,2102485696
09.05.2016,LEISURE DIRECTORATE,CM & HANNELLY BUILDING SERVICES,765,FOOTBALL FACILITY SOUTHWARK SPORTS GRD,BUILDING R&M,2102485697
09.05.2016,LEISURE DIRECTORATE,ASKEWS & HOLTS LIBRARY SERVICES LTD,269.1,STOCK SERVICES,BOOKS & PUBLICATIONS,5902190819
09.05.2016,LEISURE DIRECTORATE,ASKEWS & HOLTS LIBRARY SERVICES LTD,"20,841.13",STOCK SERVICES,BOOKS & PUBLICATIONS,5902190819
09.05.2016,LEISURE DIRECTORATE,ASKEWS & HOLTS LIBRARY SERVICES LTD,"3,885.00",STOCK SERVICES,BOOKS & PUBLICATIONS,5902190827
09.05.2016,MODERNISATION HGF,ROYAL MAIL GROUP LTD,279.59,160 TOOLEY ST.,POSTAGES,5902190828
09.05.2016,MODERNISATION HGF,KENT COUNTY COUNCIL - LASER,"36,806.66",160 TOOLEY ST.,ELECTRICITY,5902190863
09.05.2016,MODERNISATION HGF,KENT COUNTY COUNCIL - LASER,"2,640.01",160 TOOLEY ST.,GAS,5902190866
09.05.2016,MODERNISATION HGF,KENT COUNTY COUNCIL - LASER,426.89,47B EAST DULWICH ROAD,GAS,5902190865
09.05.2016,MODERNISATION HGF,KENT COUNTY COUNCIL - LASER,560.93,7 TALFOURD ROAD,GAS,5902190843
09.05.2016,MODERNISATION HGF,KENT COUNTY COUNCIL - LASER,395.89,BOURNEMOUTH GROVE,GAS,5902190867
09.05.2016,MODERNISATION HGF,AMTECH GROUP LTD,"1,950.00",CFM SITE OPERATIONS,SOFTWARE,5902190888
09.05.2016,MODERNISATION HGF,RIBA ENTERPRISES LTD,"1,637.50",CFM TEAM,SUBSCRIPTIONS,5902190926
09.05.2016,MODERNISATION HGF,PLANET TRAINING LIMITED,600,CORP. TRAINING BUDGETS,TRAINING,5902190794
09.05.2016,MODERNISATION HGF,PLANET TRAINING LIMITED,600,CORP. TRAINING BUDGETS,TRAINING,5902190794
09.05.2016,MODERNISATION HGF,PLANET TRAINING LIMITED,600,CORP. TRAINING BUDGETS,TRAINING,5902190794
09.05.2016,MODERNISATION HGF,PLANET TRAINING LIMITED,600,CORP. TRAINING BUDGETS,TRAINING,5902190794
09.05.2016,MODERNISATION HGF,WYNNE BIER CONSULTANCY LTD,640,CORP. TRAINING BUDGETS,TRAINING,5902190830
09.05.2016,MODERNISATION HGF,WORD SMITHS,750,CORP. TRAINING BUDGETS,TRAINING,5902190838
09.05.2016,MODERNISATION HGF,ASPIRE EUROPE LTD,"5,314.00",CORP. TRAINING BUDGETS,TRAINING,5902190886
09.05.2016,MODERNISATION HGF,THAMES WATER UTILITIES LTD,895.43,CURLEW HOUSE,WATER,5902190815
09.05.2016,MODERNISATION HGF,PLANET TRAINING LIMITED,600,MEMBER DEVELOPMENT,TRAINING,5902190808
09.05.2016,MODERNISATION HGF,KENT COUNTY COUNCIL - LASER,"6,764.27",QUEENS RD 1 (BLOCK F),ELECTRICITY,5902190883
09.05.2016,MODERNISATION HGF,KENT COUNTY COUNCIL - LASER,"2,311.17",QUEENS ROAD 2 (BLOCK J),ELECTRICITY,5902190874
09.05.2016,MODERNISATION HGF,KENT COUNTY COUNCIL - LASER,"2,094.36",QUEENS ROAD 3 (BLOCK C),ELECTRICITY,5902190846
09.05.2016,MODERNISATION HGF,SODEXHO PASS LTD,"27,197.59",SODEXHO,OTHER EMPLOYEE EXPENSES,5902190821
09.05.2016,MODERNISATION HGF,MTI TECHNOLOGY LTD,"3,500.00",TECHNOLOGY,COMPUTER MAINTENANCE,5902190880
09.05.2016,MODERNISATION HGF,MTI TECHNOLOGY LTD,"10,725.00",TECHNOLOGY,COMPUTER MAINTENANCE,5902190880
09.05.2016,PLANNING AND TRANSPORT,CAVENDISH LEGAL GROUP LTD,"3,570.00",S106 & CIL ADMINISTRATION,LEGAL FEES & COURT COSTS,5902190887
09.05.2016,PLANNING AND TRANSPORT,STEER DAVIES & GLEAVE LIMITED,"8,310.00",VELOCITTA,CONSULTANTS SERVICES,5902190487
09.05.2016,REGENERATION,RIBA ENTERPRISES LTD,"1,637.50",CAPITAL PROJECTS - M & A,SUBSCRIPTIONS,5902190926
09.05.2016,REGENERATION,RIBA ENTERPRISES LTD,870,PROPERTY TEAM,SUBSCRIPTIONS,5902190926
09.05.2016,RESIDENT SERVICES,CAPITA BUSINESS SERVICES LTD,359,SHELTERED WARDENS,TRAINING,5902190861
09.05.2016,SOCIAL SERVICES,CAREWATCH LEWISHAM,"10,207.40",CARE PACKAGES (PWPD),HOMECARE - IC,5902190860
09.05.2016,SOCIAL SERVICES,ELIBARIKI PROCARE LTD,"1,775.50",CARE PACKAGES (PWPD),HOMECARE - SPOT,2102487513
09.05.2016,SOCIAL SERVICES,VEOLIA ES (UK)LTD,556.99,MH NORTH,REFUSE COLLECTION CONTRACT,5902190907
09.05.2016,SOCIAL SERVICES,KENT COUNTY COUNCIL - LASER,354.47,MH NORTH,GAS,5902190898
09.05.2016,SOCIAL SERVICES,KENT COUNTY COUNCIL - LASER,490.34,MH NORTH,GAS,5902190901
09.05.2016,SOCIAL SERVICES,KENT COUNTY COUNCIL - LASER,441.06,MH NORTH,GAS,5902190914
09.05.2016,SOCIAL SERVICES,MIHOMECARE LTD,474.81,OP - HOMECARE,HOMECARE - C&V,2102487517
09.05.2016,SOCIAL SERVICES,MIHOMECARE LTD,"1,520.23",OP - HOMECARE,HOMECARE - C&V,2102487520
09.05.2016,SOCIAL SERVICES,MIHOMECARE LTD,"2,965.48",OP - HOMECARE,HOMECARE - C&V,2102487521
09.05.2016,SOCIAL SERVICES,YOUTH GRACES (UK) LTD,397.8,OP - HOMECARE,HOMECARE - SPOT,2102487539
09.05.2016,SOCIAL SERVICES,YOUTH GRACES (UK) LTD,441.68,OP - HOMECARE,HOMECARE - SPOT,2102487543
09.05.2016,SOCIAL SERVICES,YOUTH GRACES (UK) LTD,270.95,OP - HOMECARE,HOMECARE - SPOT,2102487556
09.05.2016,SOCIAL SERVICES,YOUTH GRACES (UK) LTD,561.46,OP - HOMECARE,HOMECARE - SPOT,2102487566
09.05.2016,SOCIAL SERVICES,YOUTH GRACES (UK) LTD,807.37,OP - HOMECARE,HOMECARE - SPOT,2102487570
09.05.2016,SOCIAL SERVICES,YOUTH GRACES (UK) LTD,301.22,OP - HOMECARE,HOMECARE - SPOT,2102487596
09.05.2016,SOCIAL SERVICES,YOUTH GRACES (UK) LTD,752.85,OP - HOMECARE,HOMECARE - SPOT,2102487603
09.05.2016,SOCIAL SERVICES,HEALTHCARE & TRANSPORT SERVICE,354,OP CARE PACKAGES,CLIENT TRANSPORT,2102487522
09.05.2016,SOCIAL SERVICES,YOUTH GRACES (UK) LTD,540.99,OP CARE PACKAGES,HOMECARE - SPOT,2102487529
09.05.2016,SOCIAL SERVICES,YOUTH GRACES (UK) LTD,617.18,OP CARE PACKAGES,HOMECARE - SPOT,2102487545
09.05.2016,SOCIAL SERVICES,YOUTH GRACES (UK) LTD,631.87,OP CARE PACKAGES,HOMECARE - SPOT,2102487550
09.05.2016,SOCIAL SERVICES,PLUS SERVICES,"1,100.22",PWLD HOME CARE IND,EXTERNAL AGENCIES AND BODIES,2102487514
09.05.2016,SOCIAL SERVICES,YOUTH GRACES (UK) LTD,351.04,PWPD HOME CARE IND,HOMECARE - SPOT,2102487536
09.05.2016,SOCIAL SERVICES,YOUTH GRACES (UK) LTD,910.5,PWPD HOME CARE IND,HOMECARE - SPOT,2102487548
09.05.2016,SOCIAL SERVICES,YOUTH GRACES (UK) LTD,327.53,PWPD HOME CARE IND,HOMECARE - SPOT,2102487552
09.05.2016,SOCIAL SERVICES,MIHOMECARE LTD,283.22,REABLEMENT SERVICE,HOMECARE - C&V,2102487519
09.05.2016,SOCIAL SERVICES,GENERAL WELFARE OF THE BLIND,"1,805.83",SHLTED WORKSHOP/BLIND,OTHER PAYMENTS FOR CLIENTS,2102487471
09.05.2016,SOCIAL SERVICES,GENERAL WELFARE OF THE BLIND,"1,884.43",SHLTED WORKSHOP/BLIND,OTHER PAYMENTS FOR CLIENTS,2102487473
09.05.2016,SOCIAL SERVICES,SOUND ACADEMY,300,SOUTHWARK BLACK MENTAL HEALTH PROJECT,OTHER PAYMENTS FOR CLIENTS,5902190973
09.05.2016,SOUTHWARK BUILDING SERVICES,VEOLIA ES (UK)LTD,442.8,VOIDS OVERHEADS,WASTE DISPOSAL CONTRACT,5902190970
09.05.2016,SOUTHWARK BUILDING SERVICES,VEOLIA ES (UK)LTD,444.96,VOIDS OVERHEADS,WASTE DISPOSAL CONTRACT,5902190970
09.05.2016,SOUTHWARK BUILDING SERVICES,VEOLIA ES (UK)LTD,795.65,VOIDS OVERHEADS,WASTE DISPOSAL CONTRACT,5902190970
09.05.2016,SOUTHWARK BUILDING SERVICES,VEOLIA ES (UK)LTD,"1,084.32",VOIDS OVERHEADS,WASTE DISPOSAL CONTRACT,5902190970
09.05.2016,SOUTHWARK SCHOOL FOR FUTURE,HIGHSHORE SCHOOL,"1,131.81",CAPITAL PS (REGEN),CONSTRUCTION,5902190975
09.05.2016,SOUTHWARK SCHOOL FOR FUTURE,HIGHSHORE SCHOOL,519.8,CAPITAL PS (REGEN),CONSTRUCTION,5902190976
10.05.2016,-,LONDON TOOLS LIMITED,312,-,-,5902191041
10.05.2016,-,LONDON TOOLS LIMITED,"1,700.00",-,-,5902191041
10.05.2016,-,LONDON TOOLS LIMITED,"2,675.00",-,-,5902191041
10.05.2016,-,LONDON TOOLS LIMITED,252,-,-,5902191044
10.05.2016,-,LONDON TOOLS LIMITED,750,-,-,5902191047
10.05.2016,-,LONDON TOOLS LIMITED,405,-,-,5902191053
10.05.2016,-,LONDON TOOLS LIMITED,555,-,-,5902191053
10.05.2016,-,LONDON TOOLS LIMITED,918.36,-,-,5902191059
10.05.2016,-,LONDON TOOLS LIMITED,"1,140.00",-,-,5902191059
10.05.2016,-,LONDON TOOLS LIMITED,768,-,-,5902191063
10.05.2016,-,LONDON TOOLS LIMITED,440,-,-,5902191067
10.05.2016,-,LONDON TOOLS LIMITED,480,-,-,5902191073
10.05.2016,-,LONDON TOOLS LIMITED,255.6,-,-,5902191082
10.05.2016,-,GUIDELINE LIFT SERVICES LTD,"69,014.15",GUIDELINE,MANUAL CREDITORS,5902191008
10.05.2016,ASSET MANAGEMENT,ENTRYPHONE COMPANY LTD,422.4,ADAPTATIONS,OTHER R&M,5902191052
10.05.2016,"BOROUGH, BANKSIDE & WALWORTH COMMUNITY COUNCIL",THE WALWORTH SOCIETY ,"5,000.00",LOW LINE � WEST WALWORTH ,GRANTS,CHEQUE PAYMENT
10.05.2016,CAMBERWELL COMMUNITY COUNCIL,CAMBERWELL CHOIR SCHOOL,"2,636.00",OUCH!,GRANTS,CHEQUE PAYMENT
10.05.2016,CENTRAL FUNCTIONS,ANTHONY GOLD SOLICITORS,"2,664.72",HOME OWNERSHIP INCOME,HOUSING RESIDENTIAL RENTS,5902191316
10.05.2016,CHIEF EXECUTIVE'S OFFICE,PECAN LTD,"29,737.00",CHIEF EXEC'S OFFICE,GRANTS,5902191305
10.05.2016,CHILDREN'S SERVICES,NATIONAL FOSTERING AGENCY,"2,998.01",AGENCY FOSTERING,EXTERNAL AGENCIES AND BODIES,2102487637
10.05.2016,CHILDREN'S SERVICES,NATIONAL FOSTERING AGENCY,"2,998.01",AGENCY FOSTERING,EXTERNAL AGENCIES AND BODIES,2102487638
10.05.2016,CHILDREN'S SERVICES,NATIONAL FOSTERING AGENCY,"2,998.01",AGENCY FOSTERING,EXTERNAL AGENCIES AND BODIES,2102487639
10.05.2016,CHILDREN'S SERVICES,NATIONAL FOSTERING AGENCY,"2,998.01",AGENCY FOSTERING,EXTERNAL AGENCIES AND BODIES,2102487640
10.05.2016,CHILDREN'S SERVICES,NATIONAL FOSTERING AGENCY,"1,450.65",AGENCY FOSTERING,EXTERNAL AGENCIES AND BODIES,2102487641
10.05.2016,CHILDREN'S SERVICES,NATIONAL FOSTERING AGENCY,"1,450.65",AGENCY FOSTERING,EXTERNAL AGENCIES AND BODIES,2102487642
10.05.2016,CHILDREN'S SERVICES,FAMILY FOSTERING LTD,"3,437.40",AGENCY FOSTERING,EXTERNAL AGENCIES AND BODIES,2102487659
10.05.2016,CHILDREN'S SERVICES,FAMILY FOSTERING LTD,"3,437.40",AGENCY FOSTERING,EXTERNAL AGENCIES AND BODIES,2102487660
10.05.2016,CHILDREN'S SERVICES,FITZGERALD FOSTERING & CONSULTANCY,"3,120.00",AGENCY FOSTERING,EXTERNAL AGENCIES AND BODIES,2102487662
10.05.2016,CHILDREN'S SERVICES,MOMENTS FOSTERING LTD,383.95,AGENCY FOSTERING,OTHER PAYMENTS FOR CLIENTS,2102487636
10.05.2016,CHILDREN'S SERVICES,ALBION PRIMARY SCHOOL,"9,354.00",ALBION JMI,EARLY YEARS - 3 AND 4 YEAR OLDS,5902191110
10.05.2016,CHILDREN'S SERVICES,ALBION PRIMARY SCHOOL,"152,164.00",ALBION JMI,SCHOOLS CAPITATION,5902191109
10.05.2016,CHILDREN'S SERVICES,ALFRED SALTER PRIMARY SCHOOL,"12,868.00",ALFRED SALTER PRIMARY,EARLY YEARS - 3 AND 4 YEAR OLDS,5902191112
10.05.2016,CHILDREN'S SERVICES,ALFRED SALTER PRIMARY SCHOOL,"185,068.00",ALFRED SALTER PRIMARY,SCHOOLS CAPITATION,5902191111
10.05.2016,CHILDREN'S SERVICES,BELLENDEN PRIMARY SCHOOL,"10,455.00",BELLENDEN JMI,EARLY YEARS - 3 AND 4 YEAR OLDS,5902191114
10.05.2016,CHILDREN'S SERVICES,BELLENDEN PRIMARY SCHOOL,"105,475.00",BELLENDEN JMI,SCHOOLS CAPITATION,5902191113
10.05.2016,CHILDREN'S SERVICES,BEORMUND PRIMARY SCHOOL,"68,695.00",BEORMUND SCHOOL,HIGH NEEDS - BASE FUNDING,5902191115
10.05.2016,CHILDREN'S SERVICES,BESSEMER GRANGE PRIMARY SCHOOL,"14,123.00",BESSEMER GRNGE PRIMARY,EARLY YEARS - 3 AND 4 YEAR OLDS,5902191117
10.05.2016,CHILDREN'S SERVICES,BESSEMER GRANGE PRIMARY SCHOOL,"232,576.00",BESSEMER GRNGE PRIMARY,SCHOOLS CAPITATION,5902191116
10.05.2016,CHILDREN'S SERVICES,BOUCHER C OF E PRIMARY SCHOOL,"97,827.00",BOUTCHER GRANGE JMI,SCHOOLS CAPITATION,5902191119
10.05.2016,CHILDREN'S SERVICES,BRUNSWICK PARK PRIMARY SCHOOL,"14,269.00",BRUNSWICK PARK JM,EARLY YEARS - 3 AND 4 YEAR OLDS,5902191121
10.05.2016,CHILDREN'S SERVICES,BRUNSWICK PARK PRIMARY SCHOOL,"35,907.00",BRUNSWICK PARK JM,HIGH NEEDS - TOP UP FUNDING,5902191122
10.05.2016,CHILDREN'S SERVICES,BRUNSWICK PARK PRIMARY SCHOOL,"222,661.00",BRUNSWICK PARK JM,SCHOOLS CAPITATION,5902191120
10.05.2016,CHILDREN'S SERVICES,CAMELOT PRIMARY SCHOOL,"11,792.00",CAMELOT JMI,EARLY YEARS - 3 AND 4 YEAR OLDS,5902191124
10.05.2016,CHILDREN'S SERVICES,CAMELOT PRIMARY SCHOOL,"221,976.00",CAMELOT JMI,SCHOOLS CAPITATION,5902191123
10.05.2016,CHILDREN'S SERVICES,CATHEDRAL SCHOOL OF ST SAVIOUR & MARY,"7,854.00",CATHDRL SCH OF ST,EARLY YEARS - 3 AND 4 YEAR OLDS,5902191234
10.05.2016,CHILDREN'S SERVICES,CATHEDRAL SCHOOL OF ST SAVIOUR & MARY,"90,479.00",CATHDRL SCH OF ST,SCHOOLS CAPITATION,5902191233
10.05.2016,CHILDREN'S SERVICES,CHARLES DICKENS PRIMARY SCHOOL,"9,922.00",CHARLES DICKENS JMI,EARLY YEARS - 3 AND 4 YEAR OLDS,5902191126
10.05.2016,CHILDREN'S SERVICES,CHARLES DICKENS PRIMARY SCHOOL,"170,776.00",CHARLES DICKENS JMI,SCHOOLS CAPITATION,5902191125
10.05.2016,CHILDREN'S SERVICES,CHARLOTTE  SHARMAN PRIMARY SCHOOL,"7,774.00",CHARLOTTE SHARMAN JMI,EARLY YEARS - 3 AND 4 YEAR OLDS,5902191128
10.05.2016,CHILDREN'S SERVICES,CHARLOTTE  SHARMAN PRIMARY SCHOOL,"144,556.00",CHARLOTTE SHARMAN JMI,SCHOOLS CAPITATION,5902191127
10.05.2016,CHILDREN'S SERVICES,CHERRY GARDEN SCHOOL,"117,658.00",CHERRY GARDEN,HIGH NEEDS - BASE FUNDING,5902191132
10.05.2016,CHILDREN'S SERVICES,1ST PLACE CHILDREN & PARENTS CENTRE,676.25,CHILDRENS CENTRE,OTHER SUBSISTENCE & CONFERENCE EXPENSES,5902191300
10.05.2016,CHILDREN'S SERVICES,1ST PLACE CHILDREN & PARENTS CENTRE,592.8,CHILDRENS CENTRE,PROFESSIONAL FEES,5902191287
10.05.2016,CHILDREN'S SERVICES,1ST PLACE CHILDREN & PARENTS CENTRE,592.8,CHILDRENS CENTRE,PROFESSIONAL FEES,5902191292
10.05.2016,CHILDREN'S SERVICES,COBOURG PRIMARY SCHOOL,"8,473.00",COBURG JMI,EARLY YEARS - 3 AND 4 YEAR OLDS,5902191135
10.05.2016,CHILDREN'S SERVICES,COBOURG PRIMARY SCHOOL,"187,041.00",COBURG JMI,SCHOOLS CAPITATION,5902191134
10.05.2016,CHILDREN'S SERVICES,COMBER GROVE PRIMARY SCHOOL,"10,551.00",COMBER GROVE PRIMARY,EARLY YEARS - 3 AND 4 YEAR OLDS,5902191137
10.05.2016,CHILDREN'S SERVICES,COMBER GROVE PRIMARY SCHOOL,"140,355.00",COMBER GROVE PRIMARY,SCHOOLS CAPITATION,5902191136
10.05.2016,CHILDREN'S SERVICES,CRAMPTON PRIMARY SCHOOL,"102,129.00",CRAMPTON JMI,SCHOOLS CAPITATION,5902191138
10.05.2016,CHILDREN'S SERVICES,CRAWFORD PRIMARY SCHOOL,"12,435.00",CRAWFORD JMI,EARLY YEARS - 3 AND 4 YEAR OLDS,5902191140
10.05.2016,CHILDREN'S SERVICES,CRAWFORD PRIMARY SCHOOL,"223,728.00",CRAWFORD JMI,SCHOOLS CAPITATION,5902191139
10.05.2016,CHILDREN'S SERVICES,DULWICH WOOD CHILDRENS CENTRE,"47,335.00",D.WOOD - CENTRAL,EARLY YEARS - 3 AND 4 YEAR OLDS,5902191243
10.05.2016,CHILDREN'S SERVICES,DOG KENNEL HILL PRIMARY SCHOOL,"11,542.00",DOG KENNEL HILL JMI,EARLY YEARS - 3 AND 4 YEAR OLDS,5902191142
10.05.2016,CHILDREN'S SERVICES,DOG KENNEL HILL PRIMARY SCHOOL,"181,722.00",DOG KENNEL HILL JMI,SCHOOLS CAPITATION,5902191141
10.05.2016,CHILDREN'S SERVICES,DULWICH VILLAGE CE INFANTS SCHOOL,"110,403.00",DULWICH VILLAGE I,SCHOOLS CAPITATION,5902191143
10.05.2016,CHILDREN'S SERVICES,PHOENIXPLACE,"8,634.00",EDUCATION OTHERWISE,EXTERNAL AGENCIES AND BODIES,5902191267
10.05.2016,CHILDREN'S SERVICES,ENGLISH MARTYRS RC PRIMARY SCHOOL,"10,101.00",ENGLISH MARTYRS JMI,EARLY YEARS - 3 AND 4 YEAR OLDS,5902191149
10.05.2016,CHILDREN'S SERVICES,ENGLISH MARTYRS RC PRIMARY SCHOOL,"174,073.00",ENGLISH MARTYRS JMI,SCHOOLS CAPITATION,5902191148
10.05.2016,CHILDREN'S SERVICES,PHOENIX PRIMARY SCHOOL,"15,434.00",EVELINE LOWE JMI,EARLY YEARS - 3 AND 4 YEAR OLDS,5902191152
10.05.2016,CHILDREN'S SERVICES,PHOENIX PRIMARY SCHOOL,"220,749.00",EVELINE LOWE JMI,SCHOOLS CAPITATION,5902191151
10.05.2016,CHILDREN'S SERVICES,COMMUNITY HEALTH PARTNERSHIPS,"226,707.00",FINANCE,RENTS,5902191275
10.05.2016,CHILDREN'S SERVICES,FRIARS PRIMARY SCHOOL,"4,803.00",FRIARS SCHOOL,EARLY YEARS - 3 AND 4 YEAR OLDS,5902191154
10.05.2016,CHILDREN'S SERVICES,FRIARS PRIMARY SCHOOL,"91,110.00",FRIARS SCHOOL,SCHOOLS CAPITATION,5902191153
10.05.2016,CHILDREN'S SERVICES,GOODRICH PRIMARY SCHOOL,"19,402.00",GOODRICH JMI,EARLY YEARS - 3 AND 4 YEAR OLDS,5902191145
10.05.2016,CHILDREN'S SERVICES,GOODRICH PRIMARY SCHOOL,"240,090.00",GOODRICH JMI,SCHOOLS CAPITATION,5902191144
10.05.2016,CHILDREN'S SERVICES,GRANGE PRIMARY SCHOOL,"7,398.00",GRANGE JMI,EARLY YEARS - 3 AND 4 YEAR OLDS,5902191147
10.05.2016,CHILDREN'S SERVICES,GRANGE PRIMARY SCHOOL,"172,088.00",GRANGE JMI,SCHOOLS CAPITATION,5902191146
10.05.2016,CHILDREN'S SERVICES,THE GROVE CHILDRENS CENTRE,"49,020.00",GROVE - CENTRAL,EARLY YEARS - 3 AND 4 YEAR OLDS,5902191235
10.05.2016,CHILDREN'S SERVICES,EVELINA HOSPITAL SCHOOL,"72,336.00",GUYS,HIGH NEEDS - BASE FUNDING,5902191150
10.05.2016,CHILDREN'S SERVICES,HAYMERLE SCHOOL,"179,178.00",HAYMERLE SCH,HIGH NEEDS - BASE FUNDING,5902191171
10.05.2016,CHILDREN'S SERVICES,COMMUNITY HEALTH PARTNERSHIPS,"54,300.00",HEARING AND VISUAL IMPAIRMENT TEAM,RENTS,5902191275
10.05.2016,CHILDREN'S SERVICES,HEBER PRIMARY SCHOOL,"12,292.00",HEBER JMI,EARLY YEARS - 3 AND 4 YEAR OLDS,5902191156
10.05.2016,CHILDREN'S SERVICES,HEBER PRIMARY SCHOOL,"171,341.00",HEBER JMI,SCHOOLS CAPITATION,5902191155
10.05.2016,CHILDREN'S SERVICES,HIGHSHORE SCHOOL,"227,716.00",HIGHSHORE,HIGH NEEDS - BASE FUNDING,5902191172
10.05.2016,CHILDREN'S SERVICES,HOLLYDALE PRIMARY SCHOOL,"122,573.00",HOLLYDALE JMI,SCHOOLS CAPITATION,5902191157
10.05.2016,CHILDREN'S SERVICES,HEALTHCARE & TRANSPORT SERVICE,"49,497.75",HOME 2 SCHOOL TRANSPORT,CAB FARES,5902191104
10.05.2016,CHILDREN'S SERVICES,ILDERTON PRIMARY SCHOOL,"8,421.00",ILDERTON JMI,EARLY YEARS - 3 AND 4 YEAR OLDS,5902191159
10.05.2016,CHILDREN'S SERVICES,ILDERTON PRIMARY SCHOOL,"176,768.00",ILDERTON JMI,SCHOOLS CAPITATION,5902191158
10.05.2016,CHILDREN'S SERVICES,IVYDALE PRIMARY SCHOOL,"12,225.00",IVYDALE JMI,EARLY YEARS - 3 AND 4 YEAR OLDS,5902191161
10.05.2016,CHILDREN'S SERVICES,IVYDALE PRIMARY SCHOOL,"198,474.00",IVYDALE JMI,SCHOOLS CAPITATION,5902191160
10.05.2016,CHILDREN'S SERVICES,JOHN RUSKIN PRIMARY SCHOOL,"22,832.00",JOHN RUSKIN JMI,EARLY YEARS - 3 AND 4 YEAR OLDS,5902191163
10.05.2016,CHILDREN'S SERVICES,JOHN RUSKIN PRIMARY SCHOOL,"28,058.00",JOHN RUSKIN JMI,HIGH NEEDS - TOP UP FUNDING,5902191164
10.05.2016,CHILDREN'S SERVICES,JOHN RUSKIN PRIMARY SCHOOL,"190,174.00",JOHN RUSKIN JMI,SCHOOLS CAPITATION,5902191162
10.05.2016,CHILDREN'S SERVICES,KEYWORTH PRIMARY SCHOOL,"13,794.00",KEYWORTH JMI,EARLY YEARS - 3 AND 4 YEAR OLDS,5902191166
10.05.2016,CHILDREN'S SERVICES,KEYWORTH PRIMARY SCHOOL,"182,734.00",KEYWORTH JMI,SCHOOLS CAPITATION,5902191165
10.05.2016,CHILDREN'S SERVICES,KINTORE WAY CHILDRENS CENTRE,"98,336.00",KINTORE WAY CENTRAL,EARLY YEARS - 3 AND 4 YEAR OLDS,5902191173
10.05.2016,CHILDREN'S SERVICES,DULWICH WOOD PRIMARY SCHOOL,"135,514.00",LANGBOURNE JMI,SCHOOLS CAPITATION,5902191167
10.05.2016,CHILDREN'S SERVICES,LYNDHURST PRIMARY SCHOOL,"8,016.00",LYNDHURST JMI,EARLY YEARS - 3 AND 4 YEAR OLDS,5902191169
10.05.2016,CHILDREN'S SERVICES,LYNDHURST PRIMARY SCHOOL,"19,557.00",LYNDHURST JMI,HIGH NEEDS - TOP UP FUNDING,5902191170
10.05.2016,CHILDREN'S SERVICES,LYNDHURST PRIMARY SCHOOL,"172,758.00",LYNDHURST JMI,SCHOOLS CAPITATION,5902191168
10.05.2016,CHILDREN'S SERVICES,BETHLEM & MAUDSLEY HOSPITAL SCHOOL,"104,356.00",MAUDSLEY & BETHLEM,HIGH NEEDS - BASE FUNDING,5902191118
10.05.2016,CHILDREN'S SERVICES,MICHAEL FARADAY PRIMARY SCHOOL,"14,921.00",MICHAEL FARADAY JMI,EARLY YEARS - 3 AND 4 YEAR OLDS,5902191175
10.05.2016,CHILDREN'S SERVICES,MICHAEL FARADAY PRIMARY SCHOOL,"186,120.00",MICHAEL FARADAY JMI,SCHOOLS CAPITATION,5902191174
10.05.2016,CHILDREN'S SERVICES,NELL GWYNN NURSERY SCHOOL,"87,192.00",N.GWYNN - CENTRAL,EARLY YEARS - 3 AND 4 YEAR OLDS,5902191176
10.05.2016,CHILDREN'S SERVICES,NOTRE DAME RC GIRLS SCHOOL,"389,933.00",NOTRE DAME SCHOOL,SCHOOLS CAPITATION,5902191177
10.05.2016,CHILDREN'S SERVICES,OLIVER GOLDSMITH PRIMARY SCHOOL,"13,837.00",OLIVER GOLDSMITH JM,EARLY YEARS - 3 AND 4 YEAR OLDS,5902191179
10.05.2016,CHILDREN'S SERVICES,OLIVER GOLDSMITH PRIMARY SCHOOL,"197,958.00",OLIVER GOLDSMITH JM,SCHOOLS CAPITATION,5902191178
10.05.2016,CHILDREN'S SERVICES,PETER HILLS CE SCHOOL,"6,531.00",PETER HILLS JMI,EARLY YEARS - 3 AND 4 YEAR OLDS,5902191181
10.05.2016,CHILDREN'S SERVICES,PETER HILLS CE SCHOOL,"92,734.00",PETER HILLS JMI,SCHOOLS CAPITATION,5902191180
10.05.2016,CHILDREN'S SERVICES,PILGRIM'S WAY PRIMARY SCHOOL,"10,337.00",PILGRIMS WAY JMI,EARLY YEARS - 3 AND 4 YEAR OLDS,5902191183
10.05.2016,CHILDREN'S SERVICES,PILGRIM'S WAY PRIMARY SCHOOL,"102,478.00",PILGRIMS WAY JMI,SCHOOLS CAPITATION,5902191182
10.05.2016,CHILDREN'S SERVICES,AMEGREEN CHILDRENS SERVICES LTD,"9,600.00",RESIDENTIAL,RESIDENTIAL CARE,2102487655
10.05.2016,CHILDREN'S SERVICES,AMEGREEN CHILDRENS SERVICES LTD,"10,000.00",RESIDENTIAL,RESIDENTIAL CARE,2102487656
10.05.2016,CHILDREN'S SERVICES,CHILDHOOD FIRST,"19,508.57",RESIDENTIAL,RESIDENTIAL CARE,2102487663
10.05.2016,CHILDREN'S SERVICES,CHILDHOOD FIRST,"23,365.71",RESIDENTIAL,RESIDENTIAL CARE,2102487664
10.05.2016,CHILDREN'S SERVICES,RIVERSIDE PRIMARY SCHOOL,"6,160.00",RIVERSIDE JMI,EARLY YEARS - 3 AND 4 YEAR OLDS,5902191185
10.05.2016,CHILDREN'S SERVICES,RIVERSIDE PRIMARY SCHOOL,"147,788.00",RIVERSIDE JMI,SCHOOLS CAPITATION,5902191184
10.05.2016,CHILDREN'S SERVICES,ROBERT BROWNING PRIMARY SCHOOL,"10,497.00",ROBERT BROWNING JMI,EARLY YEARS - 3 AND 4 YEAR OLDS,5902191187
10.05.2016,CHILDREN'S SERVICES,ROBERT BROWNING PRIMARY SCHOOL,"150,384.00",ROBERT BROWNING JMI,SCHOOLS CAPITATION,5902191186
10.05.2016,CHILDREN'S SERVICES,ROTHERHITHE PRIMARY SCHOOL,"15,522.00",ROTHERHITHE JMI,EARLY YEARS - 3 AND 4 YEAR OLDS,5902191189
10.05.2016,CHILDREN'S SERVICES,ROTHERHITHE PRIMARY SCHOOL,"212,768.00",ROTHERHITHE JMI,SCHOOLS CAPITATION,5902191188
10.05.2016,CHILDREN'S SERVICES,RYE OAK PRIMARY SCHOOL,"16,602.00",RYE OAK SCHOOL DFES NO. 2462,EARLY YEARS - 3 AND 4 YEAR OLDS,5902191191
10.05.2016,CHILDREN'S SERVICES,RYE OAK PRIMARY SCHOOL,"28,228.00",RYE OAK SCHOOL DFES NO. 2462,HIGH NEEDS - TOP UP FUNDING,5902191192
10.05.2016,CHILDREN'S SERVICES,RYE OAK PRIMARY SCHOOL,"175,217.00",RYE OAK SCHOOL DFES NO. 2462,SCHOOLS CAPITATION,5902191190
10.05.2016,CHILDREN'S SERVICES,HOLMDENE HOUSING LTD,"2,081.43",S24 CLA,RESIDENTIAL CARE,2102487614
10.05.2016,CHILDREN'S SERVICES,HOLMDENE HOUSING LTD,"1,749.29",S24 CLA,RESIDENTIAL CARE,2102487615
10.05.2016,CHILDREN'S SERVICES,HOLMDENE HOUSING LTD,"2,480.00",S24 CLA,RESIDENTIAL CARE,2102487620
10.05.2016,CHILDREN'S SERVICES,HOLMDENE HOUSING LTD,"1,638.57",S24 CLA,RESIDENTIAL CARE,2102487624
10.05.2016,CHILDREN'S SERVICES,FUTURE FOUNDATIONS LTD,400,S24 CLA,RESIDENTIAL CARE,2102487649
10.05.2016,CHILDREN'S SERVICES,FUTURE FOUNDATIONS LTD,824.6,S24 CLA,RESIDENTIAL CARE,2102487651
10.05.2016,CHILDREN'S SERVICES,FUTURE FOUNDATIONS LTD,"2,064.85",S24 CLA,RESIDENTIAL CARE,2102487652
10.05.2016,CHILDREN'S SERVICES,FRESH START SUPPORT LTD,"1,472.00",S24 CLA,RESIDENTIAL CARE,2102487657
10.05.2016,CHILDREN'S SERVICES,MY LIFE SEMI-INDEPENDENT PROJECT LTD,"1,880.00",S24 CLA,RESIDENTIAL CARE,2102487661
10.05.2016,CHILDREN'S SERVICES,NEXT STEP CARE MANAGEMENT LTD,"2,121.43",S24 CLA,RESIDENTIAL CARE,2102487665
10.05.2016,CHILDREN'S SERVICES,HOLMDENE HOUSING LTD,"4,738.57",SEMI INDEPENDENT,RESIDENTIAL CARE,2102487616
10.05.2016,CHILDREN'S SERVICES,HOLMDENE HOUSING LTD,"4,738.57",SEMI INDEPENDENT,RESIDENTIAL CARE,2102487622
10.05.2016,CHILDREN'S SERVICES,HOLMDENE HOUSING LTD,"2,081.43",SEMI INDEPENDENT,RESIDENTIAL CARE,2102487628
10.05.2016,CHILDREN'S SERVICES,FUTURE FOUNDATIONS LTD,"3,737.48",SEMI INDEPENDENT,RESIDENTIAL CARE,2102487648
10.05.2016,CHILDREN'S SERVICES,FUTURE FOUNDATIONS LTD,275,SEMI INDEPENDENT,RESIDENTIAL CARE,2102487650
10.05.2016,CHILDREN'S SERVICES,SOUTHWARK INCLUSIVE LEARNING SERVICE,"175,000.00",SILS KS3,HIGH NEEDS - BASE FUNDING,5902191244
10.05.2016,CHILDREN'S SERVICES,SNOWSFIELDS PRIMARY SCHOOL,"5,814.00",SNOWSFIELD JMI,EARLY YEARS - 3 AND 4 YEAR OLDS,5902191194
10.05.2016,CHILDREN'S SERVICES,SNOWSFIELDS PRIMARY SCHOOL,"28,502.00",SNOWSFIELD JMI,HIGH NEEDS - TOP UP FUNDING,5902191195
10.05.2016,CHILDREN'S SERVICES,SNOWSFIELDS PRIMARY SCHOOL,"91,611.00",SNOWSFIELD JMI,SCHOOLS CAPITATION,5902191193
10.05.2016,CHILDREN'S SERVICES,SOUTHWARK PARK PRIMARY SCHOOL,"15,603.00",SOUTHWARK PARK JMI,EARLY YEARS - 3 AND 4 YEAR OLDS,5902191197
10.05.2016,CHILDREN'S SERVICES,SOUTHWARK PARK PRIMARY SCHOOL,"186,348.00",SOUTHWARK PARK JMI,SCHOOLS CAPITATION,5902191196
10.05.2016,CHILDREN'S SERVICES,SPA SCHOOL,"225,654.00",SPA SCHOOL,HIGH NEEDS - BASE FUNDING,5902191198
10.05.2016,CHILDREN'S SERVICES,ST ANTHONYS RC SCHOOL,"10,401.00",ST ANTHONY'S RC SCHOOL,EARLY YEARS - 3 AND 4 YEAR OLDS,5902191200
10.05.2016,CHILDREN'S SERVICES,ST ANTHONYS RC SCHOOL,"158,921.00",ST ANTHONY'S RC SCHOOL,SCHOOLS CAPITATION,5902191199
10.05.2016,CHILDREN'S SERVICES,ST FRANCESCA CABRINI PRIMARY SCHOOL,"10,372.00",ST FRANCESCA CABRINI RC SCHOOL,EARLY YEARS - 3 AND 4 YEAR OLDS,5902191202
10.05.2016,CHILDREN'S SERVICES,ST FRANCESCA CABRINI PRIMARY SCHOOL,"159,102.00",ST FRANCESCA CABRINI RC SCHOOL,SCHOOLS CAPITATION,5902191201
10.05.2016,CHILDREN'S SERVICES,ST FRANCIS'S RC PRIMARY SCHOOL,"7,099.00",ST FRANCIS JM,EARLY YEARS - 3 AND 4 YEAR OLDS,5902191204
10.05.2016,CHILDREN'S SERVICES,ST FRANCIS'S RC PRIMARY SCHOOL,"178,160.00",ST FRANCIS JM,SCHOOLS CAPITATION,5902191203
10.05.2016,CHILDREN'S SERVICES,ST GEORGES CE SCHOOL,"81,787.00",ST GEORGES JMI 043,SCHOOLS CAPITATION,5902191207
10.05.2016,CHILDREN'S SERVICES,ST GEORGES RC SCHOOL,"4,658.00",ST GEORGES JMI 340,EARLY YEARS - 3 AND 4 YEAR OLDS,5902191206
10.05.2016,CHILDREN'S SERVICES,ST GEORGES RC SCHOOL,"141,737.00",ST GEORGES JMI 340,SCHOOLS CAPITATION,5902191205
10.05.2016,CHILDREN'S SERVICES,ST JAMES CE SCHOOL,"11,147.00",ST JAMES JMI,EARLY YEARS - 3 AND 4 YEAR OLDS,5902191209
10.05.2016,CHILDREN'S SERVICES,ST JAMES CE SCHOOL,"239,636.00",ST JAMES JMI,SCHOOLS CAPITATION,5902191208
10.05.2016,CHILDREN'S SERVICES,ST JAMES THE GREAT RC SCHOOL,"8,450.00",ST JAMES RC(ST ALBANS),EARLY YEARS - 3 AND 4 YEAR OLDS,5902191211
10.05.2016,CHILDREN'S SERVICES,ST JAMES THE GREAT RC SCHOOL,"95,608.00",ST JAMES RC(ST ALBANS),SCHOOLS CAPITATION,5902191210
10.05.2016,CHILDREN'S SERVICES,ST JOHNS & ST CLEMENTS CE SCHOOL,"9,947.00",ST JOHNS & ST CLEMENTS,HIGH NEEDS - TOP UP FUNDING,5902191214
10.05.2016,CHILDREN'S SERVICES,ST JOHNS & ST CLEMENTS CE SCHOOL,"169,986.00",ST JOHNS & ST CLEMENTS,SCHOOLS CAPITATION,5902191213
10.05.2016,CHILDREN'S SERVICES,ST JOHNS RC PRIMARY SCHOOL,"8,772.00",ST JOHNS (ELMO ROAD),EARLY YEARS - 3 AND 4 YEAR OLDS,5902191217
10.05.2016,CHILDREN'S SERVICES,ST JOHNS RC PRIMARY SCHOOL,"95,640.00",ST JOHNS (ELMO ROAD),SCHOOLS CAPITATION,5902191216
10.05.2016,CHILDREN'S SERVICES,ST JOHNS WALWORTH CE SCHOOL,"95,224.00",ST JOHNS WALWORTH J,SCHOOLS CAPITATION,5902191212
10.05.2016,CHILDREN'S SERVICES,ST JOSEPHS RC PRIMARY SCHOOL,"7,772.00",ST JOSEPHS JMI 014B,EARLY YEARS - 3 AND 4 YEAR OLDS,5902191221
10.05.2016,CHILDREN'S SERVICES,ST JOSEPHS RC PRIMARY SCHOOL,"138,327.00",ST JOSEPHS JMI 014B,SCHOOLS CAPITATION,5902191220
10.05.2016,CHILDREN'S SERVICES,ST JOSEPHS CATHOLIC PRIMARY SCHOOL,"13,521.00",ST JOSEPHS JMI 026,EARLY YEARS - 3 AND 4 YEAR OLDS,5902191223
10.05.2016,CHILDREN'S SERVICES,ST JOSEPHS CATHOLIC PRIMARY SCHOOL,"94,167.00",ST JOSEPHS JMI 026,SCHOOLS CAPITATION,5902191222
10.05.2016,CHILDREN'S SERVICES,ST JOSEPHS CATHOLIC SCHOOL,"8,926.00",ST JOSEPHS JMI 0339,EARLY YEARS - 3 AND 4 YEAR OLDS,5902191219
10.05.2016,CHILDREN'S SERVICES,ST JOSEPHS CATHOLIC SCHOOL,"95,514.00",ST JOSEPHS JMI 0339,SCHOOLS CAPITATION,5902191218
10.05.2016,CHILDREN'S SERVICES,ST JUDES CHURCH OF ENGLAND PRIMARY,"71,668.00",ST JUDES SOUTHWARK,SCHOOLS CAPITATION,5902191131
10.05.2016,CHILDREN'S SERVICES,ST MARY MAGDALENE CE SCHOOL,"103,059.00",ST MARY MAGDALENE JMI,SCHOOLS CAPITATION,5902191224
10.05.2016,CHILDREN'S SERVICES,ST PAULS CE SCHOOL,"10,487.00",ST PAULS WALWORTH JMI,EARLY YEARS - 3 AND 4 YEAR OLDS,5902191226
10.05.2016,CHILDREN'S SERVICES,ST PAULS CE SCHOOL,"139,178.00",ST PAULS WALWORTH JMI,SCHOOLS CAPITATION,5902191225
10.05.2016,CHILDREN'S SERVICES,ST PETERS CE SCHOOL,"9,282.00",ST PETERS WALWORTH JMI,EARLY YEARS - 3 AND 4 YEAR OLDS,5902191228
10.05.2016,CHILDREN'S SERVICES,ST PETERS CE SCHOOL,"91,789.00",ST PETERS WALWORTH JMI,SCHOOLS CAPITATION,5902191227
10.05.2016,CHILDREN'S SERVICES,ST SAVIOURS & ST OLAVES SCHOOL,"399,943.00",ST SAVIOURS & ST OLAVE,SCHOOLS CAPITATION,5902191229
10.05.2016,CHILDREN'S SERVICES,FUTURE FOUNDATIONS LTD,"1,722.71",STAYING PUT,RESIDENTIAL CARE,2102487654
10.05.2016,CHILDREN'S SERVICES,ST JOSEPHS CATHOLIC INFANTS SCHOOL,"75,833.00",STJOSEPH'S RC CAMBERWELL INFANTS SCHOOL,SCHOOLS CAPITATION,5902191130
10.05.2016,CHILDREN'S SERVICES,ST JOSEPHS RC JUNIOR  SCHOOL,"111,282.00",STJOSEPH'S RC CAMBERWELL JUNIOR SCHOOL,SCHOOLS CAPITATION,5902191129
10.05.2016,CHILDREN'S SERVICES,SINEAD JOYCE,"1,800.00",SUMMERHOUSE - EX416 - 5015232,CONSULTANTS SERVICES,5902191096
10.05.2016,CHILDREN'S SERVICES,HARLINE LTD,715,SUMMERHOUSE - EX416 - 5015232,HARDWARE,5902191102
10.05.2016,CHILDREN'S SERVICES,HARLINE LTD,"2,214.56",SUMMERHOUSE - EX416 - 5015232,HARDWARE,5902191103
10.05.2016,CHILDREN'S SERVICES,SALTCO LTD T/A KELLY EXECUTIVE,"1,680.00",SUMMERHOUSE - EX416 - 5015232,HIRED VEHICLES,5902191097
10.05.2016,CHILDREN'S SERVICES,SALTCO LTD T/A KELLY EXECUTIVE,"1,680.00",SUMMERHOUSE - EX416 - 5015232,HIRED VEHICLES,5902191098
10.05.2016,CHILDREN'S SERVICES,SALTCO LTD T/A KELLY EXECUTIVE,"1,680.00",SUMMERHOUSE - EX416 - 5015232,HIRED VEHICLES,5902191099
10.05.2016,CHILDREN'S SERVICES,SALTCO LTD T/A KELLY EXECUTIVE,"1,680.00",SUMMERHOUSE - EX416 - 5015232,HIRED VEHICLES,5902191100
10.05.2016,CHILDREN'S SERVICES,SUMNER NURSERY,"53,673.00",SUMNER NURSERY SCHOOL,EARLY YEARS - 3 AND 4 YEAR OLDS,5902191230
10.05.2016,CHILDREN'S SERVICES,SURREY SQUARE JUNIOR SCHOOL,"10,800.00",SURREY SQUARE JUNIOR SCHOOL,EARLY YEARS - 3 AND 4 YEAR OLDS,5902191232
10.05.2016,CHILDREN'S SERVICES,SURREY SQUARE JUNIOR SCHOOL,"183,866.00",SURREY SQUARE JUNIOR SCHOOL,SCHOOLS CAPITATION,5902191231
10.05.2016,CHILDREN'S SERVICES,THE ST THOMAS THE APOSTLE COLLEGE,"459,477.00",THE ST THOMAS THE APOSTLE COLLEGE,SCHOOLS CAPITATION,5902191215
10.05.2016,CHILDREN'S SERVICES,TOWER BRIDGE PRIMARY SCHOOL,"6,944.00",TOWER BRIDGE JMI,EARLY YEARS - 3 AND 4 YEAR OLDS,5902191237
10.05.2016,CHILDREN'S SERVICES,TOWER BRIDGE PRIMARY SCHOOL,"98,319.00",TOWER BRIDGE JMI,SCHOOLS CAPITATION,5902191236
10.05.2016,CHILDREN'S SERVICES,TOWNSEND PRIMARY SCHOOL,"7,521.00",TOWNSEND JMI,EARLY YEARS - 3 AND 4 YEAR OLDS,5902191239
10.05.2016,CHILDREN'S SERVICES,TOWNSEND PRIMARY SCHOOL,"98,307.00",TOWNSEND JMI,SCHOOLS CAPITATION,5902191238
10.05.2016,CHILDREN'S SERVICES,TUKE SCHOOL,"161,386.00",TUKE SCHOOL,HIGH NEEDS - BASE FUNDING,5902191240
10.05.2016,CHILDREN'S SERVICES,PURPLE PEBBLES(CHILD CARE) SERVICES,814.29,UASC SECTION 24,OTHER PAYMENTS FOR CLIENTS,2102487658
10.05.2016,CHILDREN'S SERVICES,HOLMDENE HOUSING LTD,"1,638.57",UASC SECTION 24,RESIDENTIAL CARE,2102487613
10.05.2016,CHILDREN'S SERVICES,HOLMDENE HOUSING LTD,863.57,UASC SECTION 24,RESIDENTIAL CARE,2102487617
10.05.2016,CHILDREN'S SERVICES,HOLMDENE HOUSING LTD,"2,081.43",UASC SECTION 24,RESIDENTIAL CARE,2102487623
10.05.2016,CHILDREN'S SERVICES,HOLMDENE HOUSING LTD,863.57,UASC SECTION 24,RESIDENTIAL CARE,2102487625
10.05.2016,CHILDREN'S SERVICES,HOLMDENE HOUSING LTD,"2,081.43",UASC SECTION 24,RESIDENTIAL CARE,2102487626
10.05.2016,CHILDREN'S SERVICES,HOLMDENE HOUSING LTD,"1,638.57",UASC SECTION 24,RESIDENTIAL CARE,2102487627
10.05.2016,CHILDREN'S SERVICES,KINDLY PROPERTIES,"1,050.00",UASC SECTION 24,SECTION 17 PAYMENTS TO AGENCIES/CARERS,2102487647
10.05.2016,CHILDREN'S SERVICES,VICTORY SCHOOL,"5,225.00",VICTORY JMI,EARLY YEARS - 3 AND 4 YEAR OLDS,5902191242
10.05.2016,CHILDREN'S SERVICES,VICTORY SCHOOL,"87,984.00",VICTORY JMI,SCHOOLS CAPITATION,5902191241
10.05.2016,COMMUNITIES,DELAWYK RESIDENTS MGT ORG LTD,"29,350.50",DELAWYK RMO RENT INCOME,M&M ALLOWANCE CO-OPS,5902191046
10.05.2016,COMMUNITIES,VOICEABILITY ADVOCACY,"5,793.84",NHS COMPLAINTS ADVOCACY,EXTERNAL AGENCIES AND BODIES,5902191058
10.05.2016,COMMUNITIES,VOICEABILITY ADVOCACY,"1,480.00",NHS COMPLAINTS ADVOCACY,EXTERNAL AGENCIES AND BODIES,5902191246
10.05.2016,COMMUNITIES,TRADE  IN OPTIONS LTD,"1,860.00",NO RECOURSE TO PUBLIC FUNDS,SECTION 17 PAYMENTS TO AGENCIES/CARERS,5902191278
10.05.2016,COMMUNITIES,REDACTED PERSONAL DATA,280,NRPF CHILDREN,SECTION 17 PAYMENTS TO AGENCIES/CARERS,5902191107
10.05.2016,CUSTOMER SERVICES HGF,CITY OF LONDON LIBRARIES & ART GALLERIES,"10,602.50",CORONER'S,LEGAL FEES & COURT COSTS,5902191312
10.05.2016,CUSTOMER SERVICES HGF,STENFORD PROPERTY LTD,"32,484.00",NIGHTLY TA (NSC),EXTERNAL AGENCIES AND BODIES,5902191255
10.05.2016,CUSTOMER SERVICES HGF,WILLOW ESTATE AGENTS (LONDON) LTD,"48,642.50",NIGHTLY TA (NSC),EXTERNAL AGENCIES AND BODIES,5902191264
10.05.2016,CUSTOMER SERVICES HGF,ZFA LTD,"15,735.00",NIGHTLY TA (NSC),EXTERNAL AGENCIES AND BODIES,5902191329
10.05.2016,DULWICH COMMUNITY COUNCIL,DULWICH PARK FRIENDS ,"1,000.00",DULWICH PARK FAIR 2016 ,GRANTS,CHEQUE PAYMENT
10.05.2016,ENVIRONMENT DIRECTORATE,TIPPERHIRE LTD,483,COMMERCIAL VEH CTRL A/C,HIRED VEHICLES,5902191272
10.05.2016,ENVIRONMENT DIRECTORATE,TIPPERHIRE LTD,483,COMMERCIAL VEH CTRL A/C,HIRED VEHICLES,5902191274
10.05.2016,ENVIRONMENT DIRECTORATE,TIPPERHIRE LTD,345,COMMERCIAL VEH CTRL A/C,HIRED VEHICLES,5902191276
10.05.2016,ENVIRONMENT DIRECTORATE,TIPPERHIRE LTD,483,COMMERCIAL VEH CTRL A/C,HIRED VEHICLES,5902191277
10.05.2016,ENVIRONMENT DIRECTORATE,TIPPERHIRE LTD,483,COMMERCIAL VEH CTRL A/C,HIRED VEHICLES,5902191279
10.05.2016,ENVIRONMENT DIRECTORATE,FIVEWAYS MUNICIPAL VEHICLE HIRE LTD,725,COMMERCIAL VEH CTRL A/C,HIRED VEHICLES,5902191295
10.05.2016,ENVIRONMENT DIRECTORATE,CALLOW MASTER LOCKSMITHS,424.98,ENGINEERING CRAFTS,OTHER CONTRACTORS,5902191035
10.05.2016,ENVIRONMENT DIRECTORATE,CALLOW MASTER LOCKSMITHS,364.57,ENGINEERING CRAFTS,OTHER CONTRACTORS,5902191045
10.05.2016,ENVIRONMENT DIRECTORATE,SPALDINGS (UK) LTD,369,GROUNDS MAINTENANCE - GENERAL,MATERIALS,5902191249
10.05.2016,F & C S EXCLUDING CORPORATE BUDGETS,ROYAL MAIL GROUP LTD,921.96,ADMINISTRATIVE SUPPORT,DELIVERY CHARGES,5902191025
10.05.2016,F & C S EXCLUDING CORPORATE BUDGETS,NORTHGATE PUBLIC SERVICES (UK) LTD,422.61,ADMINISTRATIVE SUPPORT,POSTAGES,5902191327
10.05.2016,F & C S EXCLUDING CORPORATE BUDGETS,NORTHGATE PUBLIC SERVICES (UK) LTD,"24,000.00",ADMINISTRATIVE SUPPORT,SOFTWARE,5902190993
10.05.2016,F & C S EXCLUDING CORPORATE BUDGETS,SCAN COIN LTD,659.22,CASH OFFICES,EQUIPMENT PURCHASE & REPAIR,5902191258
10.05.2016,F & C S EXCLUDING CORPORATE BUDGETS,SCAN COIN LTD,659.29,CASH OFFICES,EQUIPMENT PURCHASE & REPAIR,5902191259
10.05.2016,F & C S EXCLUDING CORPORATE BUDGETS,CILEX LAW SCHOOL,519.18,LEGAL SVCES MANAGEMENT,TRAINING,5902190995
10.05.2016,F & C S EXCLUDING CORPORATE BUDGETS,SOUTH BANK BID LTD,"32,450.15",SOUTH BANK,EXTERNAL AGENCIES AND BODIES,5902190725
10.05.2016,HOUSING HRA,JOHN BURKE ASSOCIATES,"1,088.00",CAPITAL PS (HRA),LAND & BUILDINGS ACQUISITION FEES,5902191315
10.05.2016,HOUSING HRA,JOHN BURKE ASSOCIATES,768,CAPITAL PS (HRA),LAND & BUILDINGS ACQUISITION FEES,5902191321
10.05.2016,LEISURE DIRECTORATE,VEOLIA ES (UK)LTD,472,BRANDON LIBRARY,REFUSE COLLECTION CONTRACT,5902191314
10.05.2016,LEISURE DIRECTORATE,VEOLIA ES (UK)LTD,-472,BRANDON LIBRARY,REFUSE COLLECTION CONTRACT,5902191319
10.05.2016,LEISURE DIRECTORATE,THE PLASMA CENTRE LTD,636.54,CANADA WATER LIBRARY,EQUIPMENT PURCHASE & REPAIR,5902191281
10.05.2016,LEISURE DIRECTORATE,RED R DESIGN,550,LIBARIES DEVELOPMENT,MARKETING & PUBLICITY SERVICES,5902191250
10.05.2016,LEISURE DIRECTORATE,EDF ENERGY PLC,"3,028.38",STOCK SERVICES,ELECTRICITY,5902191253
10.05.2016,MODERNISATION HGF,THAMES WATER UTILITIES LTD,299.67,BOURNEMOUTH GROVE,WATER,5902191299
10.05.2016,MODERNISATION HGF,THAMES WATER UTILITIES LTD,512.72,CURLEW HOUSE,WATER,5902191302
10.05.2016,MODERNISATION HGF,CYRIL SWEETT LTD,"2,920.00",PLANNED MAINTENANCE,BUILDING R&M,5902190999
10.05.2016,MODERNISATION HGF,CYRIL SWEETT LTD,"6,590.00",PLANNED MAINTENANCE,BUILDING R&M,5902191001
10.05.2016,PECKHAM AND NUNHEAD COMMUNITY COUNCIL,SOUTH LONDON FINE ART GALLERY AND LIBRARY ,"4,000.00",HOLIDAY PROGRAMME FOR PELICAN ESTATE ,GRANTS,CHEQUE PAYMENT
10.05.2016,PUBLIC HEALTH,DERBYSHIRE COMMUNITY HEALTH,270.4,SEXUAL HEALTH - STI,EXTERNAL AGENCIES AND BODIES,5902190992
10.05.2016,PUBLIC HEALTH,LONDON NORTH WEST HEALTHCARE,462,SEXUAL HEALTH - STI,EXTERNAL AGENCIES AND BODIES,5902191270
10.05.2016,PUBLIC HEALTH,OXFORD UNIVERSITY HOSPITAL NHS TRUST,379,SEXUAL HEALTH - STI,EXTERNAL AGENCIES AND BODIES,5902191311
10.05.2016,PUBLIC HEALTH,OXFORD UNIVERSITY HOSPITAL NHS TRUST,-320.97,SEXUAL HEALTH - STI,EXTERNAL AGENCIES AND BODIES,5902191313
10.05.2016,REGENERATION,WYG ENGINEERING LTD,"6,500.00",PECKHAM/CAMBERWELL SITES-FEES/MPLAN,PROFESSIONAL FEES,5902191283
10.05.2016,RESIDENT SERVICES,VIBRANT ENERGY MATTERS LTD,878.4,ENERGY MANAGEMENT,PROFESSIONAL FEES,5902190890
10.05.2016,RESIDENT SERVICES,VIBRANT ENERGY MATTERS LTD,"1,268.80",ENERGY MANAGEMENT,PROFESSIONAL FEES,5902190891
10.05.2016,RESIDENT SERVICES,VIBRANT ENERGY MATTERS LTD,"2,210.40",ENERGY MANAGEMENT,PROFESSIONAL FEES,5902190893
10.05.2016,RESIDENT SERVICES,CHARTWELLS,"4,431.22",SPECIAL NEEDS HOSTELS,CATERING MATERIALS & SUPPLIES,5902191307
10.05.2016,SOCIAL SERVICES,REDACTED PERSONAL DATA,"4,756.47",PETTY CASH/PERSONAL ALLOWANCE,OTHER PAYMENTS FOR CLIENTS,5902191055
10.05.2016,SOCIAL SERVICES,ACCESS MOBILITY TRANSPORT LTD,"13,653.00",PWLD DAY CARE (TRANSPORT),CAB FARES,5902191282
10.05.2016,SOCIAL SERVICES,HAVEN SOCIAL CARE LTD,655,PWPD HOME CARE IND,HOMECARE - SPOT,2102487684
10.05.2016,SOCIAL SERVICES,HAVEN SOCIAL CARE LTD,299,REABLEMENT SERVICE,HOMECARE - SPOT,2102487688
10.05.2016,SOUTHWARK BUILDING SERVICES,LONDON TOOLS LIMITED,780,EMERGENCY CALL OUT,MATERIALS,5902190986
10.05.2016,SOUTHWARK BUILDING SERVICES,LONDON TOOLS LIMITED,680,EMERGENCY CALL OUT,MATERIALS,5902191079
10.05.2016,SOUTHWARK BUILDING SERVICES,SYPOL LTD,"1,045.00",HEALTH & SAFETY,SOFTWARE,5902191322
10.05.2016,SOUTHWARK BUILDING SERVICES,CASTLETON TECHNOLOGY PLC,"1,032.86",ICT & COMMUNICATIONS,SOFTWARE,5902191332
10.05.2016,SOUTHWARK BUILDING SERVICES,ORANGE PERSONAL COMMUNICATIONS,"4,777.38",ICT & COMMUNICATIONS,TELEPHONES (MOBILES),5902191331
10.05.2016,SOUTHWARK BUILDING SERVICES,POSTURITE (UK) LTD,637.87,R & M OVERHEADS,OFFICE EXPENSES,5902191328
10.05.2016,SOUTHWARK BUILDING SERVICES,LONDON TOOLS LIMITED,275,ROOFERS,MATERIALS,5902191056
10.05.2016,SOUTHWARK BUILDING SERVICES,LONDON TOOLS LIMITED,450,ROOFERS,MATERIALS,5902191056
10.05.2016,SOUTHWARK BUILDING SERVICES,LONDON TOOLS LIMITED,342.5,VOIDS OVERHEADS,MATERIALS,5902191080
11.05.2016,-,LONDON TOOLS LIMITED,680,-,-,5902191390
11.05.2016,-,LOCKESLEYS LTD,"54,157.02",LOCKESLEYS,MANUAL CREDITORS,5902191609
11.05.2016,-,STANDAGE & CO LTD,"11,539.14",STANDAGE,MANUAL CREDITORS,5902191565
11.05.2016,-,DELAWYK RESIDENTS MGT ORG LTD,"1,160.62",VAT INPUTS - ADJUSTMENTS,VAT CONTROL ACCOUNT,2102488904
11.05.2016,ASSET MANAGEMENT,M C TECHNICIANS LTD,940,ADAPTATIONS,BUILDING R&M,5902191415
11.05.2016,ASSET MANAGEMENT,M C TECHNICIANS LTD,520,ADAPTATIONS,BUILDING R&M,5902191417
11.05.2016,ASSET MANAGEMENT,M C TECHNICIANS LTD,450,ADAPTATIONS,BUILDING R&M,5902191448
11.05.2016,ASSET MANAGEMENT,M C TECHNICIANS LTD,260,ADAPTATIONS,BUILDING R&M,5902191450
11.05.2016,ASSET MANAGEMENT,M C TECHNICIANS LTD,480,ADAPTATIONS,BUILDING R&M,5902191455
11.05.2016,ASSET MANAGEMENT,M C TECHNICIANS LTD,500,ADAPTATIONS,BUILDING R&M,5902191456
11.05.2016,ASSET MANAGEMENT,T BROWN & SONS (HEATING) LTD,"4,000.00",ENG CONTRACTS (NORTH),PLANNED MAINTENANCE,5902190784
11.05.2016,CENTRAL FUNCTIONS,B D LADDIE SOLICITORS,"1,368.43",HOME OWNERSHIP INCOME,HOUSING RESIDENTIAL RENTS,5902191354
11.05.2016,CENTRAL FUNCTIONS,NORTHGATE PUBLIC SERVICES (UK) LTD,"14,000.00",MOBILE WORKING,CONSULTANTS SERVICES,5902191521
11.05.2016,CENTRAL FUNCTIONS,THAMES WATER UTILITIES LTD,"36,876.96",TWA,WATER,5902191558
11.05.2016,CENTRAL FUNCTIONS,THAMES WATER UTILITIES LTD,"1,298,575.37",TWA,WATER,5902191558
11.05.2016,CHIEF EXECUTIVE,CONWAY AECOM LTD,"10,096.26",CAPITAL PS (REGEN),CONSTRUCTION SUB CONTRACT - NON CERTIFICATED,5902191601
11.05.2016,CHIEF EXECUTIVE'S OFFICE,POPULUS DATA SOLUTIONS LTD,"7,200.00",CHIEF EXEC'S OFFICE,PROFESSIONAL FEES,5902191446
11.05.2016,CHIEF EXECUTIVE'S OFFICE,RP2 LTD,630.79,CLEANER GREENER SAFER,MARKETING & PUBLICITY SERVICES,5902191366
11.05.2016,CHIEF EXECUTIVE'S OFFICE,JONES YARRELL LEADENHALL,289.19,MEDIA,SUBSCRIPTIONS,5902191356
11.05.2016,CHILDREN'S SERVICES,THE ACADEMY @ PECKHAM,"38,528.37",ACADEMIES SECONDARY,STATEMENTED FEES,2102487909
11.05.2016,CHILDREN'S SERVICES,HARRIS GIRLS ACADEMY EAST DULWICH,"13,654.20",ACADEMIES SECONDARY,STATEMENTED FEES,2102487928
11.05.2016,CHILDREN'S SERVICES,ANGEL OAK ACADEMY,"12,842.79",ACADEMIES SECONDARY,STATEMENTED FEES,2102487929
11.05.2016,CHILDREN'S SERVICES,ST MICHAELS CATHOLIC COLLEGE,"52,993.97",ACADEMIES SECONDARY,STATEMENTED FEES,2102487930
11.05.2016,CHILDREN'S SERVICES,SACRED HEART CATHOLIC SCHOOL,"38,528.37",ACADEMIES SECONDARY,STATEMENTED FEES,2102487910
11.05.2016,CHILDREN'S SERVICES,HARRIS PRIMARY FREE SCHOOL PECKHAM,"60,585.23",ACADEMIES SECONDARY,STATEMENTED FEES,2102487911
11.05.2016,CHILDREN'S SERVICES,REDACTED PERSONAL DATA,530,ADOPTION PLACEMENTS & INTER AGENCY,PAYMENTS TO CARERS,2102488420
11.05.2016,CHILDREN'S SERVICES,REDACTED PERSONAL DATA,390.26,ADOPTION PLACEMENTS & INTER AGENCY,PAYMENTS TO CARERS,2102488421
11.05.2016,CHILDREN'S SERVICES,REDACTED PERSONAL DATA,281.42,ADOPTION PLACEMENTS & INTER AGENCY,PAYMENTS TO CARERS,2102488425
11.05.2016,CHILDREN'S SERVICES,REDACTED PERSONAL DATA,831.61,ADOPTION PLACEMENTS & INTER AGENCY,PAYMENTS TO CARERS,2102488428
11.05.2016,CHILDREN'S SERVICES,REDACTED PERSONAL DATA,293.26,ADOPTION PLACEMENTS & INTER AGENCY,PAYMENTS TO CARERS,2102488431
11.05.2016,CHILDREN'S SERVICES,REDACTED PERSONAL DATA,453.24,ADOPTION PLACEMENTS & INTER AGENCY,PAYMENTS TO CARERS,2102488434
11.05.2016,CHILDREN'S SERVICES,REDACTED PERSONAL DATA,500,ADOPTION PLACEMENTS & INTER AGENCY,PAYMENTS TO CARERS,2102488435
11.05.2016,CHILDREN'S SERVICES,REDACTED PERSONAL DATA,512.02,ADOPTION PLACEMENTS & INTER AGENCY,PAYMENTS TO CARERS,2102488436
11.05.2016,CHILDREN'S SERVICES,REDACTED PERSONAL DATA,409.02,ADOPTION PLACEMENTS & INTER AGENCY,PAYMENTS TO CARERS,2102488437
11.05.2016,CHILDREN'S SERVICES,REDACTED PERSONAL DATA,375.54,ADOPTION PLACEMENTS & INTER AGENCY,PAYMENTS TO CARERS,2102488438
11.05.2016,CHILDREN'S SERVICES,REDACTED PERSONAL DATA,465.54,ADOPTION PLACEMENTS & INTER AGENCY,PAYMENTS TO CARERS,2102488439
11.05.2016,CHILDREN'S SERVICES,REDACTED PERSONAL DATA,253.56,ADOPTION PLACEMENTS & INTER AGENCY,PAYMENTS TO CARERS,2102488442
11.05.2016,CHILDREN'S SERVICES,REDACTED PERSONAL DATA,652.9,ADOPTION PLACEMENTS & INTER AGENCY,PAYMENTS TO CARERS,2102488448
11.05.2016,CHILDREN'S SERVICES,REDACTED PERSONAL DATA,695.12,ADOPTION PLACEMENTS & INTER AGENCY,PAYMENTS TO CARERS,2102488449
11.05.2016,CHILDREN'S SERVICES,REDACTED PERSONAL DATA,382.3,ADOPTION PLACEMENTS & INTER AGENCY,PAYMENTS TO CARERS,2102488451
11.05.2016,CHILDREN'S SERVICES,REDACTED PERSONAL DATA,256.54,ADOPTION PLACEMENTS & INTER AGENCY,PAYMENTS TO CARERS,2102488456
11.05.2016,CHILDREN'S SERVICES,REDACTED PERSONAL DATA,375.54,ADOPTION PLACEMENTS & INTER AGENCY,PAYMENTS TO CARERS,2102488458
11.05.2016,CHILDREN'S SERVICES,REDACTED PERSONAL DATA,559.06,ADOPTION PLACEMENTS & INTER AGENCY,PAYMENTS TO CARERS,2102488459
11.05.2016,CHILDREN'S SERVICES,REDACTED PERSONAL DATA,534.54,ADOPTION PLACEMENTS & INTER AGENCY,PAYMENTS TO CARERS,2102488460
11.05.2016,CHILDREN'S SERVICES,REDACTED PERSONAL DATA,329.42,ADOPTION PLACEMENTS & INTER AGENCY,PAYMENTS TO CARERS,2102488461
11.05.2016,CHILDREN'S SERVICES,REDACTED PERSONAL DATA,465.48,ADOPTION PLACEMENTS & INTER AGENCY,PAYMENTS TO CARERS,2102488462
11.05.2016,CHILDREN'S SERVICES,REDACTED PERSONAL DATA,453.24,ADOPTION PLACEMENTS & INTER AGENCY,PAYMENTS TO CARERS,2102488463
11.05.2016,CHILDREN'S SERVICES,REDACTED PERSONAL DATA,375.54,ADOPTION PLACEMENTS & INTER AGENCY,PAYMENTS TO CARERS,2102488464
11.05.2016,CHILDREN'S SERVICES,REDACTED PERSONAL DATA,329.16,ADOPTION PLACEMENTS & INTER AGENCY,PAYMENTS TO CARERS,2102488465
11.05.2016,CHILDREN'S SERVICES,REDACTED PERSONAL DATA,443,ADOPTION PLACEMENTS & INTER AGENCY,PAYMENTS TO CARERS,2102488468
11.05.2016,CHILDREN'S SERVICES,REDACTED PERSONAL DATA,316.5,ADOPTION PLACEMENTS & INTER AGENCY,PAYMENTS TO CARERS,2102488472
11.05.2016,CHILDREN'S SERVICES,REDACTED PERSONAL DATA,359.44,ADOPTION PLACEMENTS & INTER AGENCY,PAYMENTS TO CARERS,2102488473
11.05.2016,CHILDREN'S SERVICES,REDACTED PERSONAL DATA,618.04,ADOPTION PLACEMENTS & INTER AGENCY,PAYMENTS TO CARERS,2102488475
11.05.2016,CHILDREN'S SERVICES,REDACTED PERSONAL DATA,255.22,ADOPTION PLACEMENTS & INTER AGENCY,PAYMENTS TO CARERS,2102488478
11.05.2016,CHILDREN'S SERVICES,REDACTED PERSONAL DATA,588.42,ADOPTION PLACEMENTS & INTER AGENCY,PAYMENTS TO CARERS,2102488479
11.05.2016,CHILDREN'S SERVICES,REDACTED PERSONAL DATA,502,ADOPTION PLACEMENTS & INTER AGENCY,PAYMENTS TO CARERS,2102488480
11.05.2016,CHILDREN'S SERVICES,REDACTED PERSONAL DATA,375.54,ADOPTION PLACEMENTS & INTER AGENCY,PAYMENTS TO CARERS,2102488481
11.05.2016,CHILDREN'S SERVICES,REDACTED PERSONAL DATA,465.52,ADOPTION PLACEMENTS & INTER AGENCY,PAYMENTS TO CARERS,2102488482
11.05.2016,CHILDREN'S SERVICES,REDACTED PERSONAL DATA,465.52,ADOPTION PLACEMENTS & INTER AGENCY,PAYMENTS TO CARERS,2102488483
11.05.2016,CHILDREN'S SERVICES,REDACTED PERSONAL DATA,695.04,ADOPTION PLACEMENTS & INTER AGENCY,PAYMENTS TO CARERS,2102488484
11.05.2016,CHILDREN'S SERVICES,REDACTED PERSONAL DATA,301.3,ADOPTION PLACEMENTS & INTER AGENCY,PAYMENTS TO CARERS,2102488486
11.05.2016,CHILDREN'S SERVICES,REDACTED PERSONAL DATA,738.32,ADOPTION PLACEMENTS & INTER AGENCY,PAYMENTS TO CARERS,2102488487
11.05.2016,CHILDREN'S SERVICES,REDACTED PERSONAL DATA,278.52,ADOPTION PLACEMENTS & INTER AGENCY,PAYMENTS TO CARERS,2102488489
11.05.2016,CHILDREN'S SERVICES,REDACTED PERSONAL DATA,261.52,ADOPTION PLACEMENTS & INTER AGENCY,PAYMENTS TO CARERS,2102488493
11.05.2016,CHILDREN'S SERVICES,REDACTED PERSONAL DATA,269.22,ADOPTION PLACEMENTS & INTER AGENCY,PAYMENTS TO CARERS,2102488501
11.05.2016,CHILDREN'S SERVICES,REDACTED PERSONAL DATA,400.18,ADOPTION PLACEMENTS & INTER AGENCY,PAYMENTS TO CARERS,2102488503
11.05.2016,CHILDREN'S SERVICES,REDACTED PERSONAL DATA,359.44,ADOPTION PLACEMENTS & INTER AGENCY,PAYMENTS TO CARERS,2102488504
11.05.2016,CHILDREN'S SERVICES,REDACTED PERSONAL DATA,712.3,ADOPTION PLACEMENTS & INTER AGENCY,PAYMENTS TO CARERS,2102488505
11.05.2016,CHILDREN'S SERVICES,REDACTED PERSONAL DATA,"1,078.35",ADOPTION PLACEMENTS & INTER AGENCY,PAYMENTS TO CARERS,2102488506
11.05.2016,CHILDREN'S SERVICES,REDACTED PERSONAL DATA,404.46,ADOPTION PLACEMENTS & INTER AGENCY,PAYMENTS TO CARERS,2102488507
11.05.2016,CHILDREN'S SERVICES,REDACTED PERSONAL DATA,717.14,ADOPTION PLACEMENTS & INTER AGENCY,PAYMENTS TO CARERS,2102488508
11.05.2016,CHILDREN'S SERVICES,REDACTED PERSONAL DATA,352.74,ADOPTION PLACEMENTS & INTER AGENCY,PAYMENTS TO CARERS,2102488510
11.05.2016,CHILDREN'S SERVICES,REDACTED PERSONAL DATA,304.64,ADOPTION PLACEMENTS & INTER AGENCY,PAYMENTS TO CARERS,2102488511
11.05.2016,CHILDREN'S SERVICES,REDACTED PERSONAL DATA,293.98,ADOPTION PLACEMENTS & INTER AGENCY,PAYMENTS TO CARERS,2102488512
11.05.2016,CHILDREN'S SERVICES,REDACTED PERSONAL DATA,252.9,ADOPTION PLACEMENTS & INTER AGENCY,PAYMENTS TO CARERS,2102488514
11.05.2016,CHILDREN'S SERVICES,REDACTED PERSONAL DATA,"1,053.20",ADOPTION PLACEMENTS & INTER AGENCY,PAYMENTS TO CARERS,2102488516
11.05.2016,CHILDREN'S SERVICES,REDACTED PERSONAL DATA,670.9,ADOPTION PLACEMENTS & INTER AGENCY,PAYMENTS TO CARERS,2102488517
11.05.2016,CHILDREN'S SERVICES,REDACTED PERSONAL DATA,854.28,ADOPTION PLACEMENTS & INTER AGENCY,PAYMENTS TO CARERS,2102488518
11.05.2016,CHILDREN'S SERVICES,REDACTED PERSONAL DATA,382.3,ADOPTION PLACEMENTS & INTER AGENCY,PAYMENTS TO CARERS,2102488519
11.05.2016,CHILDREN'S SERVICES,REDACTED PERSONAL DATA,316.5,ADOPTION PLACEMENTS & INTER AGENCY,PAYMENTS TO CARERS,2102488521
11.05.2016,CHILDREN'S SERVICES,REDACTED PERSONAL DATA,513.54,ADOPTION PLACEMENTS & INTER AGENCY,PAYMENTS TO CARERS,2102488523
11.05.2016,CHILDREN'S SERVICES,REDACTED PERSONAL DATA,375.54,ADOPTION PLACEMENTS & INTER AGENCY,PAYMENTS TO CARERS,2102488524
11.05.2016,CHILDREN'S SERVICES,REDACTED PERSONAL DATA,375.54,ADOPTION PLACEMENTS & INTER AGENCY,PAYMENTS TO CARERS,2102488525
11.05.2016,CHILDREN'S SERVICES,REDACTED PERSONAL DATA,465.54,ADOPTION PLACEMENTS & INTER AGENCY,PAYMENTS TO CARERS,2102488526
11.05.2016,CHILDREN'S SERVICES,REDACTED PERSONAL DATA,705.24,ADOPTION PLACEMENTS & INTER AGENCY,PAYMENTS TO CARERS,2102488527
11.05.2016,CHILDREN'S SERVICES,REDACTED PERSONAL DATA,409.02,ADOPTION PLACEMENTS & INTER AGENCY,PAYMENTS TO CARERS,2102488528
11.05.2016,CHILDREN'S SERVICES,REDACTED PERSONAL DATA,354.76,ADOPTION PLACEMENTS & INTER AGENCY,PAYMENTS TO CARERS,2102488530
11.05.2016,CHILDREN'S SERVICES,REDACTED PERSONAL DATA,908,ADOPTION PLACEMENTS & INTER AGENCY,PAYMENTS TO CARERS,2102488531
11.05.2016,CHILDREN'S SERVICES,REDACTED PERSONAL DATA,329.16,ADOPTION PLACEMENTS & INTER AGENCY,PAYMENTS TO CARERS,2102488536
11.05.2016,CHILDREN'S SERVICES,REDACTED PERSONAL DATA,255.22,ADOPTION PLACEMENTS & INTER AGENCY,PAYMENTS TO CARERS,2102488540
11.05.2016,CHILDREN'S SERVICES,REDACTED PERSONAL DATA,386.16,ADOPTION PLACEMENTS & INTER AGENCY,PAYMENTS TO CARERS,2102488541
11.05.2016,CHILDREN'S SERVICES,REDACTED PERSONAL DATA,382.3,ADOPTION PLACEMENTS & INTER AGENCY,PAYMENTS TO CARERS,2102488542
11.05.2016,CHILDREN'S SERVICES,REDACTED PERSONAL DATA,468.46,ADOPTION PLACEMENTS & INTER AGENCY,PAYMENTS TO CARERS,2102488543
11.05.2016,CHILDREN'S SERVICES,REDACTED PERSONAL DATA,653.06,ADOPTION PLACEMENTS & INTER AGENCY,PAYMENTS TO CARERS,2102488544
11.05.2016,CHILDREN'S SERVICES,REDACTED PERSONAL DATA,465.54,ADOPTION PLACEMENTS & INTER AGENCY,PAYMENTS TO CARERS,2102488545
11.05.2016,CHILDREN'S SERVICES,REDACTED PERSONAL DATA,375.54,ADOPTION PLACEMENTS & INTER AGENCY,PAYMENTS TO CARERS,2102488546
11.05.2016,CHILDREN'S SERVICES,REDACTED PERSONAL DATA,652.9,ADOPTION PLACEMENTS & INTER AGENCY,PAYMENTS TO CARERS,2102488547
11.05.2016,CHILDREN'S SERVICES,REDACTED PERSONAL DATA,368.52,ADOPTION PLACEMENTS & INTER AGENCY,PAYMENTS TO CARERS,2102488548
11.05.2016,CHILDREN'S SERVICES,REDACTED PERSONAL DATA,316.5,ADOPTION PLACEMENTS & INTER AGENCY,PAYMENTS TO CARERS,2102488550
11.05.2016,CHILDREN'S SERVICES,REDACTED PERSONAL DATA,637.94,ADOPTION PLACEMENTS & INTER AGENCY,PAYMENTS TO CARERS,2102488553
11.05.2016,CHILDREN'S SERVICES,REDACTED PERSONAL DATA,484.92,ADOPTION PLACEMENTS & INTER AGENCY,PAYMENTS TO CARERS,2102488554
11.05.2016,CHILDREN'S SERVICES,REDACTED PERSONAL DATA,303.32,ADOPTION PLACEMENTS & INTER AGENCY,PAYMENTS TO CARERS,2102488556
11.05.2016,CHILDREN'S SERVICES,REDACTED PERSONAL DATA,"1,385.34",ADOPTION PLACEMENTS & INTER AGENCY,PAYMENTS TO CARERS,2102488558
11.05.2016,CHILDREN'S SERVICES,REDACTED PERSONAL DATA,465.54,ADOPTION PLACEMENTS & INTER AGENCY,PAYMENTS TO CARERS,2102488559
11.05.2016,CHILDREN'S SERVICES,REDACTED PERSONAL DATA,465.54,ADOPTION PLACEMENTS & INTER AGENCY,PAYMENTS TO CARERS,2102488560
11.05.2016,CHILDREN'S SERVICES,REDACTED PERSONAL DATA,405.42,ADOPTION PLACEMENTS & INTER AGENCY,PAYMENTS TO CARERS,2102488561
11.05.2016,CHILDREN'S SERVICES,REDACTED PERSONAL DATA,323.18,ADOPTION PLACEMENTS & INTER AGENCY,PAYMENTS TO CARERS,2102488563
11.05.2016,CHILDREN'S SERVICES,REDACTED PERSONAL DATA,767.68,ADOPTION PLACEMENTS & INTER AGENCY,PAYMENTS TO CARERS,2102488564
11.05.2016,CHILDREN'S SERVICES,REDACTED PERSONAL DATA,626,ADOPTION PLACEMENTS & INTER AGENCY,PAYMENTS TO CARERS,2102488567
11.05.2016,CHILDREN'S SERVICES,REDACTED PERSONAL DATA,500,ADOPTION PLACEMENTS & INTER AGENCY,PAYMENTS TO CARERS,2102488575
11.05.2016,CHILDREN'S SERVICES,REDACTED PERSONAL DATA,375.54,ADOPTION PLACEMENTS & INTER AGENCY,PAYMENTS TO CARERS,2102488576
11.05.2016,CHILDREN'S SERVICES,REDACTED PERSONAL DATA,552.16,ADOPTION PLACEMENTS & INTER AGENCY,PAYMENTS TO CARERS,2102488577
11.05.2016,CHILDREN'S SERVICES,REDACTED PERSONAL DATA,375.54,ADOPTION PLACEMENTS & INTER AGENCY,PAYMENTS TO CARERS,2102488578
11.05.2016,CHILDREN'S SERVICES,REDACTED PERSONAL DATA,777.36,ADOPTION PLACEMENTS & INTER AGENCY,PAYMENTS TO CARERS,2102488579
11.05.2016,CHILDREN'S SERVICES,REDACTED PERSONAL DATA,457.14,ADOPTION PLACEMENTS & INTER AGENCY,PAYMENTS TO CARERS,2102488580
11.05.2016,CHILDREN'S SERVICES,REDACTED PERSONAL DATA,451.8,ADOPTION PLACEMENTS & INTER AGENCY,PAYMENTS TO CARERS,2102488581
11.05.2016,CHILDREN'S SERVICES,REDACTED PERSONAL DATA,255.22,ADOPTION PLACEMENTS & INTER AGENCY,PAYMENTS TO CARERS,2102488583
11.05.2016,CHILDREN'S SERVICES,REDACTED PERSONAL DATA,382.3,ADOPTION PLACEMENTS & INTER AGENCY,PAYMENTS TO CARERS,2102488586
11.05.2016,CHILDREN'S SERVICES,REDACTED PERSONAL DATA,"1,011.20",ADOPTION PLACEMENTS & INTER AGENCY,PAYMENTS TO CARERS,2102488588
11.05.2016,CHILDREN'S SERVICES,GREATER LONDON FOSTERING,-848,AGENCY FOSTERING,EXTERNAL AGENCIES AND BODIES,2102487612
11.05.2016,CHILDREN'S SERVICES,GREATER LONDON FOSTERING,"3,116.40",AGENCY FOSTERING,EXTERNAL AGENCIES AND BODIES,2102487934
11.05.2016,CHILDREN'S SERVICES,GREATER LONDON FOSTERING,"4,281.30",AGENCY FOSTERING,EXTERNAL AGENCIES AND BODIES,2102487935
11.05.2016,CHILDREN'S SERVICES,GREATER LONDON FOSTERING,713.55,AGENCY FOSTERING,EXTERNAL AGENCIES AND BODIES,2102487936
11.05.2016,CHILDREN'S SERVICES,ASCENT FOSTERING AGENCY LTD,"5,140.00",AGENCY FOSTERING,EXTERNAL AGENCIES AND BODIES,2102487961
11.05.2016,CHILDREN'S SERVICES,ASCENT FOSTERING AGENCY LTD,550.67,AGENCY FOSTERING,EXTERNAL AGENCIES AND BODIES,2102487962
11.05.2016,CHILDREN'S SERVICES,ASCENT FOSTERING AGENCY LTD,"5,400.00",AGENCY FOSTERING,EXTERNAL AGENCIES AND BODIES,2102487965
11.05.2016,CHILDREN'S SERVICES,ASCENT FOSTERING AGENCY LTD,578.35,AGENCY FOSTERING,EXTERNAL AGENCIES AND BODIES,2102487966
11.05.2016,CHILDREN'S SERVICES,MEGGS COSTOYA ATTFIELD LTD,"8,268.75",BUSINESS APPLICATIONS,SOFTWARE,5902191633
11.05.2016,CHILDREN'S SERVICES,MEGGS COSTOYA ATTFIELD LTD,"5,411.07",BUSINESS APPLICATIONS,SOFTWARE,5902191634
11.05.2016,CHILDREN'S SERVICES,MEGGS COSTOYA ATTFIELD LTD,"7,519.05",BUSINESS APPLICATIONS,SOFTWARE,5902191636
11.05.2016,CHILDREN'S SERVICES,FOLLOWING WHISPERS FAMILY SERVICE LTD,278,CARE PRACTICE GROUP SET A,EXTERNAL AGENCIES AND BODIES,2102487949
11.05.2016,CHILDREN'S SERVICES,OWENS STEVENS SOLICITORS,667,CARE PRACTICE GROUP SET C,OTHER PAYMENTS FOR CLIENTS,2102487960
11.05.2016,CHILDREN'S SERVICES,1ST PLACE CHILDREN & PARENTS CENTRE,641.76,CHILDRENS CENTRE,OTHER SUBSISTENCE & CONFERENCE EXPENSES,5902191591
11.05.2016,CHILDREN'S SERVICES,1ST PLACE CHILDREN & PARENTS CENTRE,641.76,CHILDRENS CENTRE,OTHER SUBSISTENCE & CONFERENCE EXPENSES,5902191597
11.05.2016,CHILDREN'S SERVICES,1ST PLACE CHILDREN & PARENTS CENTRE,507.12,CHILDRENS CENTRE,PROFESSIONAL FEES,5902191341
11.05.2016,CHILDREN'S SERVICES,NHS SOUTHWARK CCG,"45,000.00",CHILDRENS CTR CORE COMM,EXTERNAL AGENCIES AND BODIES,5902191426
11.05.2016,CHILDREN'S SERVICES,NHS SOUTHWARK CCG,"88,774.00",CHILDRENS CTR CORE COMM,EXTERNAL AGENCIES AND BODIES,5902191426
11.05.2016,CHILDREN'S SERVICES,NHS SOUTHWARK CCG,"480,385.73",CHILDRENS CTR CORE COMM,EXTERNAL AGENCIES AND BODIES,5902191426
11.05.2016,CHILDREN'S SERVICES,JULIET OGBECHIE LTD,"1,200.00",COMMISSIONING ESTABLISHMENT,CONSULTANTS SERVICES,5902191618
11.05.2016,CHILDREN'S SERVICES,LONDON WILDLIFE TRUST,"5,250.00",COMMUNITY LEARNING 15/16,GRANTS,5902191625
11.05.2016,CHILDREN'S SERVICES,LONDON WILDLIFE TRUST,"5,875.00",COMMUNITY LEARNING 15/16,GRANTS,5902191626
11.05.2016,CHILDREN'S SERVICES,FLUX STUDIOS,750,COMMUNITY LEARNING 15/16,GRANTS,5902191628
11.05.2016,CHILDREN'S SERVICES,FLUX STUDIOS,"1,250.00",COMMUNITY LEARNING 15/16,GRANTS,5902191630
11.05.2016,CHILDREN'S SERVICES,REDACTED PERSONAL DATA,300,DISABILITY & HIV,ADDITIONAL PAYMENTS TO AGENCIES/CARERS,2102488127
11.05.2016,CHILDREN'S SERVICES,REDACTED PERSONAL DATA,492.86,DISABILITY & HIV,ADDITIONAL PAYMENTS TO AGENCIES/CARERS,2102488143
11.05.2016,CHILDREN'S SERVICES,REDACTED PERSONAL DATA,300,DISABILITY & HIV,ADDITIONAL PAYMENTS TO AGENCIES/CARERS,2102488149
11.05.2016,CHILDREN'S SERVICES,REDACTED PERSONAL DATA,450,DISABILITY & HIV,ADDITIONAL PAYMENTS TO AGENCIES/CARERS,2102488282
11.05.2016,CHILDREN'S SERVICES,REDACTED PERSONAL DATA,300,DISABILITY & HIV,ADDITIONAL PAYMENTS TO AGENCIES/CARERS,2102488378
11.05.2016,CHILDREN'S SERVICES,REDACTED PERSONAL DATA,682.3,DISABILITY & HIV,PAYMENTS TO CARERS,2102488017
11.05.2016,CHILDREN'S SERVICES,REDACTED PERSONAL DATA,682.3,DISABILITY & HIV,PAYMENTS TO CARERS,2102488018
11.05.2016,CHILDREN'S SERVICES,REDACTED PERSONAL DATA,682.3,DISABILITY & HIV,PAYMENTS TO CARERS,2102488022
11.05.2016,CHILDREN'S SERVICES,REDACTED PERSONAL DATA,665.34,DISABILITY & HIV,PAYMENTS TO CARERS,2102488023
11.05.2016,CHILDREN'S SERVICES,REDACTED PERSONAL DATA,712.3,DISABILITY & HIV,PAYMENTS TO CARERS,2102488025
11.05.2016,CHILDREN'S SERVICES,REDACTED PERSONAL DATA,978.81,DISABILITY & HIV,PAYMENTS TO CARERS,2102488028
11.05.2016,CHILDREN'S SERVICES,REDACTED PERSONAL DATA,635.34,DISABILITY & HIV,PAYMENTS TO CARERS,2102488029
11.05.2016,CHILDREN'S SERVICES,REDACTED PERSONAL DATA,665.34,DISABILITY & HIV,PAYMENTS TO CARERS,2102488030
11.05.2016,CHILDREN'S SERVICES,REDACTED PERSONAL DATA,806.08,DISABILITY & HIV,PAYMENTS TO CARERS,2102488031
11.05.2016,CHILDREN'S SERVICES,REDACTED PERSONAL DATA,798.12,DISABILITY & HIV,PAYMENTS TO CARERS,2102488032
11.05.2016,CHILDREN'S SERVICES,REDACTED PERSONAL DATA,806.08,DISABILITY & HIV,PAYMENTS TO CARERS,2102488033
11.05.2016,CHILDREN'S SERVICES,REDACTED PERSONAL DATA,712.3,DISABILITY & HIV,PAYMENTS TO CARERS,2102488034
11.05.2016,CHILDREN'S SERVICES,REDACTED PERSONAL DATA,798.12,DISABILITY & HIV,PAYMENTS TO CARERS,2102488035
11.05.2016,CHILDREN'S SERVICES,REDACTED PERSONAL DATA,798.12,DISABILITY & HIV,PAYMENTS TO CARERS,2102488037
11.05.2016,CHILDREN'S SERVICES,REDACTED PERSONAL DATA,665.34,DISABILITY & HIV,PAYMENTS TO CARERS,2102488038
11.05.2016,CHILDREN'S SERVICES,REDACTED PERSONAL DATA,888.12,DISABILITY & HIV,PAYMENTS TO CARERS,2102488039
11.05.2016,CHILDREN'S SERVICES,REDACTED PERSONAL DATA,776.08,DISABILITY & HIV,PAYMENTS TO CARERS,2102488040
11.05.2016,CHILDREN'S SERVICES,REDACTED PERSONAL DATA,777.36,DISABILITY & HIV,PAYMENTS TO CARERS,2102488041
11.05.2016,CHILDREN'S SERVICES,REDACTED PERSONAL DATA,806.08,DISABILITY & HIV,PAYMENTS TO CARERS,2102488042
11.05.2016,CHILDREN'S SERVICES,REDACTED PERSONAL DATA,806.08,DISABILITY & HIV,PAYMENTS TO CARERS,2102488043
11.05.2016,CHILDREN'S SERVICES,REDACTED PERSONAL DATA,712.3,DISABILITY & HIV,PAYMENTS TO CARERS,2102488044
11.05.2016,CHILDREN'S SERVICES,REDACTED PERSONAL DATA,712.3,DISABILITY & HIV,PAYMENTS TO CARERS,2102488045
11.05.2016,CHILDREN'S SERVICES,REDACTED PERSONAL DATA,776.08,DISABILITY & HIV,PAYMENTS TO CARERS,2102488046
11.05.2016,CHILDREN'S SERVICES,REDACTED PERSONAL DATA,712.3,DISABILITY & HIV,PAYMENTS TO CARERS,2102488047
11.05.2016,CHILDREN'S SERVICES,REDACTED PERSONAL DATA,806.08,DISABILITY & HIV,PAYMENTS TO CARERS,2102488049
11.05.2016,CHILDREN'S SERVICES,REDACTED PERSONAL DATA,841.24,DISABILITY & HIV,PAYMENTS TO CARERS,2102488051
11.05.2016,CHILDREN'S SERVICES,REDACTED PERSONAL DATA,682.3,DISABILITY & HIV,PAYMENTS TO CARERS,2102488053
11.05.2016,CHILDREN'S SERVICES,REDACTED PERSONAL DATA,858.12,DISABILITY & HIV,PAYMENTS TO CARERS,2102488055
11.05.2016,CHILDREN'S SERVICES,REDACTED PERSONAL DATA,635.34,DISABILITY & HIV,PAYMENTS TO CARERS,2102488057
11.05.2016,CHILDREN'S SERVICES,REDACTED PERSONAL DATA,854.28,DISABILITY & HIV,PAYMENTS TO CARERS,2102488059
11.05.2016,CHILDREN'S SERVICES,REDACTED PERSONAL DATA,665.34,DISABILITY & HIV,PAYMENTS TO CARERS,2102488061
11.05.2016,CHILDREN'S SERVICES,REDACTED PERSONAL DATA,335.34,DISABILITY & HIV,PAYMENTS TO CARERS,2102488063
11.05.2016,CHILDREN'S SERVICES,REDACTED PERSONAL DATA,768.12,DISABILITY & HIV,PAYMENTS TO CARERS,2102488065
11.05.2016,CHILDREN'S SERVICES,REDACTED PERSONAL DATA,665.34,DISABILITY & HIV,PAYMENTS TO CARERS,2102488067
11.05.2016,CHILDREN'S SERVICES,REDACTED PERSONAL DATA,-382.65,DISABILITY & HIV,PAYMENTS TO CARERS,2102488069
11.05.2016,CHILDREN'S SERVICES,REDACTED PERSONAL DATA,"1,839.67",DISABILITY & HIV,PAYMENTS TO CARERS,2102488073
11.05.2016,CHILDREN'S SERVICES,REDACTED PERSONAL DATA,712.3,DISABILITY & HIV,PAYMENTS TO CARERS,2102488077
11.05.2016,CHILDREN'S SERVICES,REDACTED PERSONAL DATA,712.3,DISABILITY & HIV,PAYMENTS TO CARERS,2102488079
11.05.2016,CHILDREN'S SERVICES,REDACTED PERSONAL DATA,712.3,DISABILITY & HIV,PAYMENTS TO CARERS,2102488081
11.05.2016,CHILDREN'S SERVICES,REDACTED PERSONAL DATA,712.3,DISABILITY & HIV,PAYMENTS TO CARERS,2102488083
11.05.2016,CHILDREN'S SERVICES,REDACTED PERSONAL DATA,798.12,DISABILITY & HIV,PAYMENTS TO CARERS,2102488085
11.05.2016,CHILDREN'S SERVICES,REDACTED PERSONAL DATA,712.3,DISABILITY & HIV,PAYMENTS TO CARERS,2102488087
11.05.2016,CHILDREN'S SERVICES,REDACTED PERSONAL DATA,"1,379.08",DISABILITY & HIV,PAYMENTS TO CARERS,2102488089
11.05.2016,CHILDREN'S SERVICES,REDACTED PERSONAL DATA,665.34,DISABILITY & HIV,PAYMENTS TO CARERS,2102488091
11.05.2016,CHILDREN'S SERVICES,REDACTED PERSONAL DATA,712.3,DISABILITY & HIV,PAYMENTS TO CARERS,2102488093
11.05.2016,CHILDREN'S SERVICES,REDACTED PERSONAL DATA,682.3,DISABILITY & HIV,PAYMENTS TO CARERS,2102488095
11.05.2016,CHILDREN'S SERVICES,REDACTED PERSONAL DATA,665.34,DISABILITY & HIV,PAYMENTS TO CARERS,2102488097
11.05.2016,CHILDREN'S SERVICES,REDACTED PERSONAL DATA,712.3,DISABILITY & HIV,PAYMENTS TO CARERS,2102488099
11.05.2016,CHILDREN'S SERVICES,REDACTED PERSONAL DATA,806.08,DISABILITY & HIV,PAYMENTS TO CARERS,2102488101
11.05.2016,CHILDREN'S SERVICES,REDACTED PERSONAL DATA,806.08,DISABILITY & HIV,PAYMENTS TO CARERS,2102488103
11.05.2016,CHILDREN'S SERVICES,REDACTED PERSONAL DATA,712.3,DISABILITY & HIV,PAYMENTS TO CARERS,2102488105
11.05.2016,CHILDREN'S SERVICES,REDACTED PERSONAL DATA,854.28,DISABILITY & HIV,PAYMENTS TO CARERS,2102488107
11.05.2016,CHILDREN'S SERVICES,REDACTED PERSONAL DATA,888.12,DISABILITY & HIV,PAYMENTS TO CARERS,2102488109
11.05.2016,CHILDREN'S SERVICES,REDACTED PERSONAL DATA,712.3,DISABILITY & HIV,PAYMENTS TO CARERS,2102488111
11.05.2016,CHILDREN'S SERVICES,REDACTED PERSONAL DATA,682.3,DISABILITY & HIV,PAYMENTS TO CARERS,2102488113
11.05.2016,CHILDREN'S SERVICES,REDACTED PERSONAL DATA,806.08,DISABILITY & HIV,PAYMENTS TO CARERS,2102488117
11.05.2016,CHILDREN'S SERVICES,REDACTED PERSONAL DATA,665.34,DISABILITY & HIV,PAYMENTS TO CARERS,2102488119
11.05.2016,CHILDREN'S SERVICES,REDACTED PERSONAL DATA,776.08,DISABILITY & HIV,PAYMENTS TO CARERS,2102488121
11.05.2016,CHILDREN'S SERVICES,REDACTED PERSONAL DATA,888.12,DISABILITY & HIV,PAYMENTS TO CARERS,2102488123
11.05.2016,CHILDREN'S SERVICES,REDACTED PERSONAL DATA,682.3,DISABILITY & HIV,PAYMENTS TO CARERS,2102488125
11.05.2016,CHILDREN'S SERVICES,REDACTED PERSONAL DATA,798.12,DISABILITY & HIV,PAYMENTS TO CARERS,2102488129
11.05.2016,CHILDREN'S SERVICES,REDACTED PERSONAL DATA,888.12,DISABILITY & HIV,PAYMENTS TO CARERS,2102488131
11.05.2016,CHILDREN'S SERVICES,REDACTED PERSONAL DATA,768.12,DISABILITY & HIV,PAYMENTS TO CARERS,2102488132
11.05.2016,CHILDREN'S SERVICES,REDACTED PERSONAL DATA,768.12,DISABILITY & HIV,PAYMENTS TO CARERS,2102488134
11.05.2016,CHILDREN'S SERVICES,REDACTED PERSONAL DATA,776.08,DISABILITY & HIV,PAYMENTS TO CARERS,2102488137
11.05.2016,CHILDREN'S SERVICES,REDACTED PERSONAL DATA,682.3,DISABILITY & HIV,PAYMENTS TO CARERS,2102488138
11.05.2016,CHILDREN'S SERVICES,REDACTED PERSONAL DATA,682.3,DISABILITY & HIV,PAYMENTS TO CARERS,2102488139
11.05.2016,CHILDREN'S SERVICES,REDACTED PERSONAL DATA,858.12,DISABILITY & HIV,PAYMENTS TO CARERS,2102488141
11.05.2016,CHILDREN'S SERVICES,REDACTED PERSONAL DATA,776.08,DISABILITY & HIV,PAYMENTS TO CARERS,2102488142
11.05.2016,CHILDREN'S SERVICES,REDACTED PERSONAL DATA,776.08,DISABILITY & HIV,PAYMENTS TO CARERS,2102488144
11.05.2016,CHILDREN'S SERVICES,REDACTED PERSONAL DATA,816.87,DISABILITY & HIV,PAYMENTS TO CARERS,2102488145
11.05.2016,CHILDREN'S SERVICES,REDACTED PERSONAL DATA,921.23,DISABILITY & HIV,PAYMENTS TO CARERS,2102488146
11.05.2016,CHILDREN'S SERVICES,REDACTED PERSONAL DATA,776.08,DISABILITY & HIV,PAYMENTS TO CARERS,2102488147
11.05.2016,CHILDREN'S SERVICES,REDACTED PERSONAL DATA,712.3,DISABILITY & HIV,PAYMENTS TO CARERS,2102488148
11.05.2016,CHILDREN'S SERVICES,REDACTED PERSONAL DATA,798.12,DISABILITY & HIV,PAYMENTS TO CARERS,2102488150
11.05.2016,CHILDREN'S SERVICES,REDACTED PERSONAL DATA,635.34,DISABILITY & HIV,PAYMENTS TO CARERS,2102488156
11.05.2016,CHILDREN'S SERVICES,REDACTED PERSONAL DATA,712.3,DISABILITY & HIV,PAYMENTS TO CARERS,2102488157
11.05.2016,CHILDREN'S SERVICES,REDACTED PERSONAL DATA,991.42,DISABILITY & HIV,PAYMENTS TO CARERS,2102488158
11.05.2016,CHILDREN'S SERVICES,REDACTED PERSONAL DATA,776.08,DISABILITY & HIV,PAYMENTS TO CARERS,2102488159
11.05.2016,CHILDREN'S SERVICES,REDACTED PERSONAL DATA,806.08,DISABILITY & HIV,PAYMENTS TO CARERS,2102488160
11.05.2016,CHILDREN'S SERVICES,REDACTED PERSONAL DATA,858.12,DISABILITY & HIV,PAYMENTS TO CARERS,2102488161
11.05.2016,CHILDREN'S SERVICES,REDACTED PERSONAL DATA,665.34,DISABILITY & HIV,PAYMENTS TO CARERS,2102488162
11.05.2016,CHILDREN'S SERVICES,REDACTED PERSONAL DATA,777.36,DISABILITY & HIV,PAYMENTS TO CARERS,2102488163
11.05.2016,CHILDREN'S SERVICES,REDACTED PERSONAL DATA,991.48,DISABILITY & HIV,PAYMENTS TO CARERS,2102488164
11.05.2016,CHILDREN'S SERVICES,REDACTED PERSONAL DATA,888.12,DISABILITY & HIV,PAYMENTS TO CARERS,2102488165
11.05.2016,CHILDREN'S SERVICES,REDACTED PERSONAL DATA,798.12,DISABILITY & HIV,PAYMENTS TO CARERS,2102488166
11.05.2016,CHILDREN'S SERVICES,REDACTED PERSONAL DATA,798.12,DISABILITY & HIV,PAYMENTS TO CARERS,2102488167
11.05.2016,CHILDREN'S SERVICES,REDACTED PERSONAL DATA,806.08,DISABILITY & HIV,PAYMENTS TO CARERS,2102488168
11.05.2016,CHILDREN'S SERVICES,REDACTED PERSONAL DATA,712.3,DISABILITY & HIV,PAYMENTS TO CARERS,2102488169
11.05.2016,CHILDREN'S SERVICES,REDACTED PERSONAL DATA,806.08,DISABILITY & HIV,PAYMENTS TO CARERS,2102488170
11.05.2016,CHILDREN'S SERVICES,REDACTED PERSONAL DATA,682.3,DISABILITY & HIV,PAYMENTS TO CARERS,2102488171
11.05.2016,CHILDREN'S SERVICES,REDACTED PERSONAL DATA,768.12,DISABILITY & HIV,PAYMENTS TO CARERS,2102488172
11.05.2016,CHILDREN'S SERVICES,REDACTED PERSONAL DATA,776.08,DISABILITY & HIV,PAYMENTS TO CARERS,2102488173
11.05.2016,CHILDREN'S SERVICES,REDACTED PERSONAL DATA,888.12,DISABILITY & HIV,PAYMENTS TO CARERS,2102488174
11.05.2016,CHILDREN'S SERVICES,REDACTED PERSONAL DATA,-609.78,DISABILITY & HIV,PAYMENTS TO CARERS,2102488175
11.05.2016,CHILDREN'S SERVICES,REDACTED PERSONAL DATA,-300,DISABILITY & HIV,PAYMENTS TO CARERS,2102488176
11.05.2016,CHILDREN'S SERVICES,REDACTED PERSONAL DATA,-342.05,DISABILITY & HIV,PAYMENTS TO CARERS,2102488177
11.05.2016,CHILDREN'S SERVICES,REDACTED PERSONAL DATA,635.34,DISABILITY & HIV,PAYMENTS TO CARERS,2102488178
11.05.2016,CHILDREN'S SERVICES,REDACTED PERSONAL DATA,"1,585.93",DISABILITY & HIV,PAYMENTS TO CARERS,2102488179
11.05.2016,CHILDREN'S SERVICES,REDACTED PERSONAL DATA,874.94,DISABILITY & HIV,PAYMENTS TO CARERS,2102488180
11.05.2016,CHILDREN'S SERVICES,REDACTED PERSONAL DATA,712.3,DISABILITY & HIV,PAYMENTS TO CARERS,2102488181
11.05.2016,CHILDREN'S SERVICES,REDACTED PERSONAL DATA,712.3,DISABILITY & HIV,PAYMENTS TO CARERS,2102488182
11.05.2016,CHILDREN'S SERVICES,REDACTED PERSONAL DATA,798.12,DISABILITY & HIV,PAYMENTS TO CARERS,2102488183
11.05.2016,CHILDREN'S SERVICES,REDACTED PERSONAL DATA,798.12,DISABILITY & HIV,PAYMENTS TO CARERS,2102488184
11.05.2016,CHILDREN'S SERVICES,REDACTED PERSONAL DATA,806.08,DISABILITY & HIV,PAYMENTS TO CARERS,2102488185
11.05.2016,CHILDREN'S SERVICES,REDACTED PERSONAL DATA,888.12,DISABILITY & HIV,PAYMENTS TO CARERS,2102488186
11.05.2016,CHILDREN'S SERVICES,REDACTED PERSONAL DATA,682.3,DISABILITY & HIV,PAYMENTS TO CARERS,2102488187
11.05.2016,CHILDREN'S SERVICES,REDACTED PERSONAL DATA,806.08,DISABILITY & HIV,PAYMENTS TO CARERS,2102488188
11.05.2016,CHILDREN'S SERVICES,REDACTED PERSONAL DATA,806.08,DISABILITY & HIV,PAYMENTS TO CARERS,2102488191
11.05.2016,CHILDREN'S SERVICES,REDACTED PERSONAL DATA,682.3,DISABILITY & HIV,PAYMENTS TO CARERS,2102488192
11.05.2016,CHILDREN'S SERVICES,REDACTED PERSONAL DATA,712.3,DISABILITY & HIV,PAYMENTS TO CARERS,2102488193
11.05.2016,CHILDREN'S SERVICES,REDACTED PERSONAL DATA,712.3,DISABILITY & HIV,PAYMENTS TO CARERS,2102488194
11.05.2016,CHILDREN'S SERVICES,REDACTED PERSONAL DATA,806.08,DISABILITY & HIV,PAYMENTS TO CARERS,2102488195
11.05.2016,CHILDREN'S SERVICES,REDACTED PERSONAL DATA,806.08,DISABILITY & HIV,PAYMENTS TO CARERS,2102488196
11.05.2016,CHILDREN'S SERVICES,REDACTED PERSONAL DATA,"1,466.24",DISABILITY & HIV,PAYMENTS TO CARERS,2102488197
11.05.2016,CHILDREN'S SERVICES,REDACTED PERSONAL DATA,806.08,DISABILITY & HIV,PAYMENTS TO CARERS,2102488198
11.05.2016,CHILDREN'S SERVICES,REDACTED PERSONAL DATA,712.3,DISABILITY & HIV,PAYMENTS TO CARERS,2102488200
11.05.2016,CHILDREN'S SERVICES,REDACTED PERSONAL DATA,777.36,DISABILITY & HIV,PAYMENTS TO CARERS,2102488202
11.05.2016,CHILDREN'S SERVICES,REDACTED PERSONAL DATA,806.08,DISABILITY & HIV,PAYMENTS TO CARERS,2102488203
11.05.2016,CHILDREN'S SERVICES,REDACTED PERSONAL DATA,776.08,DISABILITY & HIV,PAYMENTS TO CARERS,2102488204
11.05.2016,CHILDREN'S SERVICES,REDACTED PERSONAL DATA,806.08,DISABILITY & HIV,PAYMENTS TO CARERS,2102488205
11.05.2016,CHILDREN'S SERVICES,REDACTED PERSONAL DATA,888.12,DISABILITY & HIV,PAYMENTS TO CARERS,2102488206
11.05.2016,CHILDREN'S SERVICES,REDACTED PERSONAL DATA,712.3,DISABILITY & HIV,PAYMENTS TO CARERS,2102488207
11.05.2016,CHILDREN'S SERVICES,REDACTED PERSONAL DATA,712.3,DISABILITY & HIV,PAYMENTS TO CARERS,2102488208
11.05.2016,CHILDREN'S SERVICES,REDACTED PERSONAL DATA,712.3,DISABILITY & HIV,PAYMENTS TO CARERS,2102488209
11.05.2016,CHILDREN'S SERVICES,REDACTED PERSONAL DATA,776.08,DISABILITY & HIV,PAYMENTS TO CARERS,2102488210
11.05.2016,CHILDREN'S SERVICES,REDACTED PERSONAL DATA,858.12,DISABILITY & HIV,PAYMENTS TO CARERS,2102488211
11.05.2016,CHILDREN'S SERVICES,REDACTED PERSONAL DATA,776.08,DISABILITY & HIV,PAYMENTS TO CARERS,2102488212
11.05.2016,CHILDREN'S SERVICES,REDACTED PERSONAL DATA,665.34,DISABILITY & HIV,PAYMENTS TO CARERS,2102488213
11.05.2016,CHILDREN'S SERVICES,REDACTED PERSONAL DATA,665.34,DISABILITY & HIV,PAYMENTS TO CARERS,2102488214
11.05.2016,CHILDREN'S SERVICES,REDACTED PERSONAL DATA,665.34,DISABILITY & HIV,PAYMENTS TO CARERS,2102488217
11.05.2016,CHILDREN'S SERVICES,REDACTED PERSONAL DATA,888.12,DISABILITY & HIV,PAYMENTS TO CARERS,2102488218
11.05.2016,CHILDREN'S SERVICES,REDACTED PERSONAL DATA,-460.62,DISABILITY & HIV,PAYMENTS TO CARERS,2102488220
11.05.2016,CHILDREN'S SERVICES,REDACTED PERSONAL DATA,888.12,DISABILITY & HIV,PAYMENTS TO CARERS,2102488222
11.05.2016,CHILDREN'S SERVICES,REDACTED PERSONAL DATA,776.08,DISABILITY & HIV,PAYMENTS TO CARERS,2102488224
11.05.2016,CHILDREN'S SERVICES,REDACTED PERSONAL DATA,888.12,DISABILITY & HIV,PAYMENTS TO CARERS,2102488226
11.05.2016,CHILDREN'S SERVICES,REDACTED PERSONAL DATA,-403.04,DISABILITY & HIV,PAYMENTS TO CARERS,2102488228
11.05.2016,CHILDREN'S SERVICES,REDACTED PERSONAL DATA,888.12,DISABILITY & HIV,PAYMENTS TO CARERS,2102488230
11.05.2016,CHILDREN'S SERVICES,REDACTED PERSONAL DATA,-287.88,DISABILITY & HIV,PAYMENTS TO CARERS,2102488232
11.05.2016,CHILDREN'S SERVICES,REDACTED PERSONAL DATA,888.12,DISABILITY & HIV,PAYMENTS TO CARERS,2102488238
11.05.2016,CHILDREN'S SERVICES,REDACTED PERSONAL DATA,888.12,DISABILITY & HIV,PAYMENTS TO CARERS,2102488240
11.05.2016,CHILDREN'S SERVICES,REDACTED PERSONAL DATA,888.12,DISABILITY & HIV,PAYMENTS TO CARERS,2102488244
11.05.2016,CHILDREN'S SERVICES,REDACTED PERSONAL DATA,712.3,DISABILITY & HIV,PAYMENTS TO CARERS,2102488246
11.05.2016,CHILDREN'S SERVICES,REDACTED PERSONAL DATA,924.2,DISABILITY & HIV,PAYMENTS TO CARERS,2102488248
11.05.2016,CHILDREN'S SERVICES,REDACTED PERSONAL DATA,665.34,DISABILITY & HIV,PAYMENTS TO CARERS,2102488252
11.05.2016,CHILDREN'S SERVICES,REDACTED PERSONAL DATA,-300,DISABILITY & HIV,PAYMENTS TO CARERS,2102488254
11.05.2016,CHILDREN'S SERVICES,REDACTED PERSONAL DATA,806.08,DISABILITY & HIV,PAYMENTS TO CARERS,2102488256
11.05.2016,CHILDREN'S SERVICES,REDACTED PERSONAL DATA,682.3,DISABILITY & HIV,PAYMENTS TO CARERS,2102488262
11.05.2016,CHILDREN'S SERVICES,REDACTED PERSONAL DATA,806.08,DISABILITY & HIV,PAYMENTS TO CARERS,2102488264
11.05.2016,CHILDREN'S SERVICES,REDACTED PERSONAL DATA,810.98,DISABILITY & HIV,PAYMENTS TO CARERS,2102488266
11.05.2016,CHILDREN'S SERVICES,REDACTED PERSONAL DATA,712.3,DISABILITY & HIV,PAYMENTS TO CARERS,2102488268
11.05.2016,CHILDREN'S SERVICES,REDACTED PERSONAL DATA,665.34,DISABILITY & HIV,PAYMENTS TO CARERS,2102488270
11.05.2016,CHILDREN'S SERVICES,REDACTED PERSONAL DATA,924.2,DISABILITY & HIV,PAYMENTS TO CARERS,2102488274
11.05.2016,CHILDREN'S SERVICES,REDACTED PERSONAL DATA,"1,094.60",DISABILITY & HIV,PAYMENTS TO CARERS,2102488276
11.05.2016,CHILDREN'S SERVICES,REDACTED PERSONAL DATA,518.2,DISABILITY & HIV,PAYMENTS TO CARERS,2102488278
11.05.2016,CHILDREN'S SERVICES,REDACTED PERSONAL DATA,855.2,DISABILITY & HIV,PAYMENTS TO CARERS,2102488280
11.05.2016,CHILDREN'S SERVICES,REDACTED PERSONAL DATA,584.82,DISABILITY & HIV,PAYMENTS TO CARERS,2102488284
11.05.2016,CHILDREN'S SERVICES,REDACTED PERSONAL DATA,712.3,DISABILITY & HIV,PAYMENTS TO CARERS,2102488286
11.05.2016,CHILDREN'S SERVICES,REDACTED PERSONAL DATA,798.12,DISABILITY & HIV,PAYMENTS TO CARERS,2102488288
11.05.2016,CHILDREN'S SERVICES,REDACTED PERSONAL DATA,-332.67,DISABILITY & HIV,PAYMENTS TO CARERS,2102488290
11.05.2016,CHILDREN'S SERVICES,REDACTED PERSONAL DATA,949.76,DISABILITY & HIV,PAYMENTS TO CARERS,2102488292
11.05.2016,CHILDREN'S SERVICES,REDACTED PERSONAL DATA,806.08,DISABILITY & HIV,PAYMENTS TO CARERS,2102488294
11.05.2016,CHILDREN'S SERVICES,REDACTED PERSONAL DATA,665.34,DISABILITY & HIV,PAYMENTS TO CARERS,2102488296
11.05.2016,CHILDREN'S SERVICES,REDACTED PERSONAL DATA,712.3,DISABILITY & HIV,PAYMENTS TO CARERS,2102488298
11.05.2016,CHILDREN'S SERVICES,REDACTED PERSONAL DATA,801.68,DISABILITY & HIV,PAYMENTS TO CARERS,2102488300
11.05.2016,CHILDREN'S SERVICES,REDACTED PERSONAL DATA,776.08,DISABILITY & HIV,PAYMENTS TO CARERS,2102488304
11.05.2016,CHILDREN'S SERVICES,REDACTED PERSONAL DATA,"1,088.12",DISABILITY & HIV,PAYMENTS TO CARERS,2102488306
11.05.2016,CHILDREN'S SERVICES,REDACTED PERSONAL DATA,806.08,DISABILITY & HIV,PAYMENTS TO CARERS,2102488308
11.05.2016,CHILDREN'S SERVICES,REDACTED PERSONAL DATA,665.34,DISABILITY & HIV,PAYMENTS TO CARERS,2102488310
11.05.2016,CHILDREN'S SERVICES,REDACTED PERSONAL DATA,665.34,DISABILITY & HIV,PAYMENTS TO CARERS,2102488311
11.05.2016,CHILDREN'S SERVICES,REDACTED PERSONAL DATA,768.12,DISABILITY & HIV,PAYMENTS TO CARERS,2102488312
11.05.2016,CHILDREN'S SERVICES,REDACTED PERSONAL DATA,888.12,DISABILITY & HIV,PAYMENTS TO CARERS,2102488314
11.05.2016,CHILDREN'S SERVICES,REDACTED PERSONAL DATA,888.12,DISABILITY & HIV,PAYMENTS TO CARERS,2102488316
11.05.2016,CHILDREN'S SERVICES,REDACTED PERSONAL DATA,807.92,DISABILITY & HIV,PAYMENTS TO CARERS,2102488320
11.05.2016,CHILDREN'S SERVICES,REDACTED PERSONAL DATA,712.3,DISABILITY & HIV,PAYMENTS TO CARERS,2102488322
11.05.2016,CHILDREN'S SERVICES,REDACTED PERSONAL DATA,806.08,DISABILITY & HIV,PAYMENTS TO CARERS,2102488324
11.05.2016,CHILDREN'S SERVICES,REDACTED PERSONAL DATA,776.08,DISABILITY & HIV,PAYMENTS TO CARERS,2102488326
11.05.2016,CHILDREN'S SERVICES,REDACTED PERSONAL DATA,806.08,DISABILITY & HIV,PAYMENTS TO CARERS,2102488328
11.05.2016,CHILDREN'S SERVICES,REDACTED PERSONAL DATA,712.3,DISABILITY & HIV,PAYMENTS TO CARERS,2102488330
11.05.2016,CHILDREN'S SERVICES,REDACTED PERSONAL DATA,712.3,DISABILITY & HIV,PAYMENTS TO CARERS,2102488332
11.05.2016,CHILDREN'S SERVICES,REDACTED PERSONAL DATA,665.34,DISABILITY & HIV,PAYMENTS TO CARERS,2102488334
11.05.2016,CHILDREN'S SERVICES,REDACTED PERSONAL DATA,798.12,DISABILITY & HIV,PAYMENTS TO CARERS,2102488336
11.05.2016,CHILDREN'S SERVICES,REDACTED PERSONAL DATA,712.3,DISABILITY & HIV,PAYMENTS TO CARERS,2102488342
11.05.2016,CHILDREN'S SERVICES,REDACTED PERSONAL DATA,712.3,DISABILITY & HIV,PAYMENTS TO CARERS,2102488344
11.05.2016,CHILDREN'S SERVICES,REDACTED PERSONAL DATA,776.08,DISABILITY & HIV,PAYMENTS TO CARERS,2102488346
11.05.2016,CHILDREN'S SERVICES,REDACTED PERSONAL DATA,888.12,DISABILITY & HIV,PAYMENTS TO CARERS,2102488348
11.05.2016,CHILDREN'S SERVICES,REDACTED PERSONAL DATA,712.3,DISABILITY & HIV,PAYMENTS TO CARERS,2102488350
11.05.2016,CHILDREN'S SERVICES,REDACTED PERSONAL DATA,798.12,DISABILITY & HIV,PAYMENTS TO CARERS,2102488352
11.05.2016,CHILDREN'S SERVICES,REDACTED PERSONAL DATA,777.36,DISABILITY & HIV,PAYMENTS TO CARERS,2102488354
11.05.2016,CHILDREN'S SERVICES,REDACTED PERSONAL DATA,806.08,DISABILITY & HIV,PAYMENTS TO CARERS,2102488355
11.05.2016,CHILDREN'S SERVICES,REDACTED PERSONAL DATA,712.3,DISABILITY & HIV,PAYMENTS TO CARERS,2102488356
11.05.2016,CHILDREN'S SERVICES,REDACTED PERSONAL DATA,768.12,DISABILITY & HIV,PAYMENTS TO CARERS,2102488357
11.05.2016,CHILDREN'S SERVICES,REDACTED PERSONAL DATA,-900,DISABILITY & HIV,PAYMENTS TO CARERS,2102488359
11.05.2016,CHILDREN'S SERVICES,REDACTED PERSONAL DATA,798.12,DISABILITY & HIV,PAYMENTS TO CARERS,2102488361
11.05.2016,CHILDREN'S SERVICES,REDACTED PERSONAL DATA,776.08,DISABILITY & HIV,PAYMENTS TO CARERS,2102488363
11.05.2016,CHILDREN'S SERVICES,REDACTED PERSONAL DATA,665.34,DISABILITY & HIV,PAYMENTS TO CARERS,2102488364
11.05.2016,CHILDREN'S SERVICES,REDACTED PERSONAL DATA,835.34,DISABILITY & HIV,PAYMENTS TO CARERS,2102488366
11.05.2016,CHILDREN'S SERVICES,REDACTED PERSONAL DATA,888.12,DISABILITY & HIV,PAYMENTS TO CARERS,2102488367
11.05.2016,CHILDREN'S SERVICES,REDACTED PERSONAL DATA,712.3,DISABILITY & HIV,PAYMENTS TO CARERS,2102488368
11.05.2016,CHILDREN'S SERVICES,REDACTED PERSONAL DATA,776.08,DISABILITY & HIV,PAYMENTS TO CARERS,2102488369
11.05.2016,CHILDREN'S SERVICES,REDACTED PERSONAL DATA,635.34,DISABILITY & HIV,PAYMENTS TO CARERS,2102488370
11.05.2016,CHILDREN'S SERVICES,REDACTED PERSONAL DATA,-453.82,DISABILITY & HIV,PAYMENTS TO CARERS,2102488371
11.05.2016,CHILDREN'S SERVICES,REDACTED PERSONAL DATA,991.42,DISABILITY & HIV,PAYMENTS TO CARERS,2102488372
11.05.2016,CHILDREN'S SERVICES,REDACTED PERSONAL DATA,854.28,DISABILITY & HIV,PAYMENTS TO CARERS,2102488373
11.05.2016,CHILDREN'S SERVICES,REDACTED PERSONAL DATA,665.34,DISABILITY & HIV,PAYMENTS TO CARERS,2102488375
11.05.2016,CHILDREN'S SERVICES,REDACTED PERSONAL DATA,806.08,DISABILITY & HIV,PAYMENTS TO CARERS,2102488376
11.05.2016,CHILDREN'S SERVICES,REDACTED PERSONAL DATA,682.3,DISABILITY & HIV,PAYMENTS TO CARERS,2102488377
11.05.2016,CHILDREN'S SERVICES,REDACTED PERSONAL DATA,682.3,DISABILITY & HIV,PAYMENTS TO CARERS,2102488380
11.05.2016,CHILDREN'S SERVICES,REDACTED PERSONAL DATA,806.08,DISABILITY & HIV,PAYMENTS TO CARERS,2102488381
11.05.2016,CHILDREN'S SERVICES,REDACTED PERSONAL DATA,806.08,DISABILITY & HIV,PAYMENTS TO CARERS,2102488382
11.05.2016,CHILDREN'S SERVICES,REDACTED PERSONAL DATA,768.12,DISABILITY & HIV,PAYMENTS TO CARERS,2102488383
11.05.2016,CHILDREN'S SERVICES,REDACTED PERSONAL DATA,665.34,DISABILITY & HIV,PAYMENTS TO CARERS,2102488384
11.05.2016,CHILDREN'S SERVICES,REDACTED PERSONAL DATA,712.3,DISABILITY & HIV,PAYMENTS TO CARERS,2102488385
11.05.2016,CHILDREN'S SERVICES,REDACTED PERSONAL DATA,806.08,DISABILITY & HIV,PAYMENTS TO CARERS,2102488386
11.05.2016,CHILDREN'S SERVICES,REDACTED PERSONAL DATA,776.08,DISABILITY & HIV,PAYMENTS TO CARERS,2102488387
11.05.2016,CHILDREN'S SERVICES,REDACTED PERSONAL DATA,712.3,DISABILITY & HIV,PAYMENTS TO CARERS,2102488388
11.05.2016,CHILDREN'S SERVICES,REDACTED PERSONAL DATA,806.08,DISABILITY & HIV,PAYMENTS TO CARERS,2102488389
11.05.2016,CHILDREN'S SERVICES,REDACTED PERSONAL DATA,806.08,DISABILITY & HIV,PAYMENTS TO CARERS,2102488390
11.05.2016,CHILDREN'S SERVICES,REDACTED PERSONAL DATA,-332.67,DISABILITY & HIV,PAYMENTS TO CARERS,2102488391
11.05.2016,CHILDREN'S SERVICES,REDACTED PERSONAL DATA,888.12,DISABILITY & HIV,PAYMENTS TO CARERS,2102488392
11.05.2016,CHILDREN'S SERVICES,REDACTED PERSONAL DATA,776.08,DISABILITY & HIV,PAYMENTS TO CARERS,2102488393
11.05.2016,CHILDREN'S SERVICES,REDACTED PERSONAL DATA,798.12,DISABILITY & HIV,PAYMENTS TO CARERS,2102488394
11.05.2016,CHILDREN'S SERVICES,REDACTED PERSONAL DATA,888.12,DISABILITY & HIV,PAYMENTS TO CARERS,2102488395
11.05.2016,CHILDREN'S SERVICES,REDACTED PERSONAL DATA,806.08,DISABILITY & HIV,PAYMENTS TO CARERS,2102488397
11.05.2016,CHILDREN'S SERVICES,REDACTED PERSONAL DATA,798.12,DISABILITY & HIV,PAYMENTS TO CARERS,2102488398
11.05.2016,CHILDREN'S SERVICES,REDACTED PERSONAL DATA,635.34,DISABILITY & HIV,PAYMENTS TO CARERS,2102488399
11.05.2016,CHILDREN'S SERVICES,REDACTED PERSONAL DATA,712.3,DISABILITY & HIV,PAYMENTS TO CARERS,2102488402
11.05.2016,CHILDREN'S SERVICES,REDACTED PERSONAL DATA,991.42,DISABILITY & HIV,PAYMENTS TO CARERS,2102488403
11.05.2016,CHILDREN'S SERVICES,REDACTED PERSONAL DATA,665.34,DISABILITY & HIV,PAYMENTS TO CARERS,2102488404
11.05.2016,CHILDREN'S SERVICES,REDACTED PERSONAL DATA,"1,094.60",DISABILITY & HIV,PAYMENTS TO CARERS,2102488406
11.05.2016,CHILDREN'S SERVICES,REDACTED PERSONAL DATA,888.12,DISABILITY & HIV,PAYMENTS TO CARERS,2102488408
11.05.2016,CHILDREN'S SERVICES,REDACTED PERSONAL DATA,806.08,DISABILITY & HIV,PAYMENTS TO CARERS,2102488413
11.05.2016,CHILDREN'S SERVICES,REDACTED PERSONAL DATA,798.12,DISABILITY & HIV,PAYMENTS TO CARERS,2102488414
11.05.2016,CHILDREN'S SERVICES,REDACTED PERSONAL DATA,858.12,DISABILITY & HIV,PAYMENTS TO CARERS,2102488415
11.05.2016,CHILDREN'S SERVICES,REDACTED PERSONAL DATA,991.42,DISABILITY & HIV,PAYMENTS TO CARERS,2102488416
11.05.2016,CHILDREN'S SERVICES,REDACTED PERSONAL DATA,682.3,DISABILITY & HIV,PAYMENTS TO CARERS,2102488417
11.05.2016,CHILDREN'S SERVICES,REDACTED PERSONAL DATA,712.3,DISABILITY & HIV,PAYMENTS TO CARERS,2102488418
11.05.2016,CHILDREN'S SERVICES,WALWORTH METHODIST CHURCH,652.5,EARLY AUTISM SUPPORT,OTHER EMPLOYEE EXPENSES,2102487916
11.05.2016,CHILDREN'S SERVICES,KINTORE WAY CHILDRENS CENTRE,"1,008.00",EARLY AUTISM SUPPORT,EXTERNAL AGENCIES AND BODIES,2102487917
11.05.2016,CHILDREN'S SERVICES,RYE OAK PRIMARY SCHOOL,746.11,EARLY YEARS,DISCRETIONARY AWARDS AND FEES,2102487919
11.05.2016,CHILDREN'S SERVICES,RYE OAK PRIMARY SCHOOL,"2,020.10",EARLY YEARS,DISCRETIONARY AWARDS AND FEES,2102487920
11.05.2016,CHILDREN'S SERVICES,SOUTHWARK PARK PRIMARY SCHOOL,"1,089.86",EARLY YEARS,EXTERNAL AGENCIES AND BODIES,2102487892
11.05.2016,CHILDREN'S SERVICES,SOUTHWARK PARK PRIMARY SCHOOL,"3,384.47",EARLY YEARS,EXTERNAL AGENCIES AND BODIES,2102487893
11.05.2016,CHILDREN'S SERVICES,OCTAVIA HOUSE SCHOOLS LTD,"13,000.00",FE & SIXTH FORM COLLEGES,EXTERNAL AGENCIES AND BODIES,2102487895
11.05.2016,CHILDREN'S SERVICES,OCTAVIA HOUSE SCHOOLS LTD,"13,000.00",FE & SIXTH FORM COLLEGES,EXTERNAL AGENCIES AND BODIES,2102487896
11.05.2016,CHILDREN'S SERVICES,AMBITIOUS ABOUT AUTISM,"26,313.00",FE & SIXTH FORM COLLEGES,EXTERNAL AGENCIES AND BODIES,2102487900
11.05.2016,CHILDREN'S SERVICES,AMBITIOUS ABOUT AUTISM,"22,979.00",FE & SIXTH FORM COLLEGES,EXTERNAL AGENCIES AND BODIES,2102487901
11.05.2016,CHILDREN'S SERVICES,AMBITIOUS ABOUT AUTISM,"22,979.00",FE & SIXTH FORM COLLEGES,EXTERNAL AGENCIES AND BODIES,2102487902
11.05.2016,CHILDREN'S SERVICES,AMBITIOUS ABOUT AUTISM,"26,313.00",FE & SIXTH FORM COLLEGES,EXTERNAL AGENCIES AND BODIES,2102487903
11.05.2016,CHILDREN'S SERVICES,AMBITIOUS ABOUT AUTISM,"22,979.00",FE & SIXTH FORM COLLEGES,EXTERNAL AGENCIES AND BODIES,2102487904
11.05.2016,CHILDREN'S SERVICES,HILLCREST AUTISM SERVICES LTD,"17,463.60",FE & SIXTH FORM COLLEGES,EXTERNAL AGENCIES AND BODIES,2102487908
11.05.2016,CHILDREN'S SERVICES,LESOCO,"230,751.54",FE & SIXTH FORM COLLEGES,EXTERNAL AGENCIES AND BODIES,2102487918
11.05.2016,CHILDREN'S SERVICES,ROEHAMPTON LODGE PRIORY,"23,333.33",FE & SIXTH FORM COLLEGES,EXTERNAL AGENCIES AND BODIES,2102487922
11.05.2016,CHILDREN'S SERVICES,ROEHAMPTON LODGE PRIORY,"5,833.33",FE & SIXTH FORM COLLEGES,EXTERNAL AGENCIES AND BODIES,2102487923
11.05.2016,CHILDREN'S SERVICES,INTEGRATED SERVICES PROGRAMME,"13,400.00",FE & SIXTH FORM COLLEGES,EXTERNAL AGENCIES AND BODIES,2102487926
11.05.2016,CHILDREN'S SERVICES,INTEGRATED SERVICES PROGRAMME,"13,400.00",FE & SIXTH FORM COLLEGES,EXTERNAL AGENCIES AND BODIES,2102487927
11.05.2016,CHILDREN'S SERVICES,FAIRLEY HOUSE SCHOOL,"9,974.00",FE & SIXTH FORM COLLEGES,EXTERNAL AGENCIES AND BODIES,2102487924
11.05.2016,CHILDREN'S SERVICES,MARY HARE GRAMMAR SCHOOL,"9,094.00",FE & SIXTH FORM COLLEGES,EXTERNAL AGENCIES AND BODIES,2102487925
11.05.2016,CHILDREN'S SERVICES,MARY HARE GRAMMAR SCHOOL,"-2,049.50",FE & SIXTH FORM COLLEGES,EXTERNAL AGENCIES AND BODIES,2102487931
11.05.2016,CHILDREN'S SERVICES,WM MORRISON SUPERMARKETS PLC,"3,980.25",FINANCE,OTHER PAYMENTS FOR CLIENTS,5902191560
11.05.2016,CHILDREN'S SERVICES,THE ANNA FREUD CENTRE,"7,744.80",FRIENDS & FAMILY FOSTERING,RESIDENTIAL CARE,5902191461
11.05.2016,CHILDREN'S SERVICES,BESPOKE PSYCHOLOGY,562.96,FRIENDS & FAMILY FOSTERING,RESIDENTIAL CARE,5902191462
11.05.2016,CHILDREN'S SERVICES,REDACTED PERSONAL DATA,362.5,FRIENDS & FAMILY FOSTERING,ADDITIONAL PAYMENTS TO AGENCIES/CARERS,2102488628
11.05.2016,CHILDREN'S SERVICES,REDACTED PERSONAL DATA,375.54,FRIENDS & FAMILY FOSTERING,PAYMENTS TO CARERS,2102488589
11.05.2016,CHILDREN'S SERVICES,REDACTED PERSONAL DATA,776.08,FRIENDS & FAMILY FOSTERING,PAYMENTS TO CARERS,2102488590
11.05.2016,CHILDREN'S SERVICES,REDACTED PERSONAL DATA,335.34,FRIENDS & FAMILY FOSTERING,PAYMENTS TO CARERS,2102488591
11.05.2016,CHILDREN'S SERVICES,REDACTED PERSONAL DATA,578.12,FRIENDS & FAMILY FOSTERING,PAYMENTS TO CARERS,2102488593
11.05.2016,CHILDREN'S SERVICES,REDACTED PERSONAL DATA,329.42,FRIENDS & FAMILY FOSTERING,PAYMENTS TO CARERS,2102488595
11.05.2016,CHILDREN'S SERVICES,REDACTED PERSONAL DATA,682.3,FRIENDS & FAMILY FOSTERING,PAYMENTS TO CARERS,2102488596
11.05.2016,CHILDREN'S SERVICES,REDACTED PERSONAL DATA,335.34,FRIENDS & FAMILY FOSTERING,PAYMENTS TO CARERS,2102488598
11.05.2016,CHILDREN'S SERVICES,REDACTED PERSONAL DATA,476.08,FRIENDS & FAMILY FOSTERING,PAYMENTS TO CARERS,2102488599
11.05.2016,CHILDREN'S SERVICES,REDACTED PERSONAL DATA,476.08,FRIENDS & FAMILY FOSTERING,PAYMENTS TO CARERS,2102488601
11.05.2016,CHILDREN'S SERVICES,REDACTED PERSONAL DATA,776.08,FRIENDS & FAMILY FOSTERING,PAYMENTS TO CARERS,2102488602
11.05.2016,CHILDREN'S SERVICES,REDACTED PERSONAL DATA,476.08,FRIENDS & FAMILY FOSTERING,PAYMENTS TO CARERS,2102488603
11.05.2016,CHILDREN'S SERVICES,REDACTED PERSONAL DATA,867.9,FRIENDS & FAMILY FOSTERING,PAYMENTS TO CARERS,2102488604
11.05.2016,CHILDREN'S SERVICES,REDACTED PERSONAL DATA,682.3,FRIENDS & FAMILY FOSTERING,PAYMENTS TO CARERS,2102488606
11.05.2016,CHILDREN'S SERVICES,REDACTED PERSONAL DATA,476.08,FRIENDS & FAMILY FOSTERING,PAYMENTS TO CARERS,2102488607
11.05.2016,CHILDREN'S SERVICES,REDACTED PERSONAL DATA,375.54,FRIENDS & FAMILY FOSTERING,PAYMENTS TO CARERS,2102488608
11.05.2016,CHILDREN'S SERVICES,REDACTED PERSONAL DATA,767.66,FRIENDS & FAMILY FOSTERING,PAYMENTS TO CARERS,2102488609
11.05.2016,CHILDREN'S SERVICES,REDACTED PERSONAL DATA,382.3,FRIENDS & FAMILY FOSTERING,PAYMENTS TO CARERS,2102488611
11.05.2016,CHILDREN'S SERVICES,REDACTED PERSONAL DATA,682.3,FRIENDS & FAMILY FOSTERING,PAYMENTS TO CARERS,2102488612
11.05.2016,CHILDREN'S SERVICES,REDACTED PERSONAL DATA,329.42,FRIENDS & FAMILY FOSTERING,PAYMENTS TO CARERS,2102488613
11.05.2016,CHILDREN'S SERVICES,REDACTED PERSONAL DATA,682.3,FRIENDS & FAMILY FOSTERING,PAYMENTS TO CARERS,2102488615
11.05.2016,CHILDREN'S SERVICES,REDACTED PERSONAL DATA,635.34,FRIENDS & FAMILY FOSTERING,PAYMENTS TO CARERS,2102488616
11.05.2016,CHILDREN'S SERVICES,REDACTED PERSONAL DATA,382.3,FRIENDS & FAMILY FOSTERING,PAYMENTS TO CARERS,2102488617
11.05.2016,CHILDREN'S SERVICES,REDACTED PERSONAL DATA,382.3,FRIENDS & FAMILY FOSTERING,PAYMENTS TO CARERS,2102488618
11.05.2016,CHILDREN'S SERVICES,REDACTED PERSONAL DATA,682.3,FRIENDS & FAMILY FOSTERING,PAYMENTS TO CARERS,2102488619
11.05.2016,CHILDREN'S SERVICES,REDACTED PERSONAL DATA,"3,304.16",FRIENDS & FAMILY FOSTERING,PAYMENTS TO CARERS,2102488620
11.05.2016,CHILDREN'S SERVICES,REDACTED PERSONAL DATA,367.1,FRIENDS & FAMILY FOSTERING,PAYMENTS TO CARERS,2102488621
11.05.2016,CHILDREN'S SERVICES,REDACTED PERSONAL DATA,382.3,FRIENDS & FAMILY FOSTERING,PAYMENTS TO CARERS,2102488623
11.05.2016,CHILDREN'S SERVICES,REDACTED PERSONAL DATA,382.3,FRIENDS & FAMILY FOSTERING,PAYMENTS TO CARERS,2102488624
11.05.2016,CHILDREN'S SERVICES,REDACTED PERSONAL DATA,682.3,FRIENDS & FAMILY FOSTERING,PAYMENTS TO CARERS,2102488626
11.05.2016,CHILDREN'S SERVICES,REDACTED PERSONAL DATA,476.08,FRIENDS & FAMILY FOSTERING,PAYMENTS TO CARERS,2102488627
11.05.2016,CHILDREN'S SERVICES,REDACTED PERSONAL DATA,335.34,FRIENDS & FAMILY FOSTERING,PAYMENTS TO CARERS,2102488629
11.05.2016,CHILDREN'S SERVICES,REDACTED PERSONAL DATA,776.08,FRIENDS & FAMILY FOSTERING,PAYMENTS TO CARERS,2102488631
11.05.2016,CHILDREN'S SERVICES,REDACTED PERSONAL DATA,682.3,FRIENDS & FAMILY FOSTERING,PAYMENTS TO CARERS,2102488632
11.05.2016,CHILDREN'S SERVICES,JOHN GUEST SAFEGUARDING LIMITED,275,GOVERNOR TRAINING,CONSULTANTS SERVICES,5902191424
11.05.2016,CHILDREN'S SERVICES,GUYS & ST THOMAS NHS FOUNDATION TRUST,"17,376.00",HEARING AND VISUAL IMPAIRMENT TEAM,EXTERNAL AGENCIES AND BODIES,2102487912
11.05.2016,CHILDREN'S SERVICES,CAMELOT PRIMARY SCHOOL,"5,000.00",INTERVENTION FUND,CONSULTANTS SERVICES,5902191501
11.05.2016,CHILDREN'S SERVICES,OLIVER GOLDSMITH PRIMARY SCHOOL,"4,000.00",INTERVENTION FUND,CONSULTANTS SERVICES,5902191502
11.05.2016,CHILDREN'S SERVICES,OFFICE DEPOT UK LTD,557.96,MANAGEMENT & HUMAN RESOURCES,STATIONERY,5902191472
11.05.2016,CHILDREN'S SERVICES,CAPITA BUSINESS SERVICES LTD,299,PUPIL PREMIUM CURRENT YEAR,TRAINING,5902191611
11.05.2016,CHILDREN'S SERVICES,CAPITA BUSINESS SERVICES LTD,299,PUPIL PREMIUM CURRENT YEAR,TRAINING,5902191611
11.05.2016,CHILDREN'S SERVICES,REDACTED PERSONAL DATA,264.16,RESIDENCE ORDERS,PAYMENTS TO CARERS,2102488662
11.05.2016,CHILDREN'S SERVICES,REDACTED PERSONAL DATA,264.04,RESIDENCE ORDERS,PAYMENTS TO CARERS,2102488780
11.05.2016,CHILDREN'S SERVICES,REDACTED PERSONAL DATA,264.16,RESIDENCE ORDERS,PAYMENTS TO CARERS,2102488863
11.05.2016,CHILDREN'S SERVICES,MEADOWS CARE LTD,"18,600.00",RESIDENTIAL,OTHER PAYMENTS FOR CLIENTS,5902191622
11.05.2016,CHILDREN'S SERVICES,G4S CARE & JUSTICE SERVICES LTD,"3,650.00",RESIDENTIAL,RESIDENTIAL CARE,2102487941
11.05.2016,CHILDREN'S SERVICES,GREENFIELDS ADOLESCENT DEVELOPMENT LTD,"18,932.14",RESIDENTIAL,RESIDENTIAL CARE,5902191561
11.05.2016,CHILDREN'S SERVICES,SOUTHWARK MEDIATION CENTRE,"3,600.00",S & FAM SUPP - PRAC GRP A SET 14-16,EXTERNAL AGENCIES AND BODIES,5902191474
11.05.2016,CHILDREN'S SERVICES,ZENITH CARS LTD,620,S & FAM SUPP - PRAC GRP A SET 14-16,HIRED VEHICLES,5902191443
11.05.2016,CHILDREN'S SERVICES,ZENITH CARS LTD,261,S & FAM SUPP - PRAC GRP C SET 20-22,HIRED VEHICLES,5902191443
11.05.2016,CHILDREN'S SERVICES,CAMBERWELL AFTER SCHOOL PROJECT,265.5,S & FAM SUPP - PRAC GRP D SET 23-25,OTHER PAYMENTS FOR CLIENTS,5902191466
11.05.2016,CHILDREN'S SERVICES,ZENITH CARS LTD,272,S & FAM SUPP - PRAC GRP F SET 29-31,HIRED VEHICLES,5902191443
11.05.2016,CHILDREN'S SERVICES,BARNARDOS SERVICES LTD,"1,682.99",S24 CLA,OTHER PAYMENTS FOR CLIENTS,2102487947
11.05.2016,CHILDREN'S SERVICES,BARNARDOS SERVICES LTD,"1,682.99",S24 CLA,OTHER PAYMENTS FOR CLIENTS,2102487948
11.05.2016,CHILDREN'S SERVICES,PURPLE PEBBLES(CHILD CARE) SERVICES,"1,200.00",S24 CLA,SECTION 17 PAYMENTS TO AGENCIES/CARERS,2102487954
11.05.2016,CHILDREN'S SERVICES,PURPLE PEBBLES(CHILD CARE) SERVICES,"1,173.57",S24 CLA,SECTION 17 PAYMENTS TO AGENCIES/CARERS,2102487955
11.05.2016,CHILDREN'S SERVICES,SOUTHWARK LAW CENTRE,395,SAFETY INITIATIVES,OFFICE EXPENSES,5902191610
11.05.2016,CHILDREN'S SERVICES,QUALITY PROTECTS CHILDREN LTD,"5,314.29",SEMI INDEPENDENT,RESIDENTIAL CARE,2102487937
11.05.2016,CHILDREN'S SERVICES,DULWICH COLLEGE,"4,535.00",SEN TRANSPORT,EXTERNAL AGENCIES AND BODIES,2102487891
11.05.2016,CHILDREN'S SERVICES,OCTAVIA HOUSE SCHOOLS LTD,"15,500.00",SEN TRANSPORT,EXTERNAL AGENCIES AND BODIES,2102487894
11.05.2016,CHILDREN'S SERVICES,THE DOMINIE SCHOOL LTD,"8,550.00",SEN TRANSPORT,EXTERNAL AGENCIES AND BODIES,2102487898
11.05.2016,CHILDREN'S SERVICES,AMBITIOUS ABOUT AUTISM,"19,289.00",SEN TRANSPORT,EXTERNAL AGENCIES AND BODIES,2102487905
11.05.2016,CHILDREN'S SERVICES,HILLCREST AUTISM SERVICES LTD,"22,492.80",SEN TRANSPORT,EXTERNAL AGENCIES AND BODIES,2102487906
11.05.2016,CHILDREN'S SERVICES,HILLCREST AUTISM SERVICES LTD,"17,812.80",SEN TRANSPORT,EXTERNAL AGENCIES AND BODIES,2102487907
11.05.2016,CHILDREN'S SERVICES,THE NATIONAL AUTISTIC SOCIETY SVCS,"26,409.14",SEN TRANSPORT,EXTERNAL AGENCIES AND BODIES,2102487913
11.05.2016,CHILDREN'S SERVICES,THE NATIONAL AUTISTIC SOCIETY SVCS,"43,755.21",SEN TRANSPORT,EXTERNAL AGENCIES AND BODIES,2102487914
11.05.2016,CHILDREN'S SERVICES,THE LINK PRIMARY SCHOOL,"9,162.00",SEN TRANSPORT,EXTERNAL AGENCIES AND BODIES,2102487921
11.05.2016,CHILDREN'S SERVICES,BROWNS SCHOOL,"11,000.00",SEN TRANSPORT,EXTERNAL AGENCIES AND BODIES,2102487897
11.05.2016,CHILDREN'S SERVICES,HIGHSHORE SCHOOL,"6,042.00",SEN TRANSPORT,EXTERNAL AGENCIES AND BODIES,2102487915
11.05.2016,CHILDREN'S SERVICES,BEHAVIOUR MATTERS LTD,"2,000.00",SEND REDESIGN PROJECT,PUBLIC TRANSPORT,5902191570
11.05.2016,CHILDREN'S SERVICES,NHS SOUTHWARK CCG,"18,680.00",SOUTHWARK MANAGEMENT - 5015249,EXTERNAL AGENCIES AND BODIES,5902191426
11.05.2016,CHILDREN'S SERVICES,RIVERSIDE,"20,753.08",SP PROVIDER PAYMENTS,EXTERNAL AGENCIES AND BODIES,2102488048
11.05.2016,CHILDREN'S SERVICES,ST MUNGOS COMMUNITY HOUSING ASSOCIATION LTD,"27,019.31",SP PROVIDER PAYMENTS,EXTERNAL AGENCIES AND BODIES,2102488050
11.05.2016,CHILDREN'S SERVICES,ST MUNGOS COMMUNITY HOUSING ASSOCIATION LTD,"27,019.31",SP PROVIDER PAYMENTS,EXTERNAL AGENCIES AND BODIES,2102488052
11.05.2016,CHILDREN'S SERVICES,THAMES REACH,"25,481.84",SP PROVIDER PAYMENTS,EXTERNAL AGENCIES AND BODIES,2102488054
11.05.2016,CHILDREN'S SERVICES,THAMES REACH,"25,481.84",SP PROVIDER PAYMENTS,EXTERNAL AGENCIES AND BODIES,2102488056
11.05.2016,CHILDREN'S SERVICES,THE SALVATION ARMY,"22,788.58",SP PROVIDER PAYMENTS,EXTERNAL AGENCIES AND BODIES,2102488058
11.05.2016,CHILDREN'S SERVICES,THE SALVATION ARMY,"22,788.58",SP PROVIDER PAYMENTS,EXTERNAL AGENCIES AND BODIES,2102488060
11.05.2016,CHILDREN'S SERVICES,LOOK AHEAD CARE AND SUPPORT LTD,"21,627.50",SP PROVIDER PAYMENTS,EXTERNAL AGENCIES AND BODIES,2102488068
11.05.2016,CHILDREN'S SERVICES,LOOK AHEAD CARE AND SUPPORT LTD,"21,627.50",SP PROVIDER PAYMENTS,EXTERNAL AGENCIES AND BODIES,2102488070
11.05.2016,CHILDREN'S SERVICES,LOOK AHEAD CARE AND SUPPORT LTD,"19,598.22",SP PROVIDER PAYMENTS,EXTERNAL AGENCIES AND BODIES,2102488072
11.05.2016,CHILDREN'S SERVICES,LOOK AHEAD CARE AND SUPPORT LTD,"19,598.22",SP PROVIDER PAYMENTS,EXTERNAL AGENCIES AND BODIES,2102488074
11.05.2016,CHILDREN'S SERVICES,LOOK AHEAD CARE AND SUPPORT LTD,"26,477.49",SP PROVIDER PAYMENTS,EXTERNAL AGENCIES AND BODIES,2102488076
11.05.2016,CHILDREN'S SERVICES,LOOK AHEAD CARE AND SUPPORT LTD,"26,477.49",SP PROVIDER PAYMENTS,EXTERNAL AGENCIES AND BODIES,2102488078
11.05.2016,CHILDREN'S SERVICES,LOOK AHEAD CARE AND SUPPORT LTD,"26,375.50",SP PROVIDER PAYMENTS,EXTERNAL AGENCIES AND BODIES,2102488080
11.05.2016,CHILDREN'S SERVICES,LOOK AHEAD CARE AND SUPPORT LTD,"26,375.50",SP PROVIDER PAYMENTS,EXTERNAL AGENCIES AND BODIES,2102488082
11.05.2016,CHILDREN'S SERVICES,LOOK AHEAD CARE AND SUPPORT LTD,"26,375.50",SP PROVIDER PAYMENTS,EXTERNAL AGENCIES AND BODIES,2102488084
11.05.2016,CHILDREN'S SERVICES,LOOK AHEAD CARE AND SUPPORT LTD,"26,375.50",SP PROVIDER PAYMENTS,EXTERNAL AGENCIES AND BODIES,2102488086
11.05.2016,CHILDREN'S SERVICES,LOOK AHEAD CARE AND SUPPORT LTD,"26,375.50",SP PROVIDER PAYMENTS,EXTERNAL AGENCIES AND BODIES,2102488088
11.05.2016,CHILDREN'S SERVICES,LOOK AHEAD CARE AND SUPPORT LTD,"26,375.50",SP PROVIDER PAYMENTS,EXTERNAL AGENCIES AND BODIES,2102488090
11.05.2016,CHILDREN'S SERVICES,LOOK AHEAD CARE AND SUPPORT LTD,"26,375.50",SP PROVIDER PAYMENTS,EXTERNAL AGENCIES AND BODIES,2102488092
11.05.2016,CHILDREN'S SERVICES,LOOK AHEAD CARE AND SUPPORT LTD,"26,375.50",SP PROVIDER PAYMENTS,EXTERNAL AGENCIES AND BODIES,2102488094
11.05.2016,CHILDREN'S SERVICES,LOOK AHEAD CARE AND SUPPORT LTD,"26,375.50",SP PROVIDER PAYMENTS,EXTERNAL AGENCIES AND BODIES,2102488096
11.05.2016,CHILDREN'S SERVICES,LOOK AHEAD CARE AND SUPPORT LTD,"26,375.50",SP PROVIDER PAYMENTS,EXTERNAL AGENCIES AND BODIES,2102488098
11.05.2016,CHILDREN'S SERVICES,LOOK AHEAD CARE AND SUPPORT LTD,"26,375.00",SP PROVIDER PAYMENTS,EXTERNAL AGENCIES AND BODIES,2102488100
11.05.2016,CHILDREN'S SERVICES,LOOK AHEAD CARE AND SUPPORT LTD,"26,375.50",SP PROVIDER PAYMENTS,EXTERNAL AGENCIES AND BODIES,2102488102
11.05.2016,CHILDREN'S SERVICES,LOOK AHEAD CARE AND SUPPORT LTD,"26,375.50",SP PROVIDER PAYMENTS,EXTERNAL AGENCIES AND BODIES,2102488104
11.05.2016,CHILDREN'S SERVICES,LOOK AHEAD CARE AND SUPPORT LTD,"11,917.44",SP PROVIDER PAYMENTS,EXTERNAL AGENCIES AND BODIES,2102488106
11.05.2016,CHILDREN'S SERVICES,LOOK AHEAD CARE AND SUPPORT LTD,"11,917.44",SP PROVIDER PAYMENTS,EXTERNAL AGENCIES AND BODIES,2102488108
11.05.2016,CHILDREN'S SERVICES,LOOK AHEAD CARE AND SUPPORT LTD,"22,385.00",SP PROVIDER PAYMENTS,EXTERNAL AGENCIES AND BODIES,2102488110
11.05.2016,CHILDREN'S SERVICES,LOOK AHEAD CARE AND SUPPORT LTD,"22,385.00",SP PROVIDER PAYMENTS,EXTERNAL AGENCIES AND BODIES,2102488112
11.05.2016,CHILDREN'S SERVICES,LOOK AHEAD CARE AND SUPPORT LTD,"18,797.00",SP PROVIDER PAYMENTS,EXTERNAL AGENCIES AND BODIES,2102488114
11.05.2016,CHILDREN'S SERVICES,LOOK AHEAD CARE AND SUPPORT LTD,"18,797.00",SP PROVIDER PAYMENTS,EXTERNAL AGENCIES AND BODIES,2102488116
11.05.2016,CHILDREN'S SERVICES,OASIS AQUILA HOUSING,"8,238.25",SP PROVIDER PAYMENTS,EXTERNAL AGENCIES AND BODIES,2102488122
11.05.2016,CHILDREN'S SERVICES,OASIS AQUILA HOUSING,"8,238.25",SP PROVIDER PAYMENTS,EXTERNAL AGENCIES AND BODIES,2102488124
11.05.2016,CHILDREN'S SERVICES,REFUGE,"10,363.42",SP PROVIDER PAYMENTS,EXTERNAL AGENCIES AND BODIES,2102488126
11.05.2016,CHILDREN'S SERVICES,REFUGE,"10,363.42",SP PROVIDER PAYMENTS,EXTERNAL AGENCIES AND BODIES,2102488128
11.05.2016,CHILDREN'S SERVICES,RIVERSIDE,"20,753.08",SP PROVIDER PAYMENTS,EXTERNAL AGENCIES AND BODIES,2102488130
11.05.2016,CHILDREN'S SERVICES,REDACTED PERSONAL DATA,"20,402.75",SP PROVIDER PAYMENTS,EXTERNAL AGENCIES AND BODIES,2102488062
11.05.2016,CHILDREN'S SERVICES,REDACTED PERSONAL DATA,"20,402.75",SP PROVIDER PAYMENTS,EXTERNAL AGENCIES AND BODIES,2102488064
11.05.2016,CHILDREN'S SERVICES,REDACTED PERSONAL DATA,"20,402.75",SP PROVIDER PAYMENTS,EXTERNAL AGENCIES AND BODIES,2102488066
11.05.2016,CHILDREN'S SERVICES,REDACTED PERSONAL DATA,400,SPECIAL GUARDIANSHIP,PAYMENTS TO CARERS,2102488643
11.05.2016,CHILDREN'S SERVICES,REDACTED PERSONAL DATA,263.71,SPECIAL GUARDIANSHIP,PAYMENTS TO CARERS,2102488668
11.05.2016,CHILDREN'S SERVICES,REDACTED PERSONAL DATA,317.67,SPECIAL GUARDIANSHIP,PAYMENTS TO CARERS,2102488672
11.05.2016,CHILDREN'S SERVICES,REDACTED PERSONAL DATA,350,SPECIAL GUARDIANSHIP,PAYMENTS TO CARERS,2102488829
11.05.2016,CHILDREN'S SERVICES,REDACTED PERSONAL DATA,269.08,SPECIAL GUARDIANSHIP,PAYMENTS TO CARERS,2102488838
11.05.2016,CHILDREN'S SERVICES,REDACTED PERSONAL DATA,264.16,SPECIAL GUARDIANSHIP,PAYMENTS TO CARERS,2102488861
11.05.2016,CHILDREN'S SERVICES,REDACTED PERSONAL DATA,494.42,SPECIAL GUARDIANSHIP,PAYMENTS TO CARERS,2102488867
11.05.2016,CHILDREN'S SERVICES,THORNBURY NURSING SERVICES,"6,504.81",SPECIALIST CARE,SECTION 17 PAYMENTS TO AGENCIES/CARERS,2102487938
11.05.2016,CHILDREN'S SERVICES,THORNBURY NURSING SERVICES,"6,200.37",SPECIALIST CARE,SECTION 17 PAYMENTS TO AGENCIES/CARERS,2102487939
11.05.2016,CHILDREN'S SERVICES,THORNBURY NURSING SERVICES,"1,936.31",SPECIALIST CARE,SECTION 17 PAYMENTS TO AGENCIES/CARERS,2102487940
11.05.2016,CHILDREN'S SERVICES,INTERSERVE HEALTHCARE,477.06,SPECIALIST CARE,SECTION 17 PAYMENTS TO AGENCIES/CARERS,2102487944
11.05.2016,CHILDREN'S SERVICES,ANCHOR FOSTERCARE,"1,944.88",STAYING PUT,EXTERNAL AGENCIES AND BODIES,2102488362
11.05.2016,CHILDREN'S SERVICES,REDACTED PERSONAL DATA,500,STAYING PUT,EXTERNAL AGENCIES AND BODIES,2102488600
11.05.2016,CHILDREN'S SERVICES,REDACTED PERSONAL DATA,500,STAYING PUT,EXTERNAL AGENCIES AND BODIES,2102488605
11.05.2016,CHILDREN'S SERVICES,REDACTED PERSONAL DATA,500,STAYING PUT,EXTERNAL AGENCIES AND BODIES,2102488625
11.05.2016,CHILDREN'S SERVICES,REDACTED PERSONAL DATA,500,STAYING PUT,PAYMENTS TO CARERS,2102488071
11.05.2016,CHILDREN'S SERVICES,REDACTED PERSONAL DATA,500,STAYING PUT,PAYMENTS TO CARERS,2102488135
11.05.2016,CHILDREN'S SERVICES,REDACTED PERSONAL DATA,500,STAYING PUT,PAYMENTS TO CARERS,2102488140
11.05.2016,CHILDREN'S SERVICES,REDACTED PERSONAL DATA,300,STAYING PUT,PAYMENTS TO CARERS,2102488151
11.05.2016,CHILDREN'S SERVICES,REDACTED PERSONAL DATA,500,STAYING PUT,PAYMENTS TO CARERS,2102488152
11.05.2016,CHILDREN'S SERVICES,REDACTED PERSONAL DATA,500,STAYING PUT,PAYMENTS TO CARERS,2102488153
11.05.2016,CHILDREN'S SERVICES,REDACTED PERSONAL DATA,500,STAYING PUT,PAYMENTS TO CARERS,2102488154
11.05.2016,CHILDREN'S SERVICES,REDACTED PERSONAL DATA,500,STAYING PUT,PAYMENTS TO CARERS,2102488155
11.05.2016,CHILDREN'S SERVICES,REDACTED PERSONAL DATA,500,STAYING PUT,PAYMENTS TO CARERS,2102488189
11.05.2016,CHILDREN'S SERVICES,REDACTED PERSONAL DATA,500,STAYING PUT,PAYMENTS TO CARERS,2102488190
11.05.2016,CHILDREN'S SERVICES,REDACTED PERSONAL DATA,500,STAYING PUT,PAYMENTS TO CARERS,2102488199
11.05.2016,CHILDREN'S SERVICES,REDACTED PERSONAL DATA,500,STAYING PUT,PAYMENTS TO CARERS,2102488236
11.05.2016,CHILDREN'S SERVICES,REDACTED PERSONAL DATA,500,STAYING PUT,PAYMENTS TO CARERS,2102488242
11.05.2016,CHILDREN'S SERVICES,REDACTED PERSONAL DATA,500,STAYING PUT,PAYMENTS TO CARERS,2102488258
11.05.2016,CHILDREN'S SERVICES,REDACTED PERSONAL DATA,500,STAYING PUT,PAYMENTS TO CARERS,2102488260
11.05.2016,CHILDREN'S SERVICES,REDACTED PERSONAL DATA,500,STAYING PUT,PAYMENTS TO CARERS,2102488272
11.05.2016,CHILDREN'S SERVICES,REDACTED PERSONAL DATA,500,STAYING PUT,PAYMENTS TO CARERS,2102488302
11.05.2016,CHILDREN'S SERVICES,REDACTED PERSONAL DATA,700,STAYING PUT,PAYMENTS TO CARERS,2102488318
11.05.2016,CHILDREN'S SERVICES,REDACTED PERSONAL DATA,500,STAYING PUT,PAYMENTS TO CARERS,2102488340
11.05.2016,CHILDREN'S SERVICES,REDACTED PERSONAL DATA,-500,STAYING PUT,PAYMENTS TO CARERS,2102488358
11.05.2016,CHILDREN'S SERVICES,REDACTED PERSONAL DATA,500,STAYING PUT,PAYMENTS TO CARERS,2102488360
11.05.2016,CHILDREN'S SERVICES,REDACTED PERSONAL DATA,800,STAYING PUT,PAYMENTS TO CARERS,2102488365
11.05.2016,CHILDREN'S SERVICES,REDACTED PERSONAL DATA,500,STAYING PUT,PAYMENTS TO CARERS,2102488374
11.05.2016,CHILDREN'S SERVICES,REDACTED PERSONAL DATA,500,STAYING PUT,PAYMENTS TO CARERS,2102488407
11.05.2016,CHILDREN'S SERVICES,REDACTED PERSONAL DATA,500,STAYING PUT,PAYMENTS TO CARERS,2102488409
11.05.2016,CHILDREN'S SERVICES,REDACTED PERSONAL DATA,500,STAYING PUT,PAYMENTS TO CARERS,2102488410
11.05.2016,CHILDREN'S SERVICES,REDACTED PERSONAL DATA,500,STAYING PUT,PAYMENTS TO CARERS,2102488411
11.05.2016,CHILDREN'S SERVICES,REDACTED PERSONAL DATA,500,STAYING PUT,PAYMENTS TO CARERS,2102488412
11.05.2016,CHILDREN'S SERVICES,REDACTED PERSONAL DATA,500,STAYING PUT,PAYMENTS TO CARERS,2102488419
11.05.2016,CHILDREN'S SERVICES,REDACTED PERSONAL DATA,500,STAYING PUT,PAYMENTS TO CARERS,2102488594
11.05.2016,CHILDREN'S SERVICES,REDACTED PERSONAL DATA,500,STAYING PUT,PAYMENTS TO CARERS,2102488597
11.05.2016,CHILDREN'S SERVICES,REDACTED PERSONAL DATA,900,STAYING PUT,PAYMENTS TO CARERS,2102488614
11.05.2016,CHILDREN'S SERVICES,REDACTED PERSONAL DATA,500,STAYING PUT,PAYMENTS TO CARERS,2102488622
11.05.2016,CHILDREN'S SERVICES,REDACTED PERSONAL DATA,500,STAYING PUT,PAYMENTS TO CARERS,2102488633
11.05.2016,CHILDREN'S SERVICES,NESTOR PRIMECARE SERVICES LTD,272.31,TRANSFORMING COM E,HOMECARE - C&V,5902191372
11.05.2016,CHILDREN'S SERVICES,PURPLE PEBBLES(CHILD CARE) SERVICES,597.14,UASC SECTION 24,OTHER PAYMENTS FOR CLIENTS,2102487958
11.05.2016,CHILDREN'S SERVICES,PURPLE PEBBLES(CHILD CARE) SERVICES,"1,173.57",UASC SECTION 24,SECTION 17 PAYMENTS TO AGENCIES/CARERS,2102487956
11.05.2016,CHILDREN'S SERVICES,PURPLE PEBBLES(CHILD CARE) SERVICES,"1,173.57",UASC SECTION 24,SECTION 17 PAYMENTS TO AGENCIES/CARERS,2102487957
11.05.2016,CHILDREN'S SERVICES,KARL LAKE T/A SETPHOTOGRAPHY,760,YOS SUPPORT,TRAINING,5902191475
11.05.2016,CHILDREN'S SERVICES,KARL LAKE T/A SETPHOTOGRAPHY,671.03,YOS SUPPORT,TRAINING,5902191476
11.05.2016,CHILDREN'S SERVICES,LONDON BOROUGH OF BARNET,500,YOS SUPPORT,TRAINING,5902191478
11.05.2016,COMMUNITIES,PEYTON & BYRNE LTD,463.08,MAYORAL SUPPORT,CATERING MATERIALS & SUPPLIES,5902191345
11.05.2016,COMMUNITIES,EDEN ESTATES LONDON LTD,"2,436.00",NO RECOURSE TO PUBLIC FUNDS,SECTION 17 PAYMENTS TO AGENCIES/CARERS,5902191433
11.05.2016,COMMUNITIES,EDEN ESTATES LONDON LTD,"1,015.00",NO RECOURSE TO PUBLIC FUNDS,SECTION 17 PAYMENTS TO AGENCIES/CARERS,5902191435
11.05.2016,COMMUNITIES,EDEN ESTATES LONDON LTD,"1,015.00",NO RECOURSE TO PUBLIC FUNDS,SECTION 17 PAYMENTS TO AGENCIES/CARERS,5902191438
11.05.2016,COMMUNITIES,TPAS LTD,"1,120.00",RESIDENT INVOLVEMENT TEAM,TRAINING,5902191512
11.05.2016,COMMUNITIES,DIRECTORY OF SOCIAL CHANGE,"1,449.10",TENANT MGT INITITIVES,TRAINING,5902191509
11.05.2016,COMMUNITIES,LONDON ARTSCOM LTD,370.83,TENANT MGT INITITIVES,TRAINING,5902191514
11.05.2016,CUSTOMER SERVICES HGF,CORAM VOICE,620,COMPLAINTS,EXTERNAL AGENCIES AND BODIES,5902191493
11.05.2016,CUSTOMER SERVICES HGF,CORAM VOICE,"2,896.00",COMPLAINTS,EXTERNAL AGENCIES AND BODIES,5902191494
11.05.2016,CUSTOMER SERVICES HGF,JOANNE MCELROY,300,COMPLAINTS,PROFESSIONAL FEES,5902191495
11.05.2016,CUSTOMER SERVICES HGF,DR I BODI,276,CORONER'S,PROFESSIONAL FEES,5902191590
11.05.2016,CUSTOMER SERVICES HGF,DR I BODI,276,CORONER'S,PROFESSIONAL FEES,5902191592
11.05.2016,CUSTOMER SERVICES HGF,DR I BODI,276,CORONER'S,PROFESSIONAL FEES,5902191598
11.05.2016,CUSTOMER SERVICES HGF,DIGNITY FUNERALS LTD,"15,975.00",CORONER'S,OTHER CONTRACTORS,5902191553
11.05.2016,CUSTOMER SERVICES HGF,HEXAGON HOUSING ASSOCIATION LTD,"1,000.00",HOMELESS & HOUSING OPTIONS MGT,EXTERNAL AGENCIES AND BODIES,5902191368
11.05.2016,CUSTOMER SERVICES HGF,GUYS & ST THOMAS NHS FOUNDATION TRUST,"7,920.00",MORTUARY,OTHER CONTRACTORS,5902191525
11.05.2016,CUSTOMER SERVICES HGF,A & M ACCOMMODATION SERVICES LTD,"43,443.50",NIGHTLY TA (NSC),EXTERNAL AGENCIES AND BODIES,5902191348
11.05.2016,CUSTOMER SERVICES HGF,K3 PROPERTY MANAGEMENT LTD,"21,470.00",NIGHTLY TA (NSC),EXTERNAL AGENCIES AND BODIES,5902191352
11.05.2016,CUSTOMER SERVICES HGF,TRADE  IN OPTIONS LTD,576,NIGHTLY TA (NSC),EXTERNAL AGENCIES AND BODIES,5902191370
11.05.2016,CUSTOMER SERVICES HGF,D SINGH PROPERTIES LTD,"22,207.00",NIGHTLY TA (NSC),EXTERNAL AGENCIES AND BODIES,5902191371
11.05.2016,CUSTOMER SERVICES HGF,CROWN HOUSING LTD,"6,210.00",NIGHTLY TA (NSC),EXTERNAL AGENCIES AND BODIES,5902191376
11.05.2016,CUSTOMER SERVICES HGF,LIVING ACCOMODATION LTD,"14,630.00",NIGHTLY TA (NSC),EXTERNAL AGENCIES AND BODIES,5902191382
11.05.2016,CUSTOMER SERVICES HGF,NATIONWIDE ACCOMMODATION,"1,050.00",NIGHTLY TA (NSC),EXTERNAL AGENCIES AND BODIES,5902191429
11.05.2016,CUSTOMER SERVICES HGF,NATIONWIDE ACCOMMODATION,"12,512.50",NIGHTLY TA (NSC),EXTERNAL AGENCIES AND BODIES,5902191432
11.05.2016,CUSTOMER SERVICES HGF,J & M OASIS LTD,"31,831.00",NIGHTLY TA (NSC),EXTERNAL AGENCIES AND BODIES,5902191465
11.05.2016,CUSTOMER SERVICES HGF,RENT CONNECT HOUSING LTD,"7,860.00",NIGHTLY TA (NSC),EXTERNAL AGENCIES AND BODIES,5902191506
11.05.2016,CUSTOMER SERVICES HGF,GOLDSTONE ESTATES LTD,"6,819.00",NIGHTLY TA (NSC),EXTERNAL AGENCIES AND BODIES,5902191615
11.05.2016,CUSTOMER SERVICES HGF,UK ROOM (LONDON ) LTD,"2,100.00",NIGHTLY TA (NSC),GRANTS,5902191517
11.05.2016,CUSTOMER SERVICES HGF,KIRONA SOLUTIONS LTD,450,PROJECTS,TRAINING,5902191492
11.05.2016,CUSTOMER SERVICES HGF,REDACTED PERSONAL DATA,"1,224.48",TEMP ACCOM - MNGMT,GRANTS,5902191599
11.05.2016,CUSTOMER SERVICES HGF,INTERPRETING DIRECT CO (UK) LTD,"6,175.46",TRANSLATION & INTERPRETATION,TRANSLATION SERVICES,5902191504
11.05.2016,DULWICH COMMUNITY COUNCIL,SOUTHWARK HINDU CENTRE ,"2,000.00",DAY TRIP TO SENIOR CITIZENS(50 PEOPLE) ,GRANTS,CHEQUE PAYMENT
11.05.2016,ENVIRONMENT AND LEISURE,CONWAY AECOM LTD,"262,978.57",CAPITAL PS (LEISURE),CONSTRUCTION,2102488903
11.05.2016,ENVIRONMENT AND LEISURE,ROLEC SERVICES LTD,"9,437.12",CAPITAL PS (LEISURE),CONSTRUCTION FEES - EXTERNAL,2102488911
11.05.2016,ENVIRONMENT AND LEISURE,NHBS LTD,435.28,CAPITAL PS (LEISURE),CONSTRUCTION FEES - EXTERNAL,5902191385
11.05.2016,ENVIRONMENT AND LEISURE,PALMSTEAD NURSERIES LTD,505.04,CAPITAL PS (LEISURE),CONSTRUCTION MAIN CONTRACT - NON CERTIFICATED,5902191367
11.05.2016,ENVIRONMENT AND LEISURE,STREET TREE CARE LTD,350,CAPITAL PS (LEISURE),CONSTRUCTION MAIN CONTRACT - NON CERTIFICATED,5902191569
11.05.2016,ENVIRONMENT AND LEISURE,SELECTA MARK SECURITY SYSTEM PLC,"1,570.00",CAPITAL PS (LEISURE),CONSTRUCTION MAIN CONTRACT - NON CERTIFICATED,5902191583
11.05.2016,ENVIRONMENT AND LEISURE,QUADRON SERVICES LTD,"2,393.04",CAPITAL PS (LEISURE),CONSTRUCTION MAIN CONTRACT - NON CERTIFICATED,5902191606
11.05.2016,ENVIRONMENT DIRECTORATE,SCOT GROUP LIMITED,350,COMMERCIAL VEH CTRL A/C,HIRED VEHICLES,5902191399
11.05.2016,ENVIRONMENT DIRECTORATE,GULLIVERS TRUCK HIRE LTD,915,COMMERCIAL VEH CTRL A/C,HIRED VEHICLES,5902191541
11.05.2016,ENVIRONMENT DIRECTORATE,GULLIVERS TRUCK HIRE LTD,365,COMMERCIAL VEH CTRL A/C,HIRED VEHICLES,5902191550
11.05.2016,ENVIRONMENT DIRECTORATE,IMPERIAL JANITORIAL SUPPLIES LTD,327.68,ESTATE CLEANING-GENERAL,"CLOTHING, UNIFORMS & LAUNDRY",5902191396
11.05.2016,ENVIRONMENT DIRECTORATE,GREENHAM TRADING LTD,708.92,ESTATE CLEANING-GENERAL,MATERIALS,5902191395
11.05.2016,ENVIRONMENT DIRECTORATE,GREENHAM TRADING LTD,"1,158.27",ESTATE CLEANING-GENERAL,MATERIALS,5902191409
11.05.2016,ENVIRONMENT DIRECTORATE,GREENHAM TRADING LTD,-567.14,ESTATE CLEANING-GENERAL,MATERIALS,5902191414
11.05.2016,ENVIRONMENT DIRECTORATE,LEWIS AND GRAVES PARTNERSHIP LTD,"2,400.00",ESTATE CLEANING-GENERAL,OTHER CONTRACTORS,5902191418
11.05.2016,ENVIRONMENT DIRECTORATE,COMPLETE TREE CARE LTD,503.64,NON HOUSING GROUNDS,AGENCY STAFF,5902191510
11.05.2016,ENVIRONMENT DIRECTORATE,GREEN PLANT UK LTD,450.06,NON HOUSING GROUNDS,EQUIPMENT PURCHASE & REPAIR,5902191507
11.05.2016,ENVIRONMENT DIRECTORATE,APCOA PARKING (UK) LTD,"221,298.98",PARKING OVERHEADS,OTHER CONTRACTORS,5902191452
11.05.2016,ENVIRONMENT DIRECTORATE,APCOA PARKING (UK) LTD,"92,430.80",PARKING OVERHEADS,OTHER CONTRACTORS,5902191459
11.05.2016,ENVIRONMENT DIRECTORATE,P D CONSTRUCTION LTD,627,PARKS TECH UNIT (PREMISES),OTHER R&M,2102488913
11.05.2016,ENVIRONMENT DIRECTORATE,KYBO CORP,390,PEST CONTROL,MATERIALS,5902191457
11.05.2016,ENVIRONMENT DIRECTORATE,KYBO CORP,325,PEST CONTROL,MATERIALS,5902191460
11.05.2016,ENVIRONMENT DIRECTORATE,W M CONSULTANCY (UK) LTD,"5,518.50",S.E.L. ILLEGAL TOBACCO ALLIANCE,PROFESSIONAL FEES,5902191444
11.05.2016,ENVIRONMENT DIRECTORATE,COMMUNITY CYCLEWORKS,"1,930.00",STP MONITORING AND INITIATIVES,PROFESSIONAL FEES,5902191505
11.05.2016,ENVIRONMENT DIRECTORATE,CONWAY AECOM LTD,"1,506.01",STREET CARE OVERHEADS,OTHER CONTRACTORS,5902191496
11.05.2016,ENVIRONMENT DIRECTORATE,ELLIOT ENVIRONMENTAL LTD,800,STREET CLEANING-GENERAL,OTHER CONTRACTORS,5902191347
